Workbook

Sheet Fixtermine (hidden)
A1: =CHOOSE(WEEKDAY(E1),"Sonntag","Montag","Dienstag","Mittwoch","Donnerstag","Freitag","Samstag") -> Sonntag | B1: =B2-7 -> 43436 | D1: 1. Advent | E1: =B1 -> 2018-12-02 | G1: Jahr | H1: =YEAR(Kalender!B2) -> 2018
A2: Sonntag | B2: =B3-7 -> 43443 | D2: 2. Advent | E2: 2018-12-09 | G2: Gausssche Osterformel | H2: =MOD(H1,19) -> 4
A3: Sonntag | B3: =B4-7 -> 43450 | D3: 3. Advent | E3: 2018-12-16 | H3: =MOD(H1,4) -> 2
A4: Sonntag | B4: =B7-WEEKDAY(B7)+1 -> 43457 | D4: =IF(WEEKDAY(B7)=1,D7,"4. Apfent") -> 4. Apfent | E4: =B4 -> 2018-12-23 | H4: =MOD(H1,7) -> 2
A5: Mittwoch | B5: =DATEVALUE(E5) -> 43376 | C5: 03.10. | D5: FT-Tag d. Deut. Einheit | E5: =CONCATENATE(C5,$H$1) -> 03.10.2018 | H5: =TRUNC((8*(TRUNC(H1/100))+13)/25)-2 -> 4
A6: Donnerstag | B6: 43405 | C6: 01.11. | D6: FT-Allerheiligen | E6: 01.11.2018 | H6: =TRUNC(H1/100)-TRUNC(H1/400)-2 -> 13
A7: Montag | B7: 43458 | C7: 24.12. | D7: Hl. Abend / Ferien | E7: 24.12.2018 | H7: =MOD(15+H6-H5,30) -> 24
A8: Dienstag | B8: 43459 | C8: 25.12. | D8: FT-1. Weihnachtsfeiertag | E8: 25.12.2018 | H8: =MOD(6+H6,7) -> 5
A9: Mittwoch | B9: 43460 | C9: 26.12. | D9: FT-2. Weihnachtsfeiertag | E9: 26.12.2018 | H9: =MOD(H7+19*H2,30) -> 10
A10: Montag | B10: 43101 | C10: 01.01. | D10: FT-Neujahr | E10: 01.01.2018 | H10: =IF(H9=29,28,IF(AND(H9=28,H2>=11),27,IF(AND(H9<28,H9>29),,H9))) -> 10
A11: Samstag | B11: 43106 | C11: 06.01. | D11: FT-Hl. 3 Könige | E11: 06.01.2018 | H11: =MOD(2*H3+4*H4+6*H10+H8,7) -> 0
A12: Dienstag | B12: 43221 | C12: 01.05. | D12: FT-Tag der Arbeit | E12: 01.05.2018 | H12: =H10+H11+1 -> 11
A13: Mittwoch | B13: 43327 | C13: 15.08. | D13: FT-Maria Himmeklfahrt | E13: 15.08.2018 | H13: =DATEVALUE(CONCATENATE("21.märz",H1)) -> 43180
A14: Montag | B14: =$B$6+2-$I$31 -> 43402 | D14: Herbstferien | E14: =B14 -> 2018-10-29 | G14: Ostersonntag | H14: =H12+H13 -> 2018-04-01
A15: Dienstag | B15: =$B$6+3-$I$31 -> 43403 | D15: Herbstferien | E15: 2018-10-30 | G15: Tag | H15: =DAY(H14) -> 1
A16: Mittwoch | B16: =$B$6+4-$I$31 -> 43404 | D16: Herbstferien | E16: =B16 -> 2018-10-31 | G16: Monat | H16: =MONTH(H14) -> 4
A17: Donnerstag | B17: =$B$6+5-$I$31 -> 43405 | D17: Herbstferien | E17: =B17 -> 2018-11-01 | G17: Jahr | H17: =YEAR(H14) -> 2018
A18: Freitag | B18: =$B$6+6-$I$31 -> 43406 | D18: Herbstferien | E18: =B18 -> 2018-11-02 | G18: Zusammengebastelt | H18: =CONCATENATE(H15,".",H16,".",H17) -> 1.4.2018
A19: Mittwoch | B19: =DATEVALUE(E19) -> 43425 | C19: =VLOOKUP(4,$G$23:$J$29,3,TRUE) -> 21.11. | D19: Buß- u. Bettag | E19: =CONCATENATE(C19,$H$1) -> 21.11.2018
A20: Donnerstag | B20: 43461 | C20: 27.12. | D20: Weihnachtsferien | E20: 27.12.2018 | G20: akt. Dat.(Heute) | H20: =TODAY() -> 43269
A21: Freitag | B21: 43462 | C21: 28.12. | D21: Weihnachtsferien | E21: 28.12.2018
A22: Samstag | B22: 43463 | C22: 29.12. | D22: Weihnachtsferien | E22: 29.12.2018 | G22: Buß- u. Bettag zw. 16.11. und 22.11.
A23: Sonntag | B23: 43464 | C23: 30.12. | D23: Weihnachtsferien | E23: 30.12.2018 | G23: =WEEKDAY(J23) -> 6 | H23: =CHOOSE(WEEKDAY(J23),"Sonntag","Montag","Dienstag","Mittwoch","Donnerstag","Freitag","Samstag") -> Freitag | I23: 16.11. | J23: =CONCATENATE(I23,$H$1) -> 16.11.2018
A24: Montag | B24: 43465 | C24: 31.12. | D24: Weihnachtsferien | E24: 31.12.2018 | G24: 7 | H24: Samstag | I24: 17.11. | J24: 17.11.2018
A25: Dienstag | B25: 43102 | C25: 02.01. | D25: Weihnachtsferien | E25: 02.01.2018 | G25: 1 | H25: Sonntag | I25: 18.11. | J25: 18.11.2018
A26: Mittwoch | B26: 43103 | C26: 03.01. | D26: Weihnachtsferien | E26: 03.01.2018 | G26: 2 | H26: Montag | I26: 19.11. | J26: 19.11.2018
A27: Donnerstag | B27: 43104 | C27: 04.01. | D27: Weihnachtsferien | E27: 04.01.2018 | G27: 3 | H27: Dienstag | I27: 20.11. | J27: 20.11.2018
A28: Freitag | B28: 43105 | C28: 05.01. | D28: Weihnachtsferien | E28: 05.01.2018 | G28: 4 | H28: Mittwoch | I28: 21.11. | J28: 21.11.2018
A29: Montag | B29: =DATEVALUE(H$18)-48 -> 43143 | D29: Frühjahrsferien | E29: =B29 -> 2018-02-12 | G29: 5 | H29: Donnerstag | I29: 22.11. | J29: 22.11.2018
A30: Dienstag | B30: =DATEVALUE(H$18)-47 -> 43144 | D30: Frühjahrsferien | E30: 2018-02-13
A31: Mittwoch | B31: =DATEVALUE(H$18)-46 -> 43145 | D31: Aschermittw. / Ferien | E31: 2018-02-14 | G31: Herbstferienberechn. | H31: Wochentagserm. | I31: =VLOOKUP(C6,G32:J42,2,TRUE) -> 5 | J31: =CHOOSE(WEEKDAY(I31),"Sonntag","Montag","Dienstag","Mittwoch","Donnerstag","Freitag","Samstag") -> Donnerstag
A32: Donnerstag | B32: =DATEVALUE(H$18)-45 -> 43146 | D32: Frühjahrsferien | E32: 2018-02-15 | G32: 27.10. | H32: =WEEKDAY(J32) -> 7 | I32: =CHOOSE(WEEKDAY(J32),"Sonntag","Montag","Dienstag","Mittwoch","Donnerstag","Freitag","Samstag") -> Samstag | J32: =CONCATENATE(G32,$H$1) -> 27.10.2018
A33: Freitag | B33: =DATEVALUE(H$18)-44 -> 43147 | D33: Frühjahrsferien | E33: 2018-02-16 | G33: 28.10. | H33: 1 | I33: Sonntag | J33: 28.10.2018
A34: Montag | B34: =DATEVALUE(H$18)-6 -> 43185 | D34: Osterferien | E34: 2018-03-26 | G34: 29.10. | H34: 2 | I34: Montag | J34: 29.10.2018
A35: Dienstag | B35: =DATEVALUE(H$18)-5 -> 43186 | D35: Osterferien | E35: 2018-03-27 | G35: 30.10. | H35: 3 | I35: Dienstag | J35: 30.10.2018
A36: Mittwoch | B36: =DATEVALUE(H$18)-4 -> 43187 | D36: Osterferien | E36: 2018-03-28 | G36: 31.10. | H36: 4 | I36: Mittwoch | J36: 31.10.2018
A37: Donnerstag | B37: =DATEVALUE(H$18)-3 -> 43188 | D37: Osterferien | E37: 2018-03-29 | G37: 01.11. | H37: 5 | I37: Donnerstag | J37: 01.11.2018
A38: Freitag | B38: =DATEVALUE(H$18)-2 -> 43189 | D38: FT-Karfreitag | E38: 2018-03-30 | G38: 02.11. | H38: 6 | I38: Freitag | J38: 02.11.2018
A39: Samstag | B39: =DATEVALUE(H$18)-1 -> 43190 | D39: Osterferien | E39: 2018-03-31 | G39: 03.11. | H39: 7 | I39: Samstag | J39: 03.11.2018
A40: =CHOOSE(WEEKDAY(E47),"Sonntag","Montag","Dienstag","Mittwoch","Donnerstag","Freitag","Samstag") -> Sonntag | B40: =DATEVALUE(H$18) -> 43191 | D40: FT-Ostersonntag | E40: 2018-04-01 | G40: 04.11. | H40: 1 | I40: Sonntag | J40: 04.11.2018
A41: =CHOOSE(WEEKDAY(E41),"Sonntag","Montag","Dienstag","Mittwoch","Donnerstag","Freitag","Samstag") -> Montag | B41: =DATEVALUE(H$18)+1 -> 43192 | D41: FT-Ostermontag | E41: 2018-04-02 | G41: 05.11. | H41: 2 | I41: Montag | J41: 05.11.2018
A42: Dienstag | B42: =DATEVALUE(H$18)+2 -> 43193 | D42: Osterferien | E42: 2018-04-03 | G42: 06.11. | H42: 3 | I42: Dienstag | J42: 06.11.2018
A43: Mittwoch | B43: =DATEVALUE(H$18)+3 -> 43194 | D43: Osterferien | E43: 2018-04-04
A44: Donnerstag | B44: =DATEVALUE(H$18)+4 -> 43195 | D44: Osterferien | E44: 2018-04-05 | G44: Sommerferientabelle | J44: Beginn | K44: Ende (einschließlich)
A45: Freitag | B45: =DATEVALUE(H$18)+5 -> 43196 | D45: Osterferien | E45: 2018-04-06 | G45: =IF(J45=0,"",YEAR(J45)) -> 2016 | H45: =IF(J45=0,"",CONCATENATE(IF(DAY(J45)<10,CONCATENATE("0",DAY(J45)),DAY(J45)),".",IF(MONTH(J45)<10,CONCATENATE("0",MONTH(J45)),MONTH(J45)),".")) -> 30.07. | I45: =IF(K45=0,"",CONCATENATE(IF(DAY(K45)<10,CONCATENATE("0",DAY(K45)),DAY(K45)),".",IF(MONTH(K45)<10,CONCATENATE("0",MONTH(K45)),MONTH(K45)),".")) -> 12.09. | J45: 2016-07-30 | K45: 2016-09-12
A46: Donnerstag | B46: =DATEVALUE(H$18)+39 -> 43230 | D46: FT-Ch. Himmelfahrt | E46: 2018-05-10 | G46: =IF(J46=0,"",YEAR(J46)) -> 2017 | H46: =IF(J46=0,"",CONCATENATE(IF(DAY(J46)<10,CONCATENATE("0",DAY(J46)),DAY(J46)),".",IF(MONTH(J46)<10,CONCATENATE("0",MONTH(J46)),MONTH(J46)),".")) -> 29.07. | I46: 11.09. | J46: 2017-07-29 | K46: 2017-09-11
A47: Sonntag | B47: =DATEVALUE(H$18)+49 -> 43240 | D47: FT-Pfingstsonntag | E47: 2018-05-20 | G47: 2018 | H47: 30.07. | I47: 10.09. | J47: 2018-07-30 | K47: 2018-09-10
A48: Montag | B48: =DATEVALUE(H$18)+50 -> 43241 | D48: FT-Pfingstmontag | E48: 2018-05-21 | G48: 2019 | H48: 29.07. | I48: 09.09. | J48: 2019-07-29 | K48: 2019-09-09
A49: Dienstag | B49: =DATEVALUE(H$18)+51 -> 43242 | D49: Pfingstferien | E49: 2018-05-22 | G49: 2020 | H49: 27.07. | I49: 07.09. | J49: 2020-07-27 | K49: 2020-09-07
A50: Mittwoch | B50: =DATEVALUE(H$18)+52 -> 43243 | D50: Pfingstferien | E50: 2018-05-23 | G50: 2021 | H50: 30.07. | I50: 13.09. | J50: 2021-07-30 | K50: 2021-09-13
A51: Donnerstag | B51: =DATEVALUE(H$18)+53 -> 43244 | D51: Pfingstferien | E51: 2018-05-24 | G51: 2022 | H51: 01.08. | I51: 12.09. | J51: 2022-08-01 | K51: 2022-09-12
A52: Freitag | B52: =DATEVALUE(H$18)+54 -> 43245 | D52: Pfingstferien | E52: 2018-05-25 | G52: 2023 | H52: 31.07. | I52: 11.09. | J52: 2023-07-31 | K52: 2023-09-11
A53: Samstag | B53: =DATEVALUE(H$18)+55 -> 43246 | D53: Pfingstferien | E53: 2018-05-26 | G53: 2024 | H53: 29.07. | I53: 09.09. | J53: 2024-07-29 | K53: 2024-09-09
A54: Sonntag | B54: =DATEVALUE(H$18)+56 -> 43247 | D54: Pfingstferien | E54: 2018-05-27
A55: Montag | B55: =DATEVALUE(H$18)+57 -> 43248 | D55: Pfingstferien | E55: 2018-05-28
A56: Dienstag | B56: =DATEVALUE(H$18)+58 -> 43249 | D56: Pfingstferien | E56: 2018-05-29
A57: Mittwoch | B57: =DATEVALUE(H$18)+59 -> 43250 | D57: Pfingstferien | E57: 2018-05-30
A58: Donnerstag | B58: =DATEVALUE(H$18)+60 -> 43251 | D58: FT-Fronleichnam | E58: 2018-05-31
A59: Freitag | B59: =DATEVALUE(H$18)+61 -> 43252 | D59: Pfingstferien | E59: 2018-06-01
A60: Montag | B60: =DATEVALUE(E60) -> 43311 | C60: =$H$103 -> 30.07. | D60: Sommerferien | E60: =CONCATENATE(C60,$H$1) -> 30.07.2018
A61: Dienstag | B61: =IF((B60+1)<$B$104,B60+1,$B$104) -> 43312 | D61: Sommerferien | E61: =B61 -> 2018-07-31
A62: Mittwoch | B62: 43313 | D62: Sommerferien | E62: 2018-08-01
A63: Donnerstag | B63: 43314 | D63: Sommerferien | E63: 2018-08-02
A64: Freitag | B64: 43315 | D64: Sommerferien | E64: 2018-08-03
A65: Samstag | B65: 43316 | D65: Sommerferien | E65: 2018-08-04
A66: Sonntag | B66: 43317 | D66: Sommerferien | E66: 2018-08-05
A67: Montag | B67: 43318 | D67: Sommerferien | E67: 2018-08-06
A68: Dienstag | B68: 43319 | D68: Sommerferien | E68: 2018-08-07
A69: Mittwoch | B69: 43320 | D69: Sommerferien | E69: 2018-08-08
A70: Donnerstag | B70: 43321 | D70: Sommerferien | E70: 2018-08-09
A71: Freitag | B71: 43322 | D71: Sommerferien | E71: 2018-08-10
A72: Samstag | B72: 43323 | D72: Sommerferien | E72: 2018-08-11
A73: Sonntag | B73: 43324 | D73: Sommerferien | E73: 2018-08-12
A74: Montag | B74: 43325 | D74: Sommerferien | E74: 2018-08-13
A75: Dienstag | B75: 43326 | D75: Sommerferien | E75: 2018-08-14
A76: Mittwoch | B76: 43327 | D76: Sommerferien | E76: 2018-08-15
A77: Donnerstag | B77: 43328 | D77: Sommerferien | E77: 2018-08-16
A78: Freitag | B78: 43329 | D78: Sommerferien | E78: 2018-08-17
A79: Samstag | B79: 43330 | D79: Sommerferien | E79: 2018-08-18
A80: Sonntag | B80: 43331 | D80: Sommerferien | E80: 2018-08-19
A81: Montag | B81: 43332 | D81: Sommerferien | E81: 2018-08-20
A82: Dienstag | B82: 43333 | D82: Sommerferien | E82: 2018-08-21
A83: Mittwoch | B83: 43334 | D83: Sommerferien | E83: 2018-08-22
A84: Donnerstag | B84: 43335 | D84: Sommerferien | E84: 2018-08-23
A85: Freitag | B85: 43336 | D85: Sommerferien | E85: 2018-08-24
A86: Samstag | B86: 43337 | D86: Sommerferien | E86: 2018-08-25
A87: Sonntag | B87: 43338 | D87: Sommerferien | E87: 2018-08-26
A88: Montag | B88: 43339 | D88: Sommerferien | E88: 2018-08-27
A89: Dienstag | B89: 43340 | D89: Sommerferien | E89: 2018-08-28
A90: Mittwoch | B90: 43341 | D90: Sommerferien | E90: 2018-08-29
A91: Donnerstag | B91: 43342 | D91: Sommerferien | E91: 2018-08-30
A92: Freitag | B92: 43343 | D92: Sommerferien | E92: 2018-08-31
A93: Samstag | B93: 43344 | D93: Sommerferien | E93: 2018-09-01
A94: Sonntag | B94: 43345 | D94: Sommerferien | E94: 2018-09-02
A95: Montag | B95: 43346 | D95: Sommerferien | E95: 2018-09-03
A96: Dienstag | B96: 43347 | D96: Sommerferien | E96: 2018-09-04
A97: Mittwoch | B97: 43348 | D97: Sommerferien | E97: 2018-09-05
A98: Donnerstag | B98: 43349 | D98: Sommerferien | E98: 2018-09-06
A99: Freitag | B99: 43350 | D99: Sommerferien | E99: 2018-09-07
A100: Samstag | B100: 43351 | D100: Sommerferien | E100: 2018-09-08
A101: Sonntag | B101: 43352 | D101: Sommerferien | E101: 2018-09-09 | H101: =IF(J80=0,"",CONCATENATE(IF(DAY(J101)<10,CONCATENATE("0",DAY(J101)),DAY(J101)),".",IF(MONTH(J101)<10,CONCATENATE("0",MONTH(J101)),MONTH(J101)),".")) ->  | I101: =IF(K101=0,"",CONCATENATE(IF(DAY(K101)<10,CONCATENATE("0",DAY(K101)),DAY(K101)),".",IF(MONTH(K101)<10,CONCATENATE("0",MONTH(K101)),MONTH(K101)),".")) -> 
A102: Montag | B102: 43353 | D102: Sommerferien | E102: 2018-09-10
A103: Montag | B103: =IF((B102+1)<$B$104,B102+1,$B$104) -> 43353 | D103: Sommerferien | E103: 2018-09-10 | G103: =$H$1 -> 2018 | H103: =VLOOKUP($H$1,$G$45:$J$101,2) -> 30.07. | I103: =VLOOKUP($H$1,$G$45:$J$101,3) -> 10.09.
A104: Montag | B104: =DATEVALUE(E104) -> 43353 | C104: =$I$103 -> 10.09. | D104: Sommerferien | E104: =CONCATENATE(C104,$H$1) -> 10.09.2018 | G104: =$H105 -> 2019 | H104: =VLOOKUP($H$105,$G$45:$J$101,2) -> 29.07. | I104: =VLOOKUP($H$105,$G$45:$J$101,3) -> 09.09.
A105: =CHOOSE(WEEKDAY(E105),"Sonntag","Montag","Dienstag","Mittwoch","Donnerstag","Freitag","Samstag") -> Sonntag | B105: =B106-7 -> 43800 | D105: 1. Advent | E105: =B105 -> 2019-12-01 | G105: Jahr | H105: =H1+1 -> 2019
A106: Sonntag | B106: =B107-7 -> 43807 | D106: 2. Advent | E106: 2019-12-08 | G106: Gausssche Osterformel | H106: =MOD(H105,19) -> 5
A107: Sonntag | B107: =B108-7 -> 43814 | D107: 3. Advent | E107: 2019-12-15 | H107: =MOD(H105,4) -> 3
A108: Sonntag | B108: =B111-WEEKDAY(B111)+1 -> 43821 | D108: =IF(WEEKDAY(B111)=1,D111,"4. Apfent") -> 4. Apfent | E108: =B108 -> 2019-12-22 | H108: =MOD(H105,7) -> 3
A109: Donnerstag | B109: =DATEVALUE(E109) -> 43741 | C109: 03.10. | D109: FT-Tag d. Deut. Einheit | E109: =CONCATENATE(C109,$H$105) -> 03.10.2019 | H109: =TRUNC((8*(TRUNC(H105/100))+13)/25)-2 -> 4
A110: Freitag | B110: 43770 | C110: 01.11. | D110: FT-Allerheiligen | E110: =CONCATENATE(C110,$H$105) -> 01.11.2019 | H110: =TRUNC(H105/100)-TRUNC(H105/400)-2 -> 13
A111: Dienstag | B111: 43823 | C111: 24.12. | D111: Hl. Abend / Ferien | E111: =CONCATENATE(C111,$H$105) -> 24.12.2019 | H111: =MOD(15+H110-H109,30) -> 24
A112: Mittwoch | B112: 43824 | C112: 25.12. | D112: FT-1. Weihnachtsfeiertag | E112: =CONCATENATE(C112,$H105) -> 25.12.2019 | H112: =MOD(6+H110,7) -> 5
A113: Donnerstag | B113: 43825 | C113: 26.12. | D113: FT-2. Weihnachtsfeiertag | E113: =CONCATENATE(C113,$H$105) -> 26.12.2019 | H113: =MOD(H111+19*H106,30) -> 29
A114: Dienstag | B114: 43466 | C114: 01.01. | D114: FT-Neujahr | E114: =CONCATENATE(C114,$H$105) -> 01.01.2019 | H114: =IF(H113=29,28,IF(AND(H113=28,H106>=11),27,IF(AND(H113<28,H113>29),,H113))) -> 28
A115: Sonntag | B115: 43471 | C115: 06.01. | D115: FT-Hl. 3 Könige | E115: =CONCATENATE(C115,$H$105) -> 06.01.2019 | H115: =MOD(2*H107+4*H108+6*H114+H112,7) -> 2
A116: Mittwoch | B116: 43586 | C116: 01.05. | D116: FT-Tag der Arbeit | E116: =CONCATENATE(C116,$H$105) -> 01.05.2019 | H116: =H114+H115+1 -> 31
A117: Donnerstag | B117: 43692 | C117: 15.08. | D117: FT-Maria Himmeklfahrt | E117: =CONCATENATE(C117,$H$105) -> 15.08.2019 | H117: =DATEVALUE(CONCATENATE("21.märz",H105)) -> 43545
A118: Dienstag | B118: =$B$110+2-$I135 -> 43767 | D118: Herbstferien | E118: =B118 -> 2019-10-29 | G118: Ostersonntag | H118: =H116+H117 -> 2019-04-21
A119: Mittwoch | B119: =$B$110+3-$I$135 -> 43768 | D119: Herbstferien | E119: 2019-10-30 | G119: Tag | H119: =DAY(H118) -> 21
A120: Donnerstag | B120: =$B$110+4-$I$135 -> 43769 | D120: Herbstferien | E120: =B120 -> 2019-10-31 | G120: Monat | H120: =MONTH(H118) -> 4
A121: Freitag | B121: =$B$110+5-$I$135 -> 43770 | D121: Herbstferien | E121: =B121 -> 2019-11-01 | G121: Jahr | H121: =YEAR(H118) -> 2019
A122: Samstag | B122: =$B$110+6-$I$135 -> 43771 | D122: Herbstferien | E122: =B122 -> 2019-11-02 | G122: Zusammengebastelt | H122: =CONCATENATE(H119,".",H120,".",H121) -> 21.4.2019
A123: Donnerstag | B123: =DATEVALUE(E123) -> 43790 | C123: =VLOOKUP(4,$G$23:$J$29,3,TRUE) -> 21.11. | D123: Buß- u. Bettag | E123: =CONCATENATE(C123,$H$105) -> 21.11.2019
A124: Freitag | B124: 43826 | C124: 27.12. | D124: Weihnachtsferien | E124: 27.12.2019 | G124: akt. Dat.(Heute) | H124: =TODAY() -> 43269
A125: Samstag | B125: 43827 | C125: 28.12. | D125: Weihnachtsferien | E125: 28.12.2019
A126: Sonntag | B126: 43828 | C126: 29.12. | D126: Weihnachtsferien | E126: 29.12.2019 | G126: Buß- u. Bettag zw. 16.11. und 22.11.
A127: Montag | B127: 43829 | C127: 30.12. | D127: Weihnachtsferien | E127: 30.12.2019 | G127: =WEEKDAY(J127) -> 6 | H127: =CHOOSE(WEEKDAY(J127),"Sonntag","Montag","Dienstag","Mittwoch","Donnerstag","Freitag","Samstag") -> Freitag | I127: 16.11. | J127: =CONCATENATE(I127,$H$1) -> 16.11.2018
A128: Dienstag | B128: 43830 | C128: 31.12. | D128: Weihnachtsferien | E128: 31.12.2019 | G128: 7 | H128: Samstag | I128: 17.11. | J128: 17.11.2018
A129: Mittwoch | B129: 43467 | C129: 02.01. | D129: Weihnachtsferien | E129: 02.01.2019 | G129: 1 | H129: Sonntag | I129: 18.11. | J129: 18.11.2018
A130: Donnerstag | B130: 43468 | C130: 03.01. | D130: Weihnachtsferien | E130: 03.01.2019 | G130: 2 | H130: Montag | I130: 19.11. | J130: 19.11.2018
A131: Freitag | B131: 43469 | C131: 04.01. | D131: Weihnachtsferien | E131: 04.01.2019 | G131: 3 | H131: Dienstag | I131: 20.11. | J131: 20.11.2018
A132: Samstag | B132: 43470 | C132: 05.01. | D132: Weihnachtsferien | E132: 05.01.2019 | G132: 4 | H132: Mittwoch | I132: 21.11. | J132: 21.11.2018
A133: Montag | B133: =DATEVALUE(H$122)-48 -> 43528 | D133: Frühjahrsferien | E133: =B133 -> 2019-03-04 | G133: 5 | H133: Donnerstag | I133: 22.11. | J133: 22.11.2018
A134: Dienstag | B134: =DATEVALUE(H$122)-47 -> 43529 | D134: Frühjahrsferien | E134: 2019-03-05
A135: Mittwoch | B135: =DATEVALUE(H$122)-46 -> 43530 | D135: Aschermittw. / Ferien | E135: 2019-03-06 | G135: Herbstferienberechn. | H135: Wochentagserm. | I135: =VLOOKUP(C110,G136:J146,2,TRUE) -> 5 | J135: =CHOOSE(WEEKDAY(I135),"Sonntag","Montag","Dienstag","Mittwoch","Donnerstag","Freitag","Samstag") -> Donnerstag
A136: Donnerstag | B136: =DATEVALUE(H$122)-45 -> 43531 | D136: Frühjahrsferien | E136: 2019-03-07 | G136: 27.10. | H136: =WEEKDAY(J136) -> 7 | I136: =CHOOSE(WEEKDAY(J136),"Sonntag","Montag","Dienstag","Mittwoch","Donnerstag","Freitag","Samstag") -> Samstag | J136: =CONCATENATE(G136,$H$1) -> 27.10.2018
A137: Freitag | B137: =DATEVALUE(H$122)-44 -> 43532 | D137: Frühjahrsferien | E137: 2019-03-08 | G137: 28.10. | H137: 1 | I137: Sonntag | J137: 28.10.2018
A138: Montag | B138: =DATEVALUE(H$122)-6 -> 43570 | D138: Osterferien | E138: 2019-04-15 | G138: 29.10. | H138: 2 | I138: Montag | J138: 29.10.2018
A139: Dienstag | B139: =DATEVALUE(H$122)-5 -> 43571 | D139: Osterferien | E139: 2019-04-16 | G139: 30.10. | H139: 3 | I139: Dienstag | J139: 30.10.2018
A140: Mittwoch | B140: =DATEVALUE(H$122)-4 -> 43572 | D140: Osterferien | E140: 2019-04-17 | G140: 31.10. | H140: 4 | I140: Mittwoch | J140: 31.10.2018
A141: Donnerstag | B141: =DATEVALUE(H$122)-3 -> 43573 | D141: Osterferien | E141: 2019-04-18 | G141: 01.11. | H141: 5 | I141: Donnerstag | J141: 01.11.2018
A142: Freitag | B142: =DATEVALUE(H$122)-2 -> 43574 | D142: FT-Karfreitag | E142: 2019-04-19 | G142: 02.11. | H142: 6 | I142: Freitag | J142: 02.11.2018
A143: Samstag | B143: =DATEVALUE(H$122)-1 -> 43575 | D143: Osterferien | E143: 2019-04-20 | G143: 03.11. | H143: 7 | I143: Samstag | J143: 03.11.2018
A144: =CHOOSE(WEEKDAY(E151),"Sonntag","Montag","Dienstag","Mittwoch","Donnerstag","Freitag","Samstag") -> Sonntag | B144: =DATEVALUE(H$122) -> 43576 | D144: FT-Ostersonntag | E144: 2019-04-21 | G144: 04.11. | H144: 1 | I144: Sonntag | J144: 04.11.2018
A145: =CHOOSE(WEEKDAY(E145),"Sonntag","Montag","Dienstag","Mittwoch","Donnerstag","Freitag","Samstag") -> Montag | B145: =DATEVALUE(H$122)+1 -> 43577 | D145: FT-Ostermontag | E145: 2019-04-22 | G145: 05.11. | H145: 2 | I145: Montag | J145: 05.11.2018
A146: Dienstag | B146: =DATEVALUE(H$122)+2 -> 43578 | D146: Osterferien | E146: 2019-04-23 | G146: 06.11. | H146: 3 | I146: Dienstag | J146: 06.11.2018
A147: Mittwoch | B147: =DATEVALUE(H$122)+3 -> 43579 | D147: Osterferien | E147: 2019-04-24
A148: Donnerstag | B148: =DATEVALUE(H$122)+4 -> 43580 | D148: Osterferien | E148: 2019-04-25
A149: Freitag | B149: =DATEVALUE(H$122)+5 -> 43581 | D149: Osterferien | E149: 2019-04-26
A150: Donnerstag | B150: =DATEVALUE(H$122)+39 -> 43615 | D150: FT-Ch. Himmelfahrt | E150: 2019-05-30
A151: Sonntag | B151: =DATEVALUE(H$122)+49 -> 43625 | D151: FT-Pfingstsonntag | E151: 2019-06-09
A152: Montag | B152: =DATEVALUE(H$122)+50 -> 43626 | D152: FT-Pfingstmontag | E152: 2019-06-10
A153: Dienstag | B153: =DATEVALUE(H$122)+51 -> 43627 | D153: Pfingstferien | E153: 2019-06-11
A154: Mittwoch | B154: =DATEVALUE(H$122)+52 -> 43628 | D154: Pfingstferien | E154: 2019-06-12
A155: Donnerstag | B155: =DATEVALUE(H$122)+53 -> 43629 | D155: Pfingstferien | E155: 2019-06-13
A156: Freitag | B156: =DATEVALUE(H$122)+54 -> 43630 | D156: Pfingstferien | E156: 2019-06-14
A157: Samstag | B157: =DATEVALUE(H$122)+55 -> 43631 | D157: Pfingstferien | E157: 2019-06-15
A158: Sonntag | B158: =DATEVALUE(H$122)+56 -> 43632 | D158: Pfingstferien | E158: 2019-06-16
A159: Montag | B159: =DATEVALUE(H$122)+57 -> 43633 | D159: Pfingstferien | E159: 2019-06-17
A160: Dienstag | B160: =DATEVALUE(H$122)+58 -> 43634 | D160: Pfingstferien | E160: 2019-06-18
A161: Mittwoch | B161: =DATEVALUE(H$122)+59 -> 43635 | D161: Pfingstferien | E161: 2019-06-19
A162: Donnerstag | B162: =DATEVALUE(H$122)+60 -> 43636 | D162: FT-Fronleichnam | E162: 2019-06-20
A163: Freitag | B163: =DATEVALUE(H$122)+61 -> 43637 | D163: Pfingstferien | E163: 2019-06-21
A164: Montag | B164: =DATEVALUE(E164) -> 43675 | C164: =$H$104 -> 29.07. | D164: Sommerferien | E164: =CONCATENATE(C164,$H$105) -> 29.07.2019
A165: Dienstag | B165: =IF((B164+1)<$B$208,B164+1,$B$208) -> 43676 | D165: Sommerferien | E165: =B165 -> 2019-07-30
A166: Mittwoch | B166: 43677 | D166: Sommerferien | E166: 2019-07-31
A167: Donnerstag | B167: 43678 | D167: Sommerferien | E167: 2019-08-01
A168: Freitag | B168: 43679 | D168: Sommerferien | E168: 2019-08-02
A169: Samstag | B169: 43680 | D169: Sommerferien | E169: 2019-08-03
A170: Sonntag | B170: 43681 | D170: Sommerferien | E170: 2019-08-04
A171: Montag | B171: 43682 | D171: Sommerferien | E171: 2019-08-05
A172: Dienstag | B172: 43683 | D172: Sommerferien | E172: 2019-08-06
A173: Mittwoch | B173: 43684 | D173: Sommerferien | E173: 2019-08-07
A174: Donnerstag | B174: 43685 | D174: Sommerferien | E174: 2019-08-08
A175: Freitag | B175: 43686 | D175: Sommerferien | E175: 2019-08-09
A176: Samstag | B176: 43687 | D176: Sommerferien | E176: 2019-08-10
A177: Sonntag | B177: 43688 | D177: Sommerferien | E177: 2019-08-11
A178: Montag | B178: 43689 | D178: Sommerferien | E178: 2019-08-12
A179: Dienstag | B179: 43690 | D179: Sommerferien | E179: 2019-08-13
A180: Mittwoch | B180: 43691 | D180: Sommerferien | E180: 2019-08-14
A181: Donnerstag | B181: 43692 | D181: Sommerferien | E181: 2019-08-15
A182: Freitag | B182: 43693 | D182: Sommerferien | E182: 2019-08-16
A183: Samstag | B183: 43694 | D183: Sommerferien | E183: 2019-08-17
A184: Sonntag | B184: 43695 | D184: Sommerferien | E184: 2019-08-18
A185: Montag | B185: 43696 | D185: Sommerferien | E185: 2019-08-19
A186: Dienstag | B186: 43697 | D186: Sommerferien | E186: 2019-08-20
A187: Mittwoch | B187: 43698 | D187: Sommerferien | E187: 2019-08-21
A188: Donnerstag | B188: 43699 | D188: Sommerferien | E188: 2019-08-22
A189: Freitag | B189: 43700 | D189: Sommerferien | E189: 2019-08-23
A190: Samstag | B190: 43701 | D190: Sommerferien | E190: 2019-08-24
A191: Sonntag | B191: 43702 | D191: Sommerferien | E191: 2019-08-25
A192: Montag | B192: 43703 | D192: Sommerferien | E192: 2019-08-26
A193: Dienstag | B193: 43704 | D193: Sommerferien | E193: 2019-08-27
A194: Mittwoch | B194: 43705 | D194: Sommerferien | E194: 2019-08-28
A195: Donnerstag | B195: 43706 | D195: Sommerferien | E195: 2019-08-29
A196: Freitag | B196: 43707 | D196: Sommerferien | E196: 2019-08-30
A197: Samstag | B197: 43708 | D197: Sommerferien | E197: 2019-08-31
A198: Sonntag | B198: 43709 | D198: Sommerferien | E198: 2019-09-01
A199: Montag | B199: 43710 | D199: Sommerferien | E199: 2019-09-02
A200: Dienstag | B200: 43711 | D200: Sommerferien | E200: 2019-09-03
... 8 more rows

Sheet Kalender
A1: Wochentag | B1: Datum | C1: Fixtage | D1: Geburtstage | G1: =TODAY() -> 2018-06-18 | H1: Termine eingeben | I1: TT.MM.
A2: =CHOOSE(WEEKDAY(B2),"Sonntag","Montag","Dienstag","Mittwoch","Donnerstag","Freitag","Samstag") -> Freitag | B2: =TODAY()-3 -> 2018-06-15 | C2: =IFERROR(VLOOKUP(B2,Fixtermine!$B$1:$E$208,3,FALSE),"") ->  | D2: =IFERROR(VLOOKUP(B2,Geburtstage!$H:$I,2,FALSE),"") ->  | H2: Beginn der Sommerferien | I2: 30.07. | J2: <<(Punkte nicht vergessen)
A3: =CHOOSE(WEEKDAY(B3),"Sonntag","Montag","Dienstag","Mittwoch","Donnerstag","Freitag","Samstag") -> Samstag | B3: =B2+1 -> 2018-06-16 | C3: =IFERROR(VLOOKUP(B3,Fixtermine!$B$1:$E$208,3,FALSE),"") ->  | D3: =IFERROR(VLOOKUP(B3,Geburtstage!$H:$I,2,FALSE),"") ->  | H3: Ende der Sommerferien | I3: 12.09. | J3: <<(Punkte nicht vergessen)
A4: Sonntag | B4: 2018-06-17 | C4: =IFERROR(VLOOKUP(B4,Fixtermine!$B$1:$E$208,3,FALSE),"") ->  | D4: =IFERROR(VLOOKUP(B4,Geburtstage!$H:$I,2,FALSE),"") -> 
A5: Montag | B5: 2018-06-18 | C5: =IFERROR(VLOOKUP(B5,Fixtermine!$B$1:$E$208,3,FALSE),"") ->  | D5: =IFERROR(VLOOKUP(B5,Geburtstage!$H:$I,2,FALSE),"") -> 
A6: Dienstag | B6: 2018-06-19 | C6: =IFERROR(VLOOKUP(B6,Fixtermine!$B$1:$E$208,3,FALSE),"") ->  | D6: =IFERROR(VLOOKUP(B6,Geburtstage!$H:$I,2,FALSE),"") -> 
A7: Mittwoch | B7: 2018-06-20 | C7: =IFERROR(VLOOKUP(B7,Fixtermine!$B$1:$E$208,3,FALSE),"") ->  | D7: =IFERROR(VLOOKUP(B7,Geburtstage!$H:$I,2,FALSE),"") -> 
A8: Donnerstag | B8: 2018-06-21 | C8: =IFERROR(VLOOKUP(B8,Fixtermine!$B$1:$E$208,3,FALSE),"") ->  | D8: =IFERROR(VLOOKUP(B8,Geburtstage!$H:$I,2,FALSE),"") -> 
A9: Freitag | B9: 2018-06-22 | C9: =IFERROR(VLOOKUP(B9,Fixtermine!$B$1:$E$208,3,FALSE),"") ->  | D9: =IFERROR(VLOOKUP(B9,Geburtstage!$H:$I,2,FALSE),"") -> 
A10: Samstag | B10: 2018-06-23 | C10: =IFERROR(VLOOKUP(B10,Fixtermine!$B$1:$E$208,3,FALSE),"") ->  | D10: =IFERROR(VLOOKUP(B10,Geburtstage!$H:$I,2,FALSE),"") -> 
A11: Sonntag | B11: 2018-06-24 | C11: =IFERROR(VLOOKUP(B11,Fixtermine!$B$1:$E$208,3,FALSE),"") ->  | D11: =IFERROR(VLOOKUP(B11,Geburtstage!$H:$I,2,FALSE),"") -> 
A12: Montag | B12: 2018-06-25 | C12: =IFERROR(VLOOKUP(B12,Fixtermine!$B$1:$E$208,3,FALSE),"") ->  | D12: =IFERROR(VLOOKUP(B12,Geburtstage!$H:$I,2,FALSE),"") -> George Michael (55)
A13: Dienstag | B13: 2018-06-26 | C13: =IFERROR(VLOOKUP(B13,Fixtermine!$B$1:$E$208,3,FALSE),"") ->  | D13: =IFERROR(VLOOKUP(B13,Geburtstage!$H:$I,2,FALSE),"") -> 
A14: Mittwoch | B14: 2018-06-27 | C14: =IFERROR(VLOOKUP(B14,Fixtermine!$B$1:$E$208,3,FALSE),"") ->  | D14: =IFERROR(VLOOKUP(B14,Geburtstage!$H:$I,2,FALSE),"") -> 
A15: Donnerstag | B15: 2018-06-28 | C15: =IFERROR(VLOOKUP(B15,Fixtermine!$B$1:$E$208,3,FALSE),"") ->  | D15: =IFERROR(VLOOKUP(B15,Geburtstage!$H:$I,2,FALSE),"") -> 
A16: Freitag | B16: 2018-06-29 | C16: =IFERROR(VLOOKUP(B16,Fixtermine!$B$1:$E$208,3,FALSE),"") ->  | D16: =IFERROR(VLOOKUP(B16,Geburtstage!$H:$I,2,FALSE),"") -> 
A17: Samstag | B17: 2018-06-30 | C17: =IFERROR(VLOOKUP(B17,Fixtermine!$B$1:$E$208,3,FALSE),"") ->  | D17: =IFERROR(VLOOKUP(B17,Geburtstage!$H:$I,2,FALSE),"") -> 
A18: Sonntag | B18: 2018-07-01 | C18: =IFERROR(VLOOKUP(B18,Fixtermine!$B$1:$E$208,3,FALSE),"") ->  | D18: =IFERROR(VLOOKUP(B18,Geburtstage!$H:$I,2,FALSE),"") -> 
A19: Montag | B19: 2018-07-02 | C19: =IFERROR(VLOOKUP(B19,Fixtermine!$B$1:$E$208,3,FALSE),"") ->  | D19: =IFERROR(VLOOKUP(B19,Geburtstage!$H:$I,2,FALSE),"") -> 
A20: Dienstag | B20: 2018-07-03 | C20: =IFERROR(VLOOKUP(B20,Fixtermine!$B$1:$E$208,3,FALSE),"") ->  | D20: =IFERROR(VLOOKUP(B20,Geburtstage!$H:$I,2,FALSE),"") -> 
A21: Mittwoch | B21: 2018-07-04 | C21: =IFERROR(VLOOKUP(B21,Fixtermine!$B$1:$E$208,3,FALSE),"") ->  | D21: =IFERROR(VLOOKUP(B21,Geburtstage!$H:$I,2,FALSE),"") -> 
A22: Donnerstag | B22: 2018-07-05 | C22: =IFERROR(VLOOKUP(B22,Fixtermine!$B$1:$E$208,3,FALSE),"") ->  | D22: =IFERROR(VLOOKUP(B22,Geburtstage!$H:$I,2,FALSE),"") -> 
A23: Freitag | B23: 2018-07-06 | C23: =IFERROR(VLOOKUP(B23,Fixtermine!$B$1:$E$208,3,FALSE),"") ->  | D23: =IFERROR(VLOOKUP(B23,Geburtstage!$H:$I,2,FALSE),"") -> Billi Haley (93)
A24: Samstag | B24: 2018-07-07 | C24: =IFERROR(VLOOKUP(B24,Fixtermine!$B$1:$E$208,3,FALSE),"") ->  | D24: =IFERROR(VLOOKUP(B24,Geburtstage!$H:$I,2,FALSE),"") -> 
A25: Sonntag | B25: 2018-07-08 | C25: =IFERROR(VLOOKUP(B25,Fixtermine!$B$1:$E$208,3,FALSE),"") ->  | D25: =IFERROR(VLOOKUP(B25,Geburtstage!$H:$I,2,FALSE),"") -> 
A26: Montag | B26: 2018-07-09 | C26: =IFERROR(VLOOKUP(B26,Fixtermine!$B$1:$E$208,3,FALSE),"") ->  | D26: =IFERROR(VLOOKUP(B26,Geburtstage!$H:$I,2,FALSE),"") -> Bon Scott (72)
A27: Dienstag | B27: 2018-07-10 | C27: =IFERROR(VLOOKUP(B27,Fixtermine!$B$1:$E$208,3,FALSE),"") ->  | D27: =IFERROR(VLOOKUP(B27,Geburtstage!$H:$I,2,FALSE),"") -> 
A28: Mittwoch | B28: 2018-07-11 | C28: =IFERROR(VLOOKUP(B28,Fixtermine!$B$1:$E$208,3,FALSE),"") ->  | D28: =IFERROR(VLOOKUP(B28,Geburtstage!$H:$I,2,FALSE),"") -> 
A29: Donnerstag | B29: 2018-07-12 | C29: =IFERROR(VLOOKUP(B29,Fixtermine!$B$1:$E$208,3,FALSE),"") ->  | D29: =IFERROR(VLOOKUP(B29,Geburtstage!$H:$I,2,FALSE),"") -> 
A30: Freitag | B30: 2018-07-13 | C30: =IFERROR(VLOOKUP(B30,Fixtermine!$B$1:$E$208,3,FALSE),"") ->  | D30: =IFERROR(VLOOKUP(B30,Geburtstage!$H:$I,2,FALSE),"") -> 
A31: Samstag | B31: 2018-07-14 | C31: =IFERROR(VLOOKUP(B31,Fixtermine!$B$1:$E$208,3,FALSE),"") ->  | D31: =IFERROR(VLOOKUP(B31,Geburtstage!$H:$I,2,FALSE),"") -> 
A32: Sonntag | B32: 2018-07-15 | C32: =IFERROR(VLOOKUP(B32,Fixtermine!$B$1:$E$208,3,FALSE),"") ->  | D32: =IFERROR(VLOOKUP(B32,Geburtstage!$H:$I,2,FALSE),"") -> 
A33: Montag | B33: 2018-07-16 | C33: =IFERROR(VLOOKUP(B33,Fixtermine!$B$1:$E$208,3,FALSE),"") ->  | D33: =IFERROR(VLOOKUP(B33,Geburtstage!$H:$I,2,FALSE),"") -> 
A34: Dienstag | B34: 2018-07-17 | C34: =IFERROR(VLOOKUP(B34,Fixtermine!$B$1:$E$208,3,FALSE),"") ->  | D34: =IFERROR(VLOOKUP(B34,Geburtstage!$H:$I,2,FALSE),"") -> 
A35: Mittwoch | B35: 2018-07-18 | C35: =IFERROR(VLOOKUP(B35,Fixtermine!$B$1:$E$208,3,FALSE),"") ->  | D35: =IFERROR(VLOOKUP(B35,Geburtstage!$H:$I,2,FALSE),"") -> 
A36: Donnerstag | B36: 2018-07-19 | C36: =IFERROR(VLOOKUP(B36,Fixtermine!$B$1:$E$208,3,FALSE),"") ->  | D36: =IFERROR(VLOOKUP(B36,Geburtstage!$H:$I,2,FALSE),"") -> 
A37: Freitag | B37: 2018-07-20 | C37: =IFERROR(VLOOKUP(B37,Fixtermine!$B$1:$E$208,3,FALSE),"") ->  | D37: =IFERROR(VLOOKUP(B37,Geburtstage!$H:$I,2,FALSE),"") -> 
A38: Samstag | B38: 2018-07-21 | C38: =IFERROR(VLOOKUP(B38,Fixtermine!$B$1:$E$208,3,FALSE),"") ->  | D38: =IFERROR(VLOOKUP(B38,Geburtstage!$H:$I,2,FALSE),"") -> 
A39: Sonntag | B39: 2018-07-22 | C39: =IFERROR(VLOOKUP(B39,Fixtermine!$B$1:$E$208,3,FALSE),"") ->  | D39: =IFERROR(VLOOKUP(B39,Geburtstage!$H:$I,2,FALSE),"") -> 
A40: Montag | B40: 2018-07-23 | C40: =IFERROR(VLOOKUP(B40,Fixtermine!$B$1:$E$208,3,FALSE),"") ->  | D40: =IFERROR(VLOOKUP(B40,Geburtstage!$H:$I,2,FALSE),"") -> 
A41: Dienstag | B41: 2018-07-24 | C41: =IFERROR(VLOOKUP(B41,Fixtermine!$B$1:$E$208,3,FALSE),"") ->  | D41: =IFERROR(VLOOKUP(B41,Geburtstage!$H:$I,2,FALSE),"") -> 
A42: Mittwoch | B42: 2018-07-25 | C42: =IFERROR(VLOOKUP(B42,Fixtermine!$B$1:$E$208,3,FALSE),"") ->  | D42: =IFERROR(VLOOKUP(B42,Geburtstage!$H:$I,2,FALSE),"") -> 
A43: Donnerstag | B43: 2018-07-26 | C43: =IFERROR(VLOOKUP(B43,Fixtermine!$B$1:$E$208,3,FALSE),"") ->  | D43: =IFERROR(VLOOKUP(B43,Geburtstage!$H:$I,2,FALSE),"") -> 
A44: Freitag | B44: 2018-07-27 | C44: =IFERROR(VLOOKUP(B44,Fixtermine!$B$1:$E$208,3,FALSE),"") ->  | D44: =IFERROR(VLOOKUP(B44,Geburtstage!$H:$I,2,FALSE),"") -> 
A45: Samstag | B45: 2018-07-28 | C45: =IFERROR(VLOOKUP(B45,Fixtermine!$B$1:$E$208,3,FALSE),"") ->  | D45: =IFERROR(VLOOKUP(B45,Geburtstage!$H:$I,2,FALSE),"") -> 
A46: Sonntag | B46: 2018-07-29 | C46: =IFERROR(VLOOKUP(B46,Fixtermine!$B$1:$E$208,3,FALSE),"") ->  | D46: =IFERROR(VLOOKUP(B46,Geburtstage!$H:$I,2,FALSE),"") -> 
A47: Montag | B47: 2018-07-30 | C47: =IFERROR(VLOOKUP(B47,Fixtermine!$B$1:$E$208,3,FALSE),"") -> Sommerferien | D47: =IFERROR(VLOOKUP(B47,Geburtstage!$H:$I,2,FALSE),"") -> 
A48: Dienstag | B48: 2018-07-31 | C48: =IFERROR(VLOOKUP(B48,Fixtermine!$B$1:$E$208,3,FALSE),"") -> Sommerferien | D48: =IFERROR(VLOOKUP(B48,Geburtstage!$H:$I,2,FALSE),"") -> 
A49: Mittwoch | B49: 2018-08-01 | C49: =IFERROR(VLOOKUP(B49,Fixtermine!$B$1:$E$208,3,FALSE),"") -> Sommerferien | D49: =IFERROR(VLOOKUP(B49,Geburtstage!$H:$I,2,FALSE),"") -> 
A50: Donnerstag | B50: 2018-08-02 | C50: =IFERROR(VLOOKUP(B50,Fixtermine!$B$1:$E$208,3,FALSE),"") -> Sommerferien | D50: =IFERROR(VLOOKUP(B50,Geburtstage!$H:$I,2,FALSE),"") -> 
A51: Freitag | B51: 2018-08-03 | C51: =IFERROR(VLOOKUP(B51,Fixtermine!$B$1:$E$208,3,FALSE),"") -> Sommerferien | D51: =IFERROR(VLOOKUP(B51,Geburtstage!$H:$I,2,FALSE),"") -> 
A52: Samstag | B52: 2018-08-04 | C52: =IFERROR(VLOOKUP(B52,Fixtermine!$B$1:$E$208,3,FALSE),"") -> Sommerferien | D52: =IFERROR(VLOOKUP(B52,Geburtstage!$H:$I,2,FALSE),"") -> 
A53: Sonntag | B53: 2018-08-05 | C53: =IFERROR(VLOOKUP(B53,Fixtermine!$B$1:$E$208,3,FALSE),"") -> Sommerferien | D53: =IFERROR(VLOOKUP(B53,Geburtstage!$H:$I,2,FALSE),"") -> 
A54: Montag | B54: 2018-08-06 | C54: =IFERROR(VLOOKUP(B54,Fixtermine!$B$1:$E$208,3,FALSE),"") -> Sommerferien | D54: =IFERROR(VLOOKUP(B54,Geburtstage!$H:$I,2,FALSE),"") -> 
A55: Dienstag | B55: 2018-08-07 | C55: =IFERROR(VLOOKUP(B55,Fixtermine!$B$1:$E$208,3,FALSE),"") -> Sommerferien | D55: =IFERROR(VLOOKUP(B55,Geburtstage!$H:$I,2,FALSE),"") -> 
A56: Mittwoch | B56: 2018-08-08 | C56: =IFERROR(VLOOKUP(B56,Fixtermine!$B$1:$E$208,3,FALSE),"") -> Sommerferien | D56: =IFERROR(VLOOKUP(B56,Geburtstage!$H:$I,2,FALSE),"") -> 
A57: Donnerstag | B57: 2018-08-09 | C57: =IFERROR(VLOOKUP(B57,Fixtermine!$B$1:$E$208,3,FALSE),"") -> Sommerferien | D57: =IFERROR(VLOOKUP(B57,Geburtstage!$H:$I,2,FALSE),"") -> 
A58: Freitag | B58: 2018-08-10 | C58: =IFERROR(VLOOKUP(B58,Fixtermine!$B$1:$E$208,3,FALSE),"") -> Sommerferien | D58: =IFERROR(VLOOKUP(B58,Geburtstage!$H:$I,2,FALSE),"") -> 
A59: Samstag | B59: 2018-08-11 | C59: =IFERROR(VLOOKUP(B59,Fixtermine!$B$1:$E$208,3,FALSE),"") -> Sommerferien | D59: =IFERROR(VLOOKUP(B59,Geburtstage!$H:$I,2,FALSE),"") -> 
A60: Sonntag | B60: 2018-08-12 | C60: =IFERROR(VLOOKUP(B60,Fixtermine!$B$1:$E$208,3,FALSE),"") -> Sommerferien | D60: =IFERROR(VLOOKUP(B60,Geburtstage!$H:$I,2,FALSE),"") -> 
A61: Montag | B61: 2018-08-13 | C61: =IFERROR(VLOOKUP(B61,Fixtermine!$B$1:$E$208,3,FALSE),"") -> Sommerferien | D61: =IFERROR(VLOOKUP(B61,Geburtstage!$H:$I,2,FALSE),"") -> 
A62: Dienstag | B62: 2018-08-14 | C62: =IFERROR(VLOOKUP(B62,Fixtermine!$B$1:$E$208,3,FALSE),"") -> Sommerferien | D62: =IFERROR(VLOOKUP(B62,Geburtstage!$H:$I,2,FALSE),"") -> 
A63: Mittwoch | B63: 2018-08-15 | C63: =IFERROR(VLOOKUP(B63,Fixtermine!$B$1:$E$208,3,FALSE),"") -> FT-Maria Himmeklfahrt | D63: =IFERROR(VLOOKUP(B63,Geburtstage!$H:$I,2,FALSE),"") -> 
A64: Donnerstag | B64: 2018-08-16 | C64: =IFERROR(VLOOKUP(B64,Fixtermine!$B$1:$E$208,3,FALSE),"") -> Sommerferien | D64: =IFERROR(VLOOKUP(B64,Geburtstage!$H:$I,2,FALSE),"") -> 
A65: Freitag | B65: 2018-08-17 | C65: =IFERROR(VLOOKUP(B65,Fixtermine!$B$1:$E$208,3,FALSE),"") -> Sommerferien | D65: =IFERROR(VLOOKUP(B65,Geburtstage!$H:$I,2,FALSE),"") -> 
A66: Samstag | B66: 2018-08-18 | C66: =IFERROR(VLOOKUP(B66,Fixtermine!$B$1:$E$208,3,FALSE),"") -> Sommerferien | D66: =IFERROR(VLOOKUP(B66,Geburtstage!$H:$I,2,FALSE),"") -> 
A67: =CHOOSE(WEEKDAY(B67),"Sonntag","Montag","Dienstag","Mittwoch","Donnerstag","Freitag","Samstag") -> Sonntag | B67: 2018-08-19 | C67: =IFERROR(VLOOKUP(B67,Fixtermine!$B$1:$E$208,3,FALSE),"") -> Sommerferien | D67: =IFERROR(VLOOKUP(B67,Geburtstage!$H:$I,2,FALSE),"") -> 
A68: Montag | B68: 2018-08-20 | C68: =IFERROR(VLOOKUP(B68,Fixtermine!$B$1:$E$208,3,FALSE),"") -> Sommerferien | D68: =IFERROR(VLOOKUP(B68,Geburtstage!$H:$I,2,FALSE),"") -> 
A69: Dienstag | B69: =B68+1 -> 2018-08-21 | C69: =IFERROR(VLOOKUP(B69,Fixtermine!$B$1:$E$208,3,FALSE),"") -> Sommerferien | D69: =IFERROR(VLOOKUP(B69,Geburtstage!$H:$I,2,FALSE),"") -> 
A70: Mittwoch | B70: 2018-08-22 | C70: =IFERROR(VLOOKUP(B70,Fixtermine!$B$1:$E$208,3,FALSE),"") -> Sommerferien | D70: =IFERROR(VLOOKUP(B70,Geburtstage!$H:$I,2,FALSE),"") -> 
A71: Donnerstag | B71: 2018-08-23 | C71: =IFERROR(VLOOKUP(B71,Fixtermine!$B$1:$E$208,3,FALSE),"") -> Sommerferien | D71: =IFERROR(VLOOKUP(B71,Geburtstage!$H:$I,2,FALSE),"") -> 
A72: Freitag | B72: 2018-08-24 | C72: =IFERROR(VLOOKUP(B72,Fixtermine!$B$1:$E$208,3,FALSE),"") -> Sommerferien | D72: =IFERROR(VLOOKUP(B72,Geburtstage!$H:$I,2,FALSE),"") -> 
A73: Samstag | B73: 2018-08-25 | C73: =IFERROR(VLOOKUP(B73,Fixtermine!$B$1:$E$208,3,FALSE),"") -> Sommerferien | D73: =IFERROR(VLOOKUP(B73,Geburtstage!$H:$I,2,FALSE),"") -> 
A74: Sonntag | B74: 2018-08-26 | C74: =IFERROR(VLOOKUP(B74,Fixtermine!$B$1:$E$208,3,FALSE),"") -> Sommerferien | D74: =IFERROR(VLOOKUP(B74,Geburtstage!$H:$I,2,FALSE),"") -> 
A75: Montag | B75: 2018-08-27 | C75: =IFERROR(VLOOKUP(B75,Fixtermine!$B$1:$E$208,3,FALSE),"") -> Sommerferien | D75: =IFERROR(VLOOKUP(B75,Geburtstage!$H:$I,2,FALSE),"") -> 
A76: Dienstag | B76: 2018-08-28 | C76: =IFERROR(VLOOKUP(B76,Fixtermine!$B$1:$E$208,3,FALSE),"") -> Sommerferien | D76: =IFERROR(VLOOKUP(B76,Geburtstage!$H:$I,2,FALSE),"") -> 
A77: Mittwoch | B77: 2018-08-29 | C77: =IFERROR(VLOOKUP(B77,Fixtermine!$B$1:$E$208,3,FALSE),"") -> Sommerferien | D77: =IFERROR(VLOOKUP(B77,Geburtstage!$H:$I,2,FALSE),"") -> Michael Jackson (60)
A78: Donnerstag | B78: 2018-08-30 | C78: =IFERROR(VLOOKUP(B78,Fixtermine!$B$1:$E$208,3,FALSE),"") -> Sommerferien | D78: =IFERROR(VLOOKUP(B78,Geburtstage!$H:$I,2,FALSE),"") -> 
A79: Freitag | B79: 2018-08-31 | C79: =IFERROR(VLOOKUP(B79,Fixtermine!$B$1:$E$208,3,FALSE),"") -> Sommerferien | D79: =IFERROR(VLOOKUP(B79,Geburtstage!$H:$I,2,FALSE),"") -> 
A80: Samstag | B80: 2018-09-01 | C80: =IFERROR(VLOOKUP(B80,Fixtermine!$B$1:$E$208,3,FALSE),"") -> Sommerferien | D80: =IFERROR(VLOOKUP(B80,Geburtstage!$H:$I,2,FALSE),"") -> 
A81: Sonntag | B81: 2018-09-02 | C81: =IFERROR(VLOOKUP(B81,Fixtermine!$B$1:$E$208,3,FALSE),"") -> Sommerferien | D81: =IFERROR(VLOOKUP(B81,Geburtstage!$H:$I,2,FALSE),"") -> 
A82: Montag | B82: 2018-09-03 | C82: =IFERROR(VLOOKUP(B82,Fixtermine!$B$1:$E$208,3,FALSE),"") -> Sommerferien | D82: =IFERROR(VLOOKUP(B82,Geburtstage!$H:$I,2,FALSE),"") -> 
A83: Dienstag | B83: 2018-09-04 | C83: =IFERROR(VLOOKUP(B83,Fixtermine!$B$1:$E$208,3,FALSE),"") -> Sommerferien | D83: =IFERROR(VLOOKUP(B83,Geburtstage!$H:$I,2,FALSE),"") -> 
A84: Mittwoch | B84: 2018-09-05 | C84: =IFERROR(VLOOKUP(B84,Fixtermine!$B$1:$E$208,3,FALSE),"") -> Sommerferien | D84: =IFERROR(VLOOKUP(B84,Geburtstage!$H:$I,2,FALSE),"") -> Freddy Mercury (72)
A85: Donnerstag | B85: 2018-09-06 | C85: =IFERROR(VLOOKUP(B85,Fixtermine!$B$1:$E$208,3,FALSE),"") -> Sommerferien | D85: =IFERROR(VLOOKUP(B85,Geburtstage!$H:$I,2,FALSE),"") -> 
A86: Freitag | B86: 2018-09-07 | C86: =IFERROR(VLOOKUP(B86,Fixtermine!$B$1:$E$208,3,FALSE),"") -> Sommerferien | D86: =IFERROR(VLOOKUP(B86,Geburtstage!$H:$I,2,FALSE),"") -> 
A87: Samstag | B87: 2018-09-08 | C87: =IFERROR(VLOOKUP(B87,Fixtermine!$B$1:$E$208,3,FALSE),"") -> Sommerferien | D87: =IFERROR(VLOOKUP(B87,Geburtstage!$H:$I,2,FALSE),"") -> 
A88: Sonntag | B88: 2018-09-09 | C88: =IFERROR(VLOOKUP(B88,Fixtermine!$B$1:$E$208,3,FALSE),"") -> Sommerferien | D88: =IFERROR(VLOOKUP(B88,Geburtstage!$H:$I,2,FALSE),"") -> 
A89: Montag | B89: 2018-09-10 | C89: =IFERROR(VLOOKUP(B89,Fixtermine!$B$1:$E$208,3,FALSE),"") -> Sommerferien | D89: =IFERROR(VLOOKUP(B89,Geburtstage!$H:$I,2,FALSE),"") -> 
A90: Dienstag | B90: 2018-09-11 | C90: =IFERROR(VLOOKUP(B90,Fixtermine!$B$1:$E$208,3,FALSE),"") ->  | D90: =IFERROR(VLOOKUP(B90,Geburtstage!$H:$I,2,FALSE),"") -> 
A91: Mittwoch | B91: 2018-09-12 | C91: =IFERROR(VLOOKUP(B91,Fixtermine!$B$1:$E$208,3,FALSE),"") ->  | D91: =IFERROR(VLOOKUP(B91,Geburtstage!$H:$I,2,FALSE),"") -> 
A92: Donnerstag | B92: 2018-09-13 | C92: =IFERROR(VLOOKUP(B92,Fixtermine!$B$1:$E$208,3,FALSE),"") ->  | D92: =IFERROR(VLOOKUP(B92,Geburtstage!$H:$I,2,FALSE),"") -> 
A93: Freitag | B93: 2018-09-14 | C93: =IFERROR(VLOOKUP(B93,Fixtermine!$B$1:$E$208,3,FALSE),"") ->  | D93: =IFERROR(VLOOKUP(B93,Geburtstage!$H:$I,2,FALSE),"") -> 
A94: Samstag | B94: 2018-09-15 | C94: =IFERROR(VLOOKUP(B94,Fixtermine!$B$1:$E$208,3,FALSE),"") ->  | D94: =IFERROR(VLOOKUP(B94,Geburtstage!$H:$I,2,FALSE),"") -> 
A95: Sonntag | B95: 2018-09-16 | C95: =IFERROR(VLOOKUP(B95,Fixtermine!$B$1:$E$208,3,FALSE),"") ->  | D95: =IFERROR(VLOOKUP(B95,Geburtstage!$H:$I,2,FALSE),"") -> 
A96: Montag | B96: 2018-09-17 | C96: =IFERROR(VLOOKUP(B96,Fixtermine!$B$1:$E$208,3,FALSE),"") ->  | D96: =IFERROR(VLOOKUP(B96,Geburtstage!$H:$I,2,FALSE),"") -> 
A97: Dienstag | B97: 2018-09-18 | C97: =IFERROR(VLOOKUP(B97,Fixtermine!$B$1:$E$208,3,FALSE),"") ->  | D97: =IFERROR(VLOOKUP(B97,Geburtstage!$H:$I,2,FALSE),"") -> 
A98: Mittwoch | B98: 2018-09-19 | C98: =IFERROR(VLOOKUP(B98,Fixtermine!$B$1:$E$208,3,FALSE),"") ->  | D98: =IFERROR(VLOOKUP(B98,Geburtstage!$H:$I,2,FALSE),"") -> 
A99: Donnerstag | B99: 2018-09-20 | C99: =IFERROR(VLOOKUP(B99,Fixtermine!$B$1:$E$208,3,FALSE),"") ->  | D99: =IFERROR(VLOOKUP(B99,Geburtstage!$H:$I,2,FALSE),"") -> 
A100: Freitag | B100: 2018-09-21 | C100: =IFERROR(VLOOKUP(B100,Fixtermine!$B$1:$E$208,3,FALSE),"") ->  | D100: =IFERROR(VLOOKUP(B100,Geburtstage!$H:$I,2,FALSE),"") -> Leonard Cohen (75)
A101: Samstag | B101: 2018-09-22 | C101: =IFERROR(VLOOKUP(B101,Fixtermine!$B$1:$E$208,3,FALSE),"") ->  | D101: =IFERROR(VLOOKUP(B101,Geburtstage!$H:$I,2,FALSE),"") -> 
A102: Sonntag | B102: 2018-09-23 | C102: =IFERROR(VLOOKUP(B102,Fixtermine!$B$1:$E$208,3,FALSE),"") ->  | D102: =IFERROR(VLOOKUP(B102,Geburtstage!$H:$I,2,FALSE),"") -> Ray Charles (88)
A103: Montag | B103: 2018-09-24 | C103: =IFERROR(VLOOKUP(B103,Fixtermine!$B$1:$E$208,3,FALSE),"") ->  | D103: =IFERROR(VLOOKUP(B103,Geburtstage!$H:$I,2,FALSE),"") -> 
A104: Dienstag | B104: 2018-09-25 | C104: =IFERROR(VLOOKUP(B104,Fixtermine!$B$1:$E$208,3,FALSE),"") ->  | D104: =IFERROR(VLOOKUP(B104,Geburtstage!$H:$I,2,FALSE),"") -> 
A105: Mittwoch | B105: 2018-09-26 | C105: =IFERROR(VLOOKUP(B105,Fixtermine!$B$1:$E$208,3,FALSE),"") ->  | D105: =IFERROR(VLOOKUP(B105,Geburtstage!$H:$I,2,FALSE),"") -> 
A106: Donnerstag | B106: 2018-09-27 | C106: =IFERROR(VLOOKUP(B106,Fixtermine!$B$1:$E$208,3,FALSE),"") ->  | D106: =IFERROR(VLOOKUP(B106,Geburtstage!$H:$I,2,FALSE),"") -> 
A107: Freitag | B107: 2018-09-28 | C107: =IFERROR(VLOOKUP(B107,Fixtermine!$B$1:$E$208,3,FALSE),"") ->  | D107: =IFERROR(VLOOKUP(B107,Geburtstage!$H:$I,2,FALSE),"") -> 
A108: Samstag | B108: 2018-09-29 | C108: =IFERROR(VLOOKUP(B108,Fixtermine!$B$1:$E$208,3,FALSE),"") ->  | D108: =IFERROR(VLOOKUP(B108,Geburtstage!$H:$I,2,FALSE),"") -> 
A109: Sonntag | B109: 2018-09-30 | C109: =IFERROR(VLOOKUP(B109,Fixtermine!$B$1:$E$208,3,FALSE),"") ->  | D109: =IFERROR(VLOOKUP(B109,Geburtstage!$H:$I,2,FALSE),"") -> 
A110: Montag | B110: 2018-10-01 | C110: =IFERROR(VLOOKUP(B110,Fixtermine!$B$1:$E$208,3,FALSE),"") ->  | D110: =IFERROR(VLOOKUP(B110,Geburtstage!$H:$I,2,FALSE),"") -> 
A111: Dienstag | B111: 2018-10-02 | C111: =IFERROR(VLOOKUP(B111,Fixtermine!$B$1:$E$208,3,FALSE),"") ->  | D111: =IFERROR(VLOOKUP(B111,Geburtstage!$H:$I,2,FALSE),"") -> 
A112: Mittwoch | B112: 2018-10-03 | C112: =IFERROR(VLOOKUP(B112,Fixtermine!$B$1:$E$208,3,FALSE),"") -> FT-Tag d. Deut. Einheit | D112: =IFERROR(VLOOKUP(B112,Geburtstage!$H:$I,2,FALSE),"") -> 
A113: Donnerstag | B113: 2018-10-04 | C113: =IFERROR(VLOOKUP(B113,Fixtermine!$B$1:$E$208,3,FALSE),"") ->  | D113: =IFERROR(VLOOKUP(B113,Geburtstage!$H:$I,2,FALSE),"") -> 
A114: Freitag | B114: 2018-10-05 | C114: =IFERROR(VLOOKUP(B114,Fixtermine!$B$1:$E$208,3,FALSE),"") ->  | D114: =IFERROR(VLOOKUP(B114,Geburtstage!$H:$I,2,FALSE),"") -> 
A115: Samstag | B115: 2018-10-06 | C115: =IFERROR(VLOOKUP(B115,Fixtermine!$B$1:$E$208,3,FALSE),"") ->  | D115: =IFERROR(VLOOKUP(B115,Geburtstage!$H:$I,2,FALSE),"") -> 
A116: Sonntag | B116: 2018-10-07 | C116: =IFERROR(VLOOKUP(B116,Fixtermine!$B$1:$E$208,3,FALSE),"") ->  | D116: =IFERROR(VLOOKUP(B116,Geburtstage!$H:$I,2,FALSE),"") -> Georg Danzer (72)
A117: Montag | B117: 2018-10-08 | C117: =IFERROR(VLOOKUP(B117,Fixtermine!$B$1:$E$208,3,FALSE),"") ->  | D117: =IFERROR(VLOOKUP(B117,Geburtstage!$H:$I,2,FALSE),"") -> 
A118: Dienstag | B118: 2018-10-09 | C118: =IFERROR(VLOOKUP(B118,Fixtermine!$B$1:$E$208,3,FALSE),"") ->  | D118: =IFERROR(VLOOKUP(B118,Geburtstage!$H:$I,2,FALSE),"") -> John Lennon (78)
A119: Mittwoch | B119: 2018-10-10 | C119: =IFERROR(VLOOKUP(B119,Fixtermine!$B$1:$E$208,3,FALSE),"") ->  | D119: =IFERROR(VLOOKUP(B119,Geburtstage!$H:$I,2,FALSE),"") -> 
A120: Donnerstag | B120: 2018-10-11 | C120: =IFERROR(VLOOKUP(B120,Fixtermine!$B$1:$E$208,3,FALSE),"") ->  | D120: =IFERROR(VLOOKUP(B120,Geburtstage!$H:$I,2,FALSE),"") -> 
A121: Freitag | B121: 2018-10-12 | C121: =IFERROR(VLOOKUP(B121,Fixtermine!$B$1:$E$208,3,FALSE),"") ->  | D121: =IFERROR(VLOOKUP(B121,Geburtstage!$H:$I,2,FALSE),"") -> 
A122: Samstag | B122: 2018-10-13 | C122: =IFERROR(VLOOKUP(B122,Fixtermine!$B$1:$E$208,3,FALSE),"") ->  | D122: =IFERROR(VLOOKUP(B122,Geburtstage!$H:$I,2,FALSE),"") -> 
A123: Sonntag | B123: 2018-10-14 | C123: =IFERROR(VLOOKUP(B123,Fixtermine!$B$1:$E$208,3,FALSE),"") ->  | D123: =IFERROR(VLOOKUP(B123,Geburtstage!$H:$I,2,FALSE),"") -> 
A124: Montag | B124: 2018-10-15 | C124: =IFERROR(VLOOKUP(B124,Fixtermine!$B$1:$E$208,3,FALSE),"") ->  | D124: =IFERROR(VLOOKUP(B124,Geburtstage!$H:$I,2,FALSE),"") -> 
A125: Dienstag | B125: 2018-10-16 | C125: =IFERROR(VLOOKUP(B125,Fixtermine!$B$1:$E$208,3,FALSE),"") ->  | D125: =IFERROR(VLOOKUP(B125,Geburtstage!$H:$I,2,FALSE),"") -> 
A126: Mittwoch | B126: 2018-10-17 | C126: =IFERROR(VLOOKUP(B126,Fixtermine!$B$1:$E$208,3,FALSE),"") ->  | D126: =IFERROR(VLOOKUP(B126,Geburtstage!$H:$I,2,FALSE),"") -> 
A127: Donnerstag | B127: 2018-10-18 | C127: =IFERROR(VLOOKUP(B127,Fixtermine!$B$1:$E$208,3,FALSE),"") ->  | D127: =IFERROR(VLOOKUP(B127,Geburtstage!$H:$I,2,FALSE),"") -> Chuck Berry (92)
A128: Freitag | B128: 2018-10-19 | C128: =IFERROR(VLOOKUP(B128,Fixtermine!$B$1:$E$208,3,FALSE),"") ->  | D128: =IFERROR(VLOOKUP(B128,Geburtstage!$H:$I,2,FALSE),"") -> 
A129: Samstag | B129: 2018-10-20 | C129: =IFERROR(VLOOKUP(B129,Fixtermine!$B$1:$E$208,3,FALSE),"") ->  | D129: =IFERROR(VLOOKUP(B129,Geburtstage!$H:$I,2,FALSE),"") -> 
A130: Sonntag | B130: 2018-10-21 | C130: =IFERROR(VLOOKUP(B130,Fixtermine!$B$1:$E$208,3,FALSE),"") ->  | D130: =IFERROR(VLOOKUP(B130,Geburtstage!$H:$I,2,FALSE),"") -> 
A131: =CHOOSE(WEEKDAY(B131),"Sonntag","Montag","Dienstag","Mittwoch","Donnerstag","Freitag","Samstag") -> Montag | B131: 2018-10-22 | C131: =IFERROR(VLOOKUP(B131,Fixtermine!$B$1:$E$208,3,FALSE),"") ->  | D131: =IFERROR(VLOOKUP(B131,Geburtstage!$H:$I,2,FALSE),"") -> 
A132: Dienstag | B132: 2018-10-23 | C132: =IFERROR(VLOOKUP(B132,Fixtermine!$B$1:$E$208,3,FALSE),"") ->  | D132: =IFERROR(VLOOKUP(B132,Geburtstage!$H:$I,2,FALSE),"") -> 
A133: Mittwoch | B133: =B132+1 -> 2018-10-24 | C133: =IFERROR(VLOOKUP(B133,Fixtermine!$B$1:$E$208,3,FALSE),"") ->  | D133: =IFERROR(VLOOKUP(B133,Geburtstage!$H:$I,2,FALSE),"") -> 
A134: Donnerstag | B134: 2018-10-25 | C134: =IFERROR(VLOOKUP(B134,Fixtermine!$B$1:$E$208,3,FALSE),"") ->  | D134: =IFERROR(VLOOKUP(B134,Geburtstage!$H:$I,2,FALSE),"") -> 
A135: Freitag | B135: 2018-10-26 | C135: =IFERROR(VLOOKUP(B135,Fixtermine!$B$1:$E$208,3,FALSE),"") ->  | D135: =IFERROR(VLOOKUP(B135,Geburtstage!$H:$I,2,FALSE),"") -> 
A136: Samstag | B136: 2018-10-27 | C136: =IFERROR(VLOOKUP(B136,Fixtermine!$B$1:$E$208,3,FALSE),"") ->  | D136: =IFERROR(VLOOKUP(B136,Geburtstage!$H:$I,2,FALSE),"") -> 
A137: Sonntag | B137: 2018-10-28 | C137: =IFERROR(VLOOKUP(B137,Fixtermine!$B$1:$E$208,3,FALSE),"") ->  | D137: =IFERROR(VLOOKUP(B137,Geburtstage!$H:$I,2,FALSE),"") -> 
A138: Montag | B138: 2018-10-29 | C138: =IFERROR(VLOOKUP(B138,Fixtermine!$B$1:$E$208,3,FALSE),"") -> Herbstferien | D138: =IFERROR(VLOOKUP(B138,Geburtstage!$H:$I,2,FALSE),"") -> 
A139: Dienstag | B139: 2018-10-30 | C139: =IFERROR(VLOOKUP(B139,Fixtermine!$B$1:$E$208,3,FALSE),"") -> Herbstferien | D139: =IFERROR(VLOOKUP(B139,Geburtstage!$H:$I,2,FALSE),"") -> 
A140: Mittwoch | B140: 2018-10-31 | C140: =IFERROR(VLOOKUP(B140,Fixtermine!$B$1:$E$208,3,FALSE),"") -> Herbstferien | D140: =IFERROR(VLOOKUP(B140,Geburtstage!$H:$I,2,FALSE),"") -> 
A141: Donnerstag | B141: 2018-11-01 | C141: =IFERROR(VLOOKUP(B141,Fixtermine!$B$1:$E$208,3,FALSE),"") -> FT-Allerheiligen | D141: =IFERROR(VLOOKUP(B141,Geburtstage!$H:$I,2,FALSE),"") -> 
A142: Freitag | B142: 2018-11-02 | C142: =IFERROR(VLOOKUP(B142,Fixtermine!$B$1:$E$208,3,FALSE),"") -> Herbstferien | D142: =IFERROR(VLOOKUP(B142,Geburtstage!$H:$I,2,FALSE),"") -> 
A143: Samstag | B143: 2018-11-03 | C143: =IFERROR(VLOOKUP(B143,Fixtermine!$B$1:$E$208,3,FALSE),"") ->  | D143: =IFERROR(VLOOKUP(B143,Geburtstage!$H:$I,2,FALSE),"") -> 
A144: Sonntag | B144: 2018-11-04 | C144: =IFERROR(VLOOKUP(B144,Fixtermine!$B$1:$E$208,3,FALSE),"") ->  | D144: =IFERROR(VLOOKUP(B144,Geburtstage!$H:$I,2,FALSE),"") -> 
A145: Montag | B145: 2018-11-05 | C145: =IFERROR(VLOOKUP(B145,Fixtermine!$B$1:$E$208,3,FALSE),"") ->  | D145: =IFERROR(VLOOKUP(B145,Geburtstage!$H:$I,2,FALSE),"") -> 
A146: Dienstag | B146: 2018-11-06 | C146: =IFERROR(VLOOKUP(B146,Fixtermine!$B$1:$E$208,3,FALSE),"") ->  | D146: =IFERROR(VLOOKUP(B146,Geburtstage!$H:$I,2,FALSE),"") -> Glenn Frey (70)
A147: Mittwoch | B147: 2018-11-07 | C147: =IFERROR(VLOOKUP(B147,Fixtermine!$B$1:$E$208,3,FALSE),"") ->  | D147: =IFERROR(VLOOKUP(B147,Geburtstage!$H:$I,2,FALSE),"") -> 
A148: Donnerstag | B148: 2018-11-08 | C148: =IFERROR(VLOOKUP(B148,Fixtermine!$B$1:$E$208,3,FALSE),"") ->  | D148: =IFERROR(VLOOKUP(B148,Geburtstage!$H:$I,2,FALSE),"") -> 
A149: Freitag | B149: 2018-11-09 | C149: =IFERROR(VLOOKUP(B149,Fixtermine!$B$1:$E$208,3,FALSE),"") ->  | D149: =IFERROR(VLOOKUP(B149,Geburtstage!$H:$I,2,FALSE),"") -> 
A150: Samstag | B150: 2018-11-10 | C150: =IFERROR(VLOOKUP(B150,Fixtermine!$B$1:$E$208,3,FALSE),"") ->  | D150: =IFERROR(VLOOKUP(B150,Geburtstage!$H:$I,2,FALSE),"") -> 
A151: Sonntag | B151: 2018-11-11 | C151: =IFERROR(VLOOKUP(B151,Fixtermine!$B$1:$E$208,3,FALSE),"") ->  | D151: =IFERROR(VLOOKUP(B151,Geburtstage!$H:$I,2,FALSE),"") -> 
A152: Montag | B152: 2018-11-12 | C152: =IFERROR(VLOOKUP(B152,Fixtermine!$B$1:$E$208,3,FALSE),"") ->  | D152: =IFERROR(VLOOKUP(B152,Geburtstage!$H:$I,2,FALSE),"") -> 
A153: Dienstag | B153: 2018-11-13 | C153: =IFERROR(VLOOKUP(B153,Fixtermine!$B$1:$E$208,3,FALSE),"") ->  | D153: =IFERROR(VLOOKUP(B153,Geburtstage!$H:$I,2,FALSE),"") -> 
A154: Mittwoch | B154: 2018-11-14 | C154: =IFERROR(VLOOKUP(B154,Fixtermine!$B$1:$E$208,3,FALSE),"") ->  | D154: =IFERROR(VLOOKUP(B154,Geburtstage!$H:$I,2,FALSE),"") -> 
A155: Donnerstag | B155: 2018-11-15 | C155: =IFERROR(VLOOKUP(B155,Fixtermine!$B$1:$E$208,3,FALSE),"") ->  | D155: =IFERROR(VLOOKUP(B155,Geburtstage!$H:$I,2,FALSE),"") -> 
A156: Freitag | B156: 2018-11-16 | C156: =IFERROR(VLOOKUP(B156,Fixtermine!$B$1:$E$208,3,FALSE),"") ->  | D156: =IFERROR(VLOOKUP(B156,Geburtstage!$H:$I,2,FALSE),"") -> Winfred "Blue" Lovett (75)
A157: Samstag | B157: 2018-11-17 | C157: =IFERROR(VLOOKUP(B157,Fixtermine!$B$1:$E$208,3,FALSE),"") ->  | D157: =IFERROR(VLOOKUP(B157,Geburtstage!$H:$I,2,FALSE),"") -> 
A158: Sonntag | B158: 2018-11-18 | C158: =IFERROR(VLOOKUP(B158,Fixtermine!$B$1:$E$208,3,FALSE),"") ->  | D158: =IFERROR(VLOOKUP(B158,Geburtstage!$H:$I,2,FALSE),"") -> 
A159: Montag | B159: 2018-11-19 | C159: =IFERROR(VLOOKUP(B159,Fixtermine!$B$1:$E$208,3,FALSE),"") ->  | D159: =IFERROR(VLOOKUP(B159,Geburtstage!$H:$I,2,FALSE),"") -> 
A160: Dienstag | B160: 2018-11-20 | C160: =IFERROR(VLOOKUP(B160,Fixtermine!$B$1:$E$208,3,FALSE),"") ->  | D160: =IFERROR(VLOOKUP(B160,Geburtstage!$H:$I,2,FALSE),"") -> 
A161: Mittwoch | B161: 2018-11-21 | C161: =IFERROR(VLOOKUP(B161,Fixtermine!$B$1:$E$208,3,FALSE),"") -> Buß- u. Bettag | D161: =IFERROR(VLOOKUP(B161,Geburtstage!$H:$I,2,FALSE),"") -> 
A162: Donnerstag | B162: 2018-11-22 | C162: =IFERROR(VLOOKUP(B162,Fixtermine!$B$1:$E$208,3,FALSE),"") ->  | D162: =IFERROR(VLOOKUP(B162,Geburtstage!$H:$I,2,FALSE),"") -> 
A163: Freitag | B163: 2018-11-23 | C163: =IFERROR(VLOOKUP(B163,Fixtermine!$B$1:$E$208,3,FALSE),"") ->  | D163: =IFERROR(VLOOKUP(B163,Geburtstage!$H:$I,2,FALSE),"") -> 
A164: Samstag | B164: 2018-11-24 | C164: =IFERROR(VLOOKUP(B164,Fixtermine!$B$1:$E$208,3,FALSE),"") ->  | D164: =IFERROR(VLOOKUP(B164,Geburtstage!$H:$I,2,FALSE),"") -> 
A165: Sonntag | B165: 2018-11-25 | C165: =IFERROR(VLOOKUP(B165,Fixtermine!$B$1:$E$208,3,FALSE),"") ->  | D165: =IFERROR(VLOOKUP(B165,Geburtstage!$H:$I,2,FALSE),"") -> 
A166: Montag | B166: 2018-11-26 | C166: =IFERROR(VLOOKUP(B166,Fixtermine!$B$1:$E$208,3,FALSE),"") ->  | D166: =IFERROR(VLOOKUP(B166,Geburtstage!$H:$I,2,FALSE),"") -> 
A167: Dienstag | B167: 2018-11-27 | C167: =IFERROR(VLOOKUP(B167,Fixtermine!$B$1:$E$208,3,FALSE),"") ->  | D167: =IFERROR(VLOOKUP(B167,Geburtstage!$H:$I,2,FALSE),"") -> 
A168: Mittwoch | B168: 2018-11-28 | C168: =IFERROR(VLOOKUP(B168,Fixtermine!$B$1:$E$208,3,FALSE),"") ->  | D168: =IFERROR(VLOOKUP(B168,Geburtstage!$H:$I,2,FALSE),"") -> 
A169: Donnerstag | B169: 2018-11-29 | C169: =IFERROR(VLOOKUP(B169,Fixtermine!$B$1:$E$208,3,FALSE),"") ->  | D169: =IFERROR(VLOOKUP(B169,Geburtstage!$H:$I,2,FALSE),"") -> 
A170: Freitag | B170: 2018-11-30 | C170: =IFERROR(VLOOKUP(B170,Fixtermine!$B$1:$E$208,3,FALSE),"") ->  | D170: =IFERROR(VLOOKUP(B170,Geburtstage!$H:$I,2,FALSE),"") -> 
A171: Samstag | B171: 2018-12-01 | C171: =IFERROR(VLOOKUP(B171,Fixtermine!$B$1:$E$208,3,FALSE),"") ->  | D171: =IFERROR(VLOOKUP(B171,Geburtstage!$H:$I,2,FALSE),"") -> 
A172: Sonntag | B172: 2018-12-02 | C172: =IFERROR(VLOOKUP(B172,Fixtermine!$B$1:$E$208,3,FALSE),"") -> 1. Advent | D172: =IFERROR(VLOOKUP(B172,Geburtstage!$H:$I,2,FALSE),"") -> 
A173: Montag | B173: 2018-12-03 | C173: =IFERROR(VLOOKUP(B173,Fixtermine!$B$1:$E$208,3,FALSE),"") ->  | D173: =IFERROR(VLOOKUP(B173,Geburtstage!$H:$I,2,FALSE),"") -> 
A174: Dienstag | B174: 2018-12-04 | C174: =IFERROR(VLOOKUP(B174,Fixtermine!$B$1:$E$208,3,FALSE),"") ->  | D174: =IFERROR(VLOOKUP(B174,Geburtstage!$H:$I,2,FALSE),"") -> 
A175: Mittwoch | B175: 2018-12-05 | C175: =IFERROR(VLOOKUP(B175,Fixtermine!$B$1:$E$208,3,FALSE),"") ->  | D175: =IFERROR(VLOOKUP(B175,Geburtstage!$H:$I,2,FALSE),"") -> 
A176: Donnerstag | B176: 2018-12-06 | C176: =IFERROR(VLOOKUP(B176,Fixtermine!$B$1:$E$208,3,FALSE),"") ->  | D176: =IFERROR(VLOOKUP(B176,Geburtstage!$H:$I,2,FALSE),"") -> 
A177: Freitag | B177: 2018-12-07 | C177: =IFERROR(VLOOKUP(B177,Fixtermine!$B$1:$E$208,3,FALSE),"") ->  | D177: =IFERROR(VLOOKUP(B177,Geburtstage!$H:$I,2,FALSE),"") -> 
A178: Samstag | B178: 2018-12-08 | C178: =IFERROR(VLOOKUP(B178,Fixtermine!$B$1:$E$208,3,FALSE),"") ->  | D178: =IFERROR(VLOOKUP(B178,Geburtstage!$H:$I,2,FALSE),"") -> 
A179: Sonntag | B179: 2018-12-09 | C179: =IFERROR(VLOOKUP(B179,Fixtermine!$B$1:$E$208,3,FALSE),"") -> 2. Advent | D179: =IFERROR(VLOOKUP(B179,Geburtstage!$H:$I,2,FALSE),"") -> 
A180: Montag | B180: 2018-12-10 | C180: =IFERROR(VLOOKUP(B180,Fixtermine!$B$1:$E$208,3,FALSE),"") ->  | D180: =IFERROR(VLOOKUP(B180,Geburtstage!$H:$I,2,FALSE),"") -> 
A181: Dienstag | B181: 2018-12-11 | C181: =IFERROR(VLOOKUP(B181,Fixtermine!$B$1:$E$208,3,FALSE),"") ->  | D181: =IFERROR(VLOOKUP(B181,Geburtstage!$H:$I,2,FALSE),"") -> 
A182: Mittwoch | B182: 2018-12-12 | C182: =IFERROR(VLOOKUP(B182,Fixtermine!$B$1:$E$208,3,FALSE),"") ->  | D182: =IFERROR(VLOOKUP(B182,Geburtstage!$H:$I,2,FALSE),"") -> Frank Sinatra (103)
A183: Donnerstag | B183: 2018-12-13 | C183: =IFERROR(VLOOKUP(B183,Fixtermine!$B$1:$E$208,3,FALSE),"") ->  | D183: =IFERROR(VLOOKUP(B183,Geburtstage!$H:$I,2,FALSE),"") -> 
A184: Freitag | B184: 2018-12-14 | C184: =IFERROR(VLOOKUP(B184,Fixtermine!$B$1:$E$208,3,FALSE),"") ->  | D184: =IFERROR(VLOOKUP(B184,Geburtstage!$H:$I,2,FALSE),"") -> 
A185: Samstag | B185: 2018-12-15 | C185: =IFERROR(VLOOKUP(B185,Fixtermine!$B$1:$E$208,3,FALSE),"") ->  | D185: =IFERROR(VLOOKUP(B185,Geburtstage!$H:$I,2,FALSE),"") -> 
A186: Sonntag | B186: 2018-12-16 | C186: =IFERROR(VLOOKUP(B186,Fixtermine!$B$1:$E$208,3,FALSE),"") -> 3. Advent | D186: =IFERROR(VLOOKUP(B186,Geburtstage!$H:$I,2,FALSE),"") -> 
A187: Montag | B187: 2018-12-17 | C187: =IFERROR(VLOOKUP(B187,Fixtermine!$B$1:$E$208,3,FALSE),"") ->  | D187: =IFERROR(VLOOKUP(B187,Geburtstage!$H:$I,2,FALSE),"") -> 
A188: Dienstag | B188: 2018-12-18 | C188: =IFERROR(VLOOKUP(B188,Fixtermine!$B$1:$E$208,3,FALSE),"") ->  | D188: =IFERROR(VLOOKUP(B188,Geburtstage!$H:$I,2,FALSE),"") -> 
A189: Mittwoch | B189: 2018-12-19 | C189: =IFERROR(VLOOKUP(B189,Fixtermine!$B$1:$E$208,3,FALSE),"") ->  | D189: =IFERROR(VLOOKUP(B189,Geburtstage!$H:$I,2,FALSE),"") -> Rudi Carrell (84)
A190: Donnerstag | B190: 2018-12-20 | C190: =IFERROR(VLOOKUP(B190,Fixtermine!$B$1:$E$208,3,FALSE),"") ->  | D190: =IFERROR(VLOOKUP(B190,Geburtstage!$H:$I,2,FALSE),"") -> 
A191: Freitag | B191: 2018-12-21 | C191: =IFERROR(VLOOKUP(B191,Fixtermine!$B$1:$E$208,3,FALSE),"") ->  | D191: =IFERROR(VLOOKUP(B191,Geburtstage!$H:$I,2,FALSE),"") -> Frank Zappa (78), Johnny Cash (78)
A192: Samstag | B192: 2018-12-22 | C192: =IFERROR(VLOOKUP(B192,Fixtermine!$B$1:$E$208,3,FALSE),"") ->  | D192: =IFERROR(VLOOKUP(B192,Geburtstage!$H:$I,2,FALSE),"") -> Robin Gibb (69), Maurice Gibb (69)
A193: Sonntag | B193: 2018-12-23 | C193: =IFERROR(VLOOKUP(B193,Fixtermine!$B$1:$E$208,3,FALSE),"") -> 4. Apfent | D193: =IFERROR(VLOOKUP(B193,Geburtstage!$H:$I,2,FALSE),"") -> 
A194: Montag | B194: 2018-12-24 | C194: =IFERROR(VLOOKUP(B194,Fixtermine!$B$1:$E$208,3,FALSE),"") -> Hl. Abend / Ferien | D194: =IFERROR(VLOOKUP(B194,Geburtstage!$H:$I,2,FALSE),"") -> 
A195: =CHOOSE(WEEKDAY(B195),"Sonntag","Montag","Dienstag","Mittwoch","Donnerstag","Freitag","Samstag") -> Dienstag | B195: 2018-12-25 | C195: =IFERROR(VLOOKUP(B195,Fixtermine!$B$1:$E$208,3,FALSE),"") -> FT-1. Weihnachtsfeiertag | D195: =IFERROR(VLOOKUP(B195,Geburtstage!$H:$I,2,FALSE),"") -> 
A196: Mittwoch | B196: 2018-12-26 | C196: =IFERROR(VLOOKUP(B196,Fixtermine!$B$1:$E$208,3,FALSE),"") -> FT-2. Weihnachtsfeiertag | D196: =IFERROR(VLOOKUP(B196,Geburtstage!$H:$I,2,FALSE),"") -> 
A197: Donnerstag | B197: =B196+1 -> 2018-12-27 | C197: =IFERROR(VLOOKUP(B197,Fixtermine!$B$1:$E$208,3,FALSE),"") -> Weihnachtsferien | D197: =IFERROR(VLOOKUP(B197,Geburtstage!$H:$I,2,FALSE),"") -> 
A198: Freitag | B198: 2018-12-28 | C198: =IFERROR(VLOOKUP(B198,Fixtermine!$B$1:$E$208,3,FALSE),"") -> Weihnachtsferien | D198: =IFERROR(VLOOKUP(B198,Geburtstage!$H:$I,2,FALSE),"") -> 
A199: Samstag | B199: 2018-12-29 | C199: =IFERROR(VLOOKUP(B199,Fixtermine!$B$1:$E$208,3,FALSE),"") -> Weihnachtsferien | D199: =IFERROR(VLOOKUP(B199,Geburtstage!$H:$I,2,FALSE),"") -> 
A200: Sonntag | B200: 2018-12-30 | C200: =IFERROR(VLOOKUP(B200,Fixtermine!$B$1:$E$208,3,FALSE),"") -> Weihnachtsferien | D200: =IFERROR(VLOOKUP(B200,Geburtstage!$H:$I,2,FALSE),"") -> 
... 168 more rows

Sheet Geburtstage
A1: Monat | B1: Tag | C1: Vorname | D1: Name | E1: Geb-Dat. | F1: Alter | G1: =IF(MOD(Fixtermine!$H$1,4)=0,1,0) -> 0 | H1: Datumswert | I1: Namen | J1: Tag, Monat | K1: =MONTH(Kalender!$B$2) -> 6 | L1: =DAY(Kalender!$B$2) -> 15
A2: =IF(E2="","",MONTH(E2)) -> 1 | B2: =IF(E2="","",IF(A2=2,IF(DAY(E2)=29,DAY(E2)-$G$1,DAY(E2)),DAY(E2))) -> 8 | C2: David | D2: Bowie | E2: 1947-01-08 | F2: =IF(E2="","",INT((G2-E2)/365)) -> 72 | G2: =IF(J2="29.2.",CONCATENATE("28.2.",K2),CONCATENATE(J2,K2)) -> 8.1.2019 | H2: =IF(J2=J3," ",IF(E2="","",DATEVALUE(G2))) ->  | I2: =IF(J2=J1,CONCATENATE(C2," ",D2," (",F2,"), ",I1),CONCATENATE(C2," ",D2," (",F2,")")) -> David Bowie (72) | J2: =IF(E2="","",CONCATENATE(B2,".",A2,".")) -> 8.1. | K2: =IF(A2<$K$1,Fixtermine!$H$105,IF(A2>$K$1,Fixtermine!$H$1,IF(B2<$L$1,Fixtermine!$H$105,Fixtermine!$H$1))) -> 2019
A3: 1 | B3: 8 | C3: Elvis | D3: Presley | E3: 1935-01-08 | F3: 84 | G3: =IF(J3="29.2.",CONCATENATE("28.2.",K3),CONCATENATE(J3,K3)) -> 8.1.2019 | I3: Elvis Presley (84), David Bowie (72) | J3: =IF(E3="","",CONCATENATE(B3,".",A3,".")) -> 8.1. | K3: =IF(A3<$K$1,Fixtermine!$H$105,IF(A3>$K$1,Fixtermine!$H$1,IF(B3<$L$1,Fixtermine!$H$105,Fixtermine!$H$1))) -> 2019
A4: 1 | B4: 8 | C4: Malcolm | D4: Young | E4: 1953-01-08 | F4: 66 | G4: 8.1.2019 | H4: 43473 | I4: Malcolm Young (66), Elvis Presley (84), David Bowie (72) | J4: 8.1. | K4: =IF(A4<$K$1,Fixtermine!$H$105,IF(A4>$K$1,Fixtermine!$H$1,IF(B4<$L$1,Fixtermine!$H$105,Fixtermine!$H$1))) -> 2019
A5: 1 | B5: 14 | C5: Billie Jo | D5: Spears | E5: 1937-01-14 | F5: 82 | G5: 14.1.2019 | H5: 43479 | I5: Billie Jo Spears (82) | J5: 14.1. | K5: =IF(A5<$K$1,Fixtermine!$H$105,IF(A5>$K$1,Fixtermine!$H$1,IF(B5<$L$1,Fixtermine!$H$105,Fixtermine!$H$1))) -> 2019
A6: 1 | B6: 24 | C6: John | D6: Belushi | E6: 1949-01-24 | F6: 70 | G6: 24.1.2019 | H6: 43489 | I6: John Belushi (70) | J6: 24.1. | K6: =IF(A6<$K$1,Fixtermine!$H$105,IF(A6>$K$1,Fixtermine!$H$1,IF(B6<$L$1,Fixtermine!$H$105,Fixtermine!$H$1))) -> 2019
A7: 2 | B7: 6 | C7: Bob | D7: Marley | E7: 1945-02-06 | F7: 74 | G7: 6.2.2019 | H7: 43502 | I7: Bob Marley (74) | J7: 6.2. | K7: =IF(A7<$K$1,Fixtermine!$H$105,IF(A7>$K$1,Fixtermine!$H$1,IF(B7<$L$1,Fixtermine!$H$105,Fixtermine!$H$1))) -> 2019
A8: 2 | B8: 19 | D8: Falco | E8: 1957-02-19 | F8: 62 | G8: 19.2.2019 | H8: 43515 | I8: Falco (62) | J8: 19.2. | K8: =IF(A8<$K$1,Fixtermine!$H$105,IF(A8>$K$1,Fixtermine!$H$1,IF(B8<$L$1,Fixtermine!$H$105,Fixtermine!$H$1))) -> 2019
A9: 2 | B9: 25 | C9: George | D9: Harrison | E9: 1943-02-25 | F9: 76 | G9: 25.2.2019 | H9: 43521 | I9: George Harrison (76) | J9: 25.2. | K9: =IF(A9<$K$1,Fixtermine!$H$105,IF(A9>$K$1,Fixtermine!$H$1,IF(B9<$L$1,Fixtermine!$H$105,Fixtermine!$H$1))) -> 2019
A10: 2 | B10: 28 | C10: Ludwig | D10: Hirsch | E10: 1946-02-28 | F10: 73 | G10: 28.2.2019 | H10: 43524 | I10: Ludwig Hirsch (73) | J10: 28.2. | K10: =IF(A10<$K$1,Fixtermine!$H$105,IF(A10>$K$1,Fixtermine!$H$1,IF(B10<$L$1,Fixtermine!$H$105,Fixtermine!$H$1))) -> 2019
A11: 3 | B11: 2 | C11: Captain | D11: Jack | E11: 1948-03-02 | F11: 71 | G11: 2.3.2019 | H11: 43526 | I11: Captain Jack (71) | J11: 2.3. | K11: =IF(A11<$K$1,Fixtermine!$H$105,IF(A11>$K$1,Fixtermine!$H$1,IF(B11<$L$1,Fixtermine!$H$105,Fixtermine!$H$1))) -> 2019
A12: 3 | B12: 4 | C12: Miriam | D12: Makeba | E12: 1932-03-04 | F12: 87 | G12: 4.3.2019 | H12: 43528 | I12: Miriam Makeba (87) | J12: 4.3. | K12: =IF(A12<$K$1,Fixtermine!$H$105,IF(A12>$K$1,Fixtermine!$H$1,IF(B12<$L$1,Fixtermine!$H$105,Fixtermine!$H$1))) -> 2019
A13: 5 | B13: 3 | C13: James | D13: Brown | E13: 1933-05-03 | F13: 86 | G13: 3.5.2019 | H13: 43588 | I13: James Brown (86) | J13: 3.5. | K13: =IF(A13<$K$1,Fixtermine!$H$105,IF(A13>$K$1,Fixtermine!$H$1,IF(B13<$L$1,Fixtermine!$H$105,Fixtermine!$H$1))) -> 2019
A14: 5 | B14: 9 | C14: Drafi | D14: Deutscher | E14: 1946-05-09 | F14: 73 | G14: 9.5.2019 | H14: 43594 | I14: Drafi Deutscher (73) | J14: 9.5. | K14: =IF(A14<$K$1,Fixtermine!$H$105,IF(A14>$K$1,Fixtermine!$H$1,IF(B14<$L$1,Fixtermine!$H$105,Fixtermine!$H$1))) -> 2019
A15: 6 | B15: 7 | D15: Prince | E15: 1958-06-07 | F15: 61 | G15: 7.6.2019 | H15: 43623 | I15: Prince (61) | J15: 7.6. | K15: =IF(A15<$K$1,Fixtermine!$H$105,IF(A15>$K$1,Fixtermine!$H$1,IF(B15<$L$1,Fixtermine!$H$105,Fixtermine!$H$1))) -> 2019
A16: 6 | B16: 25 | C16: George | D16: Michael | E16: 1963-06-25 | F16: 55 | G16: 25.6.2018 | H16: 43276 | I16: George Michael (55) | J16: 25.6. | K16: =IF(A16<$K$1,Fixtermine!$H$105,IF(A16>$K$1,Fixtermine!$H$1,IF(B16<$L$1,Fixtermine!$H$105,Fixtermine!$H$1))) -> 2018
A17: 7 | B17: 6 | C17: Billi | D17: Haley | E17: 1925-07-06 | F17: 93 | G17: 6.7.2018 | H17: 43287 | I17: Billi Haley (93) | J17: 6.7. | K17: =IF(A17<$K$1,Fixtermine!$H$105,IF(A17>$K$1,Fixtermine!$H$1,IF(B17<$L$1,Fixtermine!$H$105,Fixtermine!$H$1))) -> 2018
A18: 7 | B18: 9 | C18: Bon | D18: Scott | E18: 1946-07-09 | F18: 72 | G18: 9.7.2018 | H18: 43290 | I18: Bon Scott (72) | J18: 9.7. | K18: =IF(A18<$K$1,Fixtermine!$H$105,IF(A18>$K$1,Fixtermine!$H$1,IF(B18<$L$1,Fixtermine!$H$105,Fixtermine!$H$1))) -> 2018
A19: 8 | B19: 29 | C19: Michael | D19: Jackson | E19: 1958-08-29 | F19: 60 | G19: 29.8.2018 | H19: 43341 | I19: Michael Jackson (60) | J19: 29.8. | K19: =IF(A19<$K$1,Fixtermine!$H$105,IF(A19>$K$1,Fixtermine!$H$1,IF(B19<$L$1,Fixtermine!$H$105,Fixtermine!$H$1))) -> 2018
A20: 9 | B20: 5 | C20: Freddy | D20: Mercury | E20: 1946-09-05 | F20: 72 | G20: 5.9.2018 | H20: 43348 | I20: Freddy Mercury (72) | J20: 5.9. | K20: =IF(A20<$K$1,Fixtermine!$H$105,IF(A20>$K$1,Fixtermine!$H$1,IF(B20<$L$1,Fixtermine!$H$105,Fixtermine!$H$1))) -> 2018
A21: 9 | B21: 21 | C21: Leonard | D21: Cohen | E21: 1943-09-21 | F21: 75 | G21: 21.9.2018 | H21: 43364 | I21: Leonard Cohen (75) | J21: 21.9. | K21: =IF(A21<$K$1,Fixtermine!$H$105,IF(A21>$K$1,Fixtermine!$H$1,IF(B21<$L$1,Fixtermine!$H$105,Fixtermine!$H$1))) -> 2018
A22: 9 | B22: 23 | C22: Ray | D22: Charles | E22: 1930-09-23 | F22: 88 | G22: 23.9.2018 | H22: 43366 | I22: Ray Charles (88) | J22: 23.9. | K22: =IF(A22<$K$1,Fixtermine!$H$105,IF(A22>$K$1,Fixtermine!$H$1,IF(B22<$L$1,Fixtermine!$H$105,Fixtermine!$H$1))) -> 2018
A23: 10 | B23: 7 | C23: Georg | D23: Danzer | E23: 1946-10-07 | F23: 72 | G23: 7.10.2018 | H23: 43380 | I23: Georg Danzer (72) | J23: 7.10. | K23: =IF(A23<$K$1,Fixtermine!$H$105,IF(A23>$K$1,Fixtermine!$H$1,IF(B23<$L$1,Fixtermine!$H$105,Fixtermine!$H$1))) -> 2018
A24: 10 | B24: 9 | C24: John | D24: Lennon | E24: 1940-10-09 | F24: 78 | G24: 9.10.2018 | H24: 43382 | I24: John Lennon (78) | J24: 9.10. | K24: =IF(A24<$K$1,Fixtermine!$H$105,IF(A24>$K$1,Fixtermine!$H$1,IF(B24<$L$1,Fixtermine!$H$105,Fixtermine!$H$1))) -> 2018
A25: 10 | B25: 18 | C25: Chuck | D25: Berry | E25: 1926-10-18 | F25: 92 | G25: 18.10.2018 | H25: 43391 | I25: Chuck Berry (92) | J25: 18.10. | K25: =IF(A25<$K$1,Fixtermine!$H$105,IF(A25>$K$1,Fixtermine!$H$1,IF(B25<$L$1,Fixtermine!$H$105,Fixtermine!$H$1))) -> 2018
A26: 11 | B26: 6 | C26: Glenn | D26: Frey | E26: 1948-11-06 | F26: 70 | G26: 6.11.2018 | H26: 43410 | I26: Glenn Frey (70) | J26: 6.11. | K26: =IF(A26<$K$1,Fixtermine!$H$105,IF(A26>$K$1,Fixtermine!$H$1,IF(B26<$L$1,Fixtermine!$H$105,Fixtermine!$H$1))) -> 2018
A27: 11 | B27: 16 | C27: Winfred "Blue" | D27: Lovett | E27: 1943-11-16 | F27: 75 | G27: 16.11.2018 | H27: 43420 | I27: Winfred "Blue" Lovett (75) | J27: 16.11. | K27: =IF(A27<$K$1,Fixtermine!$H$105,IF(A27>$K$1,Fixtermine!$H$1,IF(B27<$L$1,Fixtermine!$H$105,Fixtermine!$H$1))) -> 2018
A28: 12 | B28: 12 | C28: Frank | D28: Sinatra | E28: 1915-12-12 | F28: 103 | G28: 12.12.2018 | H28: 43446 | I28: Frank Sinatra (103) | J28: 12.12. | K28: =IF(A28<$K$1,Fixtermine!$H$105,IF(A28>$K$1,Fixtermine!$H$1,IF(B28<$L$1,Fixtermine!$H$105,Fixtermine!$H$1))) -> 2018
A29: 12 | B29: 19 | C29: Rudi | D29: Carrell | E29: 1934-12-19 | F29: 84 | G29: 19.12.2018 | H29: 43453 | I29: Rudi Carrell (84) | J29: 19.12. | K29: =IF(A29<$K$1,Fixtermine!$H$105,IF(A29>$K$1,Fixtermine!$H$1,IF(B29<$L$1,Fixtermine!$H$105,Fixtermine!$H$1))) -> 2018
A30: 12 | B30: 21 | C30: Johnny | D30: Cash | E30: 1940-12-21 | F30: 78 | G30: 21.12.2018 | I30: Johnny Cash (78) | J30: 21.12. | K30: =IF(A30<$K$1,Fixtermine!$H$105,IF(A30>$K$1,Fixtermine!$H$1,IF(B30<$L$1,Fixtermine!$H$105,Fixtermine!$H$1))) -> 2018
A31: 12 | B31: 21 | C31: Frank | D31: Zappa | E31: 1940-12-21 | F31: 78 | G31: 21.12.2018 | H31: 43455 | I31: Frank Zappa (78), Johnny Cash (78) | J31: 21.12. | K31: =IF(A31<$K$1,Fixtermine!$H$105,IF(A31>$K$1,Fixtermine!$H$1,IF(B31<$L$1,Fixtermine!$H$105,Fixtermine!$H$1))) -> 2018
A32: 12 | B32: 22 | C32: Maurice | D32: Gibb | E32: 1949-12-22 | F32: 69 | G32: 22.12.2018 | I32: Maurice Gibb (69) | J32: 22.12. | K32: =IF(A32<$K$1,Fixtermine!$H$105,IF(A32>$K$1,Fixtermine!$H$1,IF(B32<$L$1,Fixtermine!$H$105,Fixtermine!$H$1))) -> 2018
A33: 12 | B33: 22 | C33: Robin | D33: Gibb | E33: 1949-12-22 | F33: 69 | G33: 22.12.2018 | H33: 43456 | I33: Robin Gibb (69), Maurice Gibb (69) | J33: 22.12. | K33: =IF(A33<$K$1,Fixtermine!$H$105,IF(A33>$K$1,Fixtermine!$H$1,IF(B33<$L$1,Fixtermine!$H$105,Fixtermine!$H$1))) -> 2018
A34: 12 | B34: 31 | C34: John | D34: Denver | E34: 1943-12-31 | F34: 75 | G34: 31.12.2018 | H34: 43465 | I34: John Denver (75) | J34: 31.12. | K34: =IF(A34<$K$1,Fixtermine!$H$105,IF(A34>$K$1,Fixtermine!$H$1,IF(B34<$L$1,Fixtermine!$H$105,Fixtermine!$H$1))) -> 2018
G35: 2018 | I35: () | K35: =IF(A35<$K$1,Fixtermine!$H$105,IF(A35>$K$1,Fixtermine!$H$1,IF(B35<$L$1,Fixtermine!$H$105,Fixtermine!$H$1))) -> 2018
G36: 2018 | I36: (), () | K36: =IF(A36<$K$1,Fixtermine!$H$105,IF(A36>$K$1,Fixtermine!$H$1,IF(B36<$L$1,Fixtermine!$H$105,Fixtermine!$H$1))) -> 2018
C37: Die Künstler löschen | G37: 2018 | I37: Die Künstler löschen (), (), () | K37: =IF(A37<$K$1,Fixtermine!$H$105,IF(A37>$K$1,Fixtermine!$H$1,IF(B37<$L$1,Fixtermine!$H$105,Fixtermine!$H$1))) -> 2018
C38: In den Spalten C, D, E, Daten eingeben | G38: 2018 | I38: In den Spalten C, D, E, Daten eingeben (), Die Künstler löschen (), (), () | K38: =IF(A38<$K$1,Fixtermine!$H$105,IF(A38>$K$1,Fixtermine!$H$1,IF(B38<$L$1,Fixtermine!$H$105,Fixtermine!$H$1))) -> 2018
C39: Dann sortieren | G39: 2018 | I39: Dann sortieren (), In den Spalten C, D, E, Daten eingeben (), Die Künstler löschen (), (), () | K39: =IF(A39<$K$1,Fixtermine!$H$105,IF(A39>$K$1,Fixtermine!$H$1,IF(B39<$L$1,Fixtermine!$H$105,Fixtermine!$H$1))) -> 2018
C40: Diesen Text auch löschen | G40: 2018 | I40: Diesen Text auch löschen (), Dann sortieren (), In den Spalten C, D, E, Daten eingeben (), Die Künstler löschen (), (), () | K40: =IF(A40<$K$1,Fixtermine!$H$105,IF(A40>$K$1,Fixtermine!$H$1,IF(B40<$L$1,Fixtermine!$H$105,Fixtermine!$H$1))) -> 2018
G41: 2018 | I41: (), Diesen Text auch löschen (), Dann sortieren (), In den Spalten C, D, E, Daten eingeben (), Die Künstler löschen (), (), () | K41: =IF(A41<$K$1,Fixtermine!$H$105,IF(A41>$K$1,Fixtermine!$H$1,IF(B41<$L$1,Fixtermine!$H$105,Fixtermine!$H$1))) -> 2018
G42: 2018 | I42: (), (), Diesen Text auch löschen (), Dann sortieren (), In den Spalten C, D, E, Daten eingeben (), Die Künstler löschen (), (), () | K42: =IF(A42<$K$1,Fixtermine!$H$105,IF(A42>$K$1,Fixtermine!$H$1,IF(B42<$L$1,Fixtermine!$H$105,Fixtermine!$H$1))) -> 2018
G43: 2018 | I43: (), (), (), Diesen Text auch löschen (), Dann sortieren (), In den Spalten C, D, E, Daten eingeben (), Die Künstler löschen (), (), () | K43: =IF(A43<$K$1,Fixtermine!$H$105,IF(A43>$K$1,Fixtermine!$H$1,IF(B43<$L$1,Fixtermine!$H$105,Fixtermine!$H$1))) -> 2018
G44: 2018 | I44: (), (), (), (), Diesen Text auch löschen (), Dann sortieren (), In den Spalten C, D, E, Daten eingeben (), Die Künstler löschen (), (), () | K44: =IF(A44<$K$1,Fixtermine!$H$105,IF(A44>$K$1,Fixtermine!$H$1,IF(B44<$L$1,Fixtermine!$H$105,Fixtermine!$H$1))) -> 2018
G45: 2018 | I45: (), (), (), (), (), Diesen Text auch löschen (), Dann sortieren (), In den Spalten C, D, E, Daten eingeben (), Die Künstler löschen (), (), () | K45: =IF(A45<$K$1,Fixtermine!$H$105,IF(A45>$K$1,Fixtermine!$H$1,IF(B45<$L$1,Fixtermine!$H$105,Fixtermine!$H$1))) -> 2018
G46: 2018 | I46: (), (), (), (), (), (), Diesen Text auch löschen (), Dann sortieren (), In den Spalten C, D, E, Daten eingeben (), Die Künstler löschen (), (), () | K46: =IF(A46<$K$1,Fixtermine!$H$105,IF(A46>$K$1,Fixtermine!$H$1,IF(B46<$L$1,Fixtermine!$H$105,Fixtermine!$H$1))) -> 2018
G47: 2018 | I47: (), (), (), (), (), (), (), Diesen Text auch löschen (), Dann sortieren (), In den Spalten C, D, E, Daten eingeben (), Die Künstler löschen (), (), () | K47: =IF(A47<$K$1,Fixtermine!$H$105,IF(A47>$K$1,Fixtermine!$H$1,IF(B47<$L$1,Fixtermine!$H$105,Fixtermine!$H$1))) -> 2018
G48: 2018 | I48: (), (), (), (), (), (), (), (), Diesen Text auch löschen (), Dann sortieren (), In den Spalten C, D, E, Daten eingeben (), Die Künstler löschen (), (), () | K48: =IF(A48<$K$1,Fixtermine!$H$105,IF(A48>$K$1,Fixtermine!$H$1,IF(B48<$L$1,Fixtermine!$H$105,Fixtermine!$H$1))) -> 2018
G49: 2018 | I49: (), (), (), (), (), (), (), (), (), Diesen Text auch löschen (), Dann sortieren (), In den Spalten C, D, E, Daten eingeben (), Die Künstler löschen (), (), () | K49: =IF(A49<$K$1,Fixtermine!$H$105,IF(A49>$K$1,Fixtermine!$H$1,IF(B49<$L$1,Fixtermine!$H$105,Fixtermine!$H$1))) -> 2018
G50: 2018 | I50: (), (), (), (), (), (), (), (), (), (), Diesen Text auch löschen (), Dann sortieren (), In den Spalten C, D, E, Daten eingeben (), Die Künstler löschen (), (), () | K50: =IF(A50<$K$1,Fixtermine!$H$105,IF(A50>$K$1,Fixtermine!$H$1,IF(B50<$L$1,Fixtermine!$H$105,Fixtermine!$H$1))) -> 2018
G51: 2018 | I51: (), (), (), (), (), (), (), (), (), (), (), Diesen Text auch löschen (), Dann sortieren (), In den Spalten C, D, E, Daten eingeben (), Die Künstler löschen (), (), () | K51: =IF(A51<$K$1,Fixtermine!$H$105,IF(A51>$K$1,Fixtermine!$H$1,IF(B51<$L$1,Fixtermine!$H$105,Fixtermine!$H$1))) -> 2018
G52: 2018 | I52: (), (), (), (), (), (), (), (), (), (), (), (), Diesen Text auch löschen (), Dann sortieren (), In den Spalten C, D, E, Daten eingeben (), Die Künstler löschen (), (), () | K52: =IF(A52<$K$1,Fixtermine!$H$105,IF(A52>$K$1,Fixtermine!$H$1,IF(B52<$L$1,Fixtermine!$H$105,Fixtermine!$H$1))) -> 2018
G53: 2018 | I53: (), (), (), (), (), (), (), (), (), (), (), (), (), Diesen Text auch löschen (), Dann sortieren (), In den Spalten C, D, E, Daten eingeben (), Die Künstler löschen (), (), () | K53: =IF(A53<$K$1,Fixtermine!$H$105,IF(A53>$K$1,Fixtermine!$H$1,IF(B53<$L$1,Fixtermine!$H$105,Fixtermine!$H$1))) -> 2018
G54: 2018 | I54: (), (), (), (), (), (), (), (), (), (), (), (), (), (), Diesen Text auch löschen (), Dann sortieren (), In den Spalten C, D, E, Daten eingeben (), Die Künstler löschen (), (), () | K54: =IF(A54<$K$1,Fixtermine!$H$105,IF(A54>$K$1,Fixtermine!$H$1,IF(B54<$L$1,Fixtermine!$H$105,Fixtermine!$H$1))) -> 2018
G55: 2018 | I55: (), (), (), (), (), (), (), (), (), (), (), (), (), (), (), Diesen Text auch löschen (), Dann sortieren (), In den Spalten C, D, E, Daten eingeben (), Die Künstler löschen (), (), () | K55: =IF(A55<$K$1,Fixtermine!$H$105,IF(A55>$K$1,Fixtermine!$H$1,IF(B55<$L$1,Fixtermine!$H$105,Fixtermine!$H$1))) -> 2018
G56: 2018 | I56: (), (), (), (), (), (), (), (), (), (), (), (), (), (), (), (), Diesen Text auch löschen (), Dann sortieren (), In den Spalten C, D, E, Daten eingeben (), Die Künstler löschen (), (), () | K56: =IF(A56<$K$1,Fixtermine!$H$105,IF(A56>$K$1,Fixtermine!$H$1,IF(B56<$L$1,Fixtermine!$H$105,Fixtermine!$H$1))) -> 2018
G57: 2018 | I57: (), (), (), (), (), (), (), (), (), (), (), (), (), (), (), (), (), Diesen Text auch löschen (), Dann sortieren (), In den Spalten C, D, E, Daten eingeben (), Die Künstler löschen (), (), () | K57: =IF(A57<$K$1,Fixtermine!$H$105,IF(A57>$K$1,Fixtermine!$H$1,IF(B57<$L$1,Fixtermine!$H$105,Fixtermine!$H$1))) -> 2018
G58: 2018 | I58: (), (), (), (), (), (), (), (), (), (), (), (), (), (), (), (), (), (), Diesen Text auch löschen (), Dann sortieren (), In den Spalten C, D, E, Daten eingeben (), Die Künstler löschen (), (), () | K58: =IF(A58<$K$1,Fixtermine!$H$105,IF(A58>$K$1,Fixtermine!$H$1,IF(B58<$L$1,Fixtermine!$H$105,Fixtermine!$H$1))) -> 2018
G59: 2018 | I59: (), (), (), (), (), (), (), (), (), (), (), (), (), (), (), (), (), (), (), Diesen Text auch löschen (), Dann sortieren (), In den Spalten C, D, E, Daten eingeben (), Die Künstler löschen (), (), () | K59: =IF(A59<$K$1,Fixtermine!$H$105,IF(A59>$K$1,Fixtermine!$H$1,IF(B59<$L$1,Fixtermine!$H$105,Fixtermine!$H$1))) -> 2018
G60: 2018 | I60: (), (), (), (), (), (), (), (), (), (), (), (), (), (), (), (), (), (), (), (), Diesen Text auch löschen (), Dann sortieren (), In den Spalten C, D, E, Daten eingeben (), Die Künstler löschen (), (), () | K60: =IF(A60<$K$1,Fixtermine!$H$105,IF(A60>$K$1,Fixtermine!$H$1,IF(B60<$L$1,Fixtermine!$H$105,Fixtermine!$H$1))) -> 2018
G61: 2018 | I61: (), (), (), (), (), (), (), (), (), (), (), (), (), (), (), (), (), (), (), (), (), Diesen Text auch löschen (), Dann sortieren (), In den Spalten C, D, E, Daten eingeben (), Die Künstler löschen (), (), () | K61: =IF(A61<$K$1,Fixtermine!$H$105,IF(A61>$K$1,Fixtermine!$H$1,IF(B61<$L$1,Fixtermine!$H$105,Fixtermine!$H$1))) -> 2018
G62: 2018 | I62: (), (), (), (), (), (), (), (), (), (), (), (), (), (), (), (), (), (), (), (), (), (), Diesen Text auch löschen (), Dann sortieren (), In den Spalten C, D, E, Daten eingeben (), Die Künstler löschen (), (), () | K62: =IF(A62<$K$1,Fixtermine!$H$105,IF(A62>$K$1,Fixtermine!$H$1,IF(B62<$L$1,Fixtermine!$H$105,Fixtermine!$H$1))) -> 2018
G63: 2018 | I63: (), (), (), (), (), (), (), (), (), (), (), (), (), (), (), (), (), (), (), (), (), (), (), Diesen Text auch löschen (), Dann sortieren (), In den Spalten C, D, E, Daten eingeben (), Die Künstler löschen (), (), () | K63: =IF(A63<$K$1,Fixtermine!$H$105,IF(A63>$K$1,Fixtermine!$H$1,IF(B63<$L$1,Fixtermine!$H$105,Fixtermine!$H$1))) -> 2018
G64: 2018 | I64: (), (), (), (), (), (), (), (), (), (), (), (), (), (), (), (), (), (), (), (), (), (), (), (), Diesen Text auch löschen (), Dann sortieren (), In den Spalten C, D, E, Daten eingeben (), Die Künstler löschen (), (), () | K64: =IF(A64<$K$1,Fixtermine!$H$105,IF(A64>$K$1,Fixtermine!$H$1,IF(B64<$L$1,Fixtermine!$H$105,Fixtermine!$H$1))) -> 2018
G65: 2018 | I65: (), (), (), (), (), (), (), (), (), (), (), (), (), (), (), (), (), (), (), (), (), (), (), (), (), Diesen Text auch löschen (), Dann sortieren (), In den Spalten C, D, E, Daten eingeben (), Die Künstler löschen (), (), () | K65: =IF(A65<$K$1,Fixtermine!$H$105,IF(A65>$K$1,Fixtermine!$H$1,IF(B65<$L$1,Fixtermine!$H$105,Fixtermine!$H$1))) -> 2018
A66: =IF(E66="","",MONTH(E66)) ->  | B66: =IF(E66="","",IF(A66=2,IF(DAY(E66)=29,DAY(E66)-$G$1,DAY(E66)),DAY(E66))) ->  | F66: =IF(E66="","",INT((G66-E66)/365)) ->  | G66: 2018 | I66: =IF(J66=J65,CONCATENATE(C66," ",D66," (",F66,"), ",I65),CONCATENATE(C66," ",D66," (",F66,")")) -> (), (), (), (), (), (), (), (), (), (), (), (), (), (), (), (), (), (), (), (), (), (), (), (), (), (), Diesen Text auch löschen (), Dann sortieren (), In den Spalten C, D, E, Daten eingeben (), Die Künstler löschen (), (), () | J66: =IF(E66="","",CONCATENATE(B66,".",A66,".")) ->  | K66: =IF(A66<$K$1,Fixtermine!$H$105,IF(A66>$K$1,Fixtermine!$H$1,IF(B66<$L$1,Fixtermine!$H$105,Fixtermine!$H$1))) -> 2018
G67: =IF(J67="29.2.",CONCATENATE("28.2.",K67),CONCATENATE(J67,K67)) -> 2018 | I67: (), (), (), (), (), (), (), (), (), (), (), (), (), (), (), (), (), (), (), (), (), (), (), (), (), (), (), Diesen Text auch löschen (), Dann sortieren (), In den Spalten C, D, E, Daten eingeben (), Die Künstler löschen (), (), () | K67: =IF(A67<$K$1,Fixtermine!$H$105,IF(A67>$K$1,Fixtermine!$H$1,IF(B67<$L$1,Fixtermine!$H$105,Fixtermine!$H$1))) -> 2018
G68: 2018 | H68: =IF(J68=J69," ",IF(E68="","",DATEVALUE(G68))) ->  | I68: (), (), (), (), (), (), (), (), (), (), (), (), (), (), (), (), (), (), (), (), (), (), (), (), (), (), (), (), Diesen Text auch löschen (), Dann sortieren (), In den Spalten C, D, E, Daten eingeben (), Die Künstler löschen (), (), () | K68: =IF(A68<$K$1,Fixtermine!$H$105,IF(A68>$K$1,Fixtermine!$H$1,IF(B68<$L$1,Fixtermine!$H$105,Fixtermine!$H$1))) -> 2018
G69: 2018 | I69: (), (), (), (), (), (), (), (), (), (), (), (), (), (), (), (), (), (), (), (), (), (), (), (), (), (), (), (), (), Diesen Text auch löschen (), Dann sortieren (), In den Spalten C, D, E, Daten eingeben (), Die Künstler löschen (), (), () | K69: =IF(A69<$K$1,Fixtermine!$H$105,IF(A69>$K$1,Fixtermine!$H$1,IF(B69<$L$1,Fixtermine!$H$105,Fixtermine!$H$1))) -> 2018
G70: 2018 | I70: (), (), (), (), (), (), (), (), (), (), (), (), (), (), (), (), (), (), (), (), (), (), (), (), (), (), (), (), (), (), Diesen Text auch löschen (), Dann sortieren (), In den Spalten C, D, E, Daten eingeben (), Die Künstler löschen (), (), () | K70: =IF(A70<$K$1,Fixtermine!$H$105,IF(A70>$K$1,Fixtermine!$H$1,IF(B70<$L$1,Fixtermine!$H$105,Fixtermine!$H$1))) -> 2018
G71: 2018 | I71: (), (), (), (), (), (), (), (), (), (), (), (), (), (), (), (), (), (), (), (), (), (), (), (), (), (), (), (), (), (), (), Diesen Text auch löschen (), Dann sortieren (), In den Spalten C, D, E, Daten eingeben (), Die Künstler löschen (), (), () | K71: =IF(A71<$K$1,Fixtermine!$H$105,IF(A71>$K$1,Fixtermine!$H$1,IF(B71<$L$1,Fixtermine!$H$105,Fixtermine!$H$1))) -> 2018
G72: 2018 | I72: (), (), (), (), (), (), (), (), (), (), (), (), (), (), (), (), (), (), (), (), (), (), (), (), (), (), (), (), (), (), (), (), Diesen Text auch löschen (), Dann sortieren (), In den Spalten C, D, E, Daten eingeben (), Die Künstler löschen (), (), () | K72: =IF(A72<$K$1,Fixtermine!$H$105,IF(A72>$K$1,Fixtermine!$H$1,IF(B72<$L$1,Fixtermine!$H$105,Fixtermine!$H$1))) -> 2018
G73: 2018 | I73: (), (), (), (), (), (), (), (), (), (), (), (), (), (), (), (), (), (), (), (), (), (), (), (), (), (), (), (), (), (), (), (), (), Diesen Text auch löschen (), Dann sortieren (), In den Spalten C, D, E, Daten eingeben (), Die Künstler löschen (), (), () | K73: =IF(A73<$K$1,Fixtermine!$H$105,IF(A73>$K$1,Fixtermine!$H$1,IF(B73<$L$1,Fixtermine!$H$105,Fixtermine!$H$1))) -> 2018
G74: 2018 | I74: (), (), (), (), (), (), (), (), (), (), (), (), (), (), (), (), (), (), (), (), (), (), (), (), (), (), (), (), (), (), (), (), (), (), Diesen Text auch löschen (), Dann sortieren (), In den Spalten C, D, E, Daten eingeben (), Die Künstler löschen (), (), () | K74: =IF(A74<$K$1,Fixtermine!$H$105,IF(A74>$K$1,Fixtermine!$H$1,IF(B74<$L$1,Fixtermine!$H$105,Fixtermine!$H$1))) -> 2018
G75: 2018 | I75: (), (), (), (), (), (), (), (), (), (), (), (), (), (), (), (), (), (), (), (), (), (), (), (), (), (), (), (), (), (), (), (), (), (), (), Diesen Text auch löschen (), Dann sortieren (), In den Spalten C, D, E, Daten eingeben (), Die Künstler löschen (), (), () | K75: =IF(A75<$K$1,Fixtermine!$H$105,IF(A75>$K$1,Fixtermine!$H$1,IF(B75<$L$1,Fixtermine!$H$105,Fixtermine!$H$1))) -> 2018
G76: 2018 | I76: (), (), (), (), (), (), (), (), (), (), (), (), (), (), (), (), (), (), (), (), (), (), (), (), (), (), (), (), (), (), (), (), (), (), (), (), Diesen Text auch löschen (), Dann sortieren (), In den Spalten C, D, E, Daten eingeben (), Die Künstler löschen (), (), () | K76: =IF(A76<$K$1,Fixtermine!$H$105,IF(A76>$K$1,Fixtermine!$H$1,IF(B76<$L$1,Fixtermine!$H$105,Fixtermine!$H$1))) -> 2018
G77: 2018 | I77: (), (), (), (), (), (), (), (), (), (), (), (), (), (), (), (), (), (), (), (), (), (), (), (), (), (), (), (), (), (), (), (), (), (), (), (), (), Diesen Text auch löschen (), Dann sortieren (), In den Spalten C, D, E, Daten eingeben (), Die Künstler löschen (), (), () | K77: =IF(A77<$K$1,Fixtermine!$H$105,IF(A77>$K$1,Fixtermine!$H$1,IF(B77<$L$1,Fixtermine!$H$105,Fixtermine!$H$1))) -> 2018
G78: 2018 | I78: (), (), (), (), (), (), (), (), (), (), (), (), (), (), (), (), (), (), (), (), (), (), (), (), (), (), (), (), (), (), (), (), (), (), (), (), (), (), Diesen Text auch löschen (), Dann sortieren (), In den Spalten C, D, E, Daten eingeben (), Die Künstler löschen (), (), () | K78: =IF(A78<$K$1,Fixtermine!$H$105,IF(A78>$K$1,Fixtermine!$H$1,IF(B78<$L$1,Fixtermine!$H$105,Fixtermine!$H$1))) -> 2018
G79: 2018 | I79: (), (), (), (), (), (), (), (), (), (), (), (), (), (), (), (), (), (), (), (), (), (), (), (), (), (), (), (), (), (), (), (), (), (), (), (), (), (), (), Diesen Text auch löschen (), Dann sortieren (), In den Spalten C, D, E, Daten eingeben (), Die Künstler löschen (), (), () | K79: =IF(A79<$K$1,Fixtermine!$H$105,IF(A79>$K$1,Fixtermine!$H$1,IF(B79<$L$1,Fixtermine!$H$105,Fixtermine!$H$1))) -> 2018
G80: 2018 | I80: (), (), (), (), (), (), (), (), (), (), (), (), (), (), (), (), (), (), (), (), (), (), (), (), (), (), (), (), (), (), (), (), (), (), (), (), (), (), (), (), Diesen Text auch löschen (), Dann sortieren (), In den Spalten C, D, E, Daten eingeben (), Die Künstler löschen (), (), () | K80: =IF(A80<$K$1,Fixtermine!$H$105,IF(A80>$K$1,Fixtermine!$H$1,IF(B80<$L$1,Fixtermine!$H$105,Fixtermine!$H$1))) -> 2018
G81: 2018 | I81: (), (), (), (), (), (), (), (), (), (), (), (), (), (), (), (), (), (), (), (), (), (), (), (), (), (), (), (), (), (), (), (), (), (), (), (), (), (), (), (), (), Diesen Text auch löschen (), Dann sortieren (), In den Spalten C, D, E, Daten eingeben (), Die Künstler löschen (), (), () | K81: =IF(A81<$K$1,Fixtermine!$H$105,IF(A81>$K$1,Fixtermine!$H$1,IF(B81<$L$1,Fixtermine!$H$105,Fixtermine!$H$1))) -> 2018
G82: 2018 | I82: (), (), (), (), (), (), (), (), (), (), (), (), (), (), (), (), (), (), (), (), (), (), (), (), (), (), (), (), (), (), (), (), (), (), (), (), (), (), (), (), (), (), Diesen Text auch löschen (), Dann sortieren (), In den Spalten C, D, E, Daten eingeben (), Die Künstler löschen (), (), () | K82: =IF(A82<$K$1,Fixtermine!$H$105,IF(A82>$K$1,Fixtermine!$H$1,IF(B82<$L$1,Fixtermine!$H$105,Fixtermine!$H$1))) -> 2018
G83: 2018 | I83: (), (), (), (), (), (), (), (), (), (), (), (), (), (), (), (), (), (), (), (), (), (), (), (), (), (), (), (), (), (), (), (), (), (), (), (), (), (), (), (), (), (), (), Diesen Text auch löschen (), Dann sortieren (), In den Spalten C, D, E, Daten eingeben (), Die Künstler löschen (), (), () | K83: =IF(A83<$K$1,Fixtermine!$H$105,IF(A83>$K$1,Fixtermine!$H$1,IF(B83<$L$1,Fixtermine!$H$105,Fixtermine!$H$1))) -> 2018
G84: 2018 | I84: (), (), (), (), (), (), (), (), (), (), (), (), (), (), (), (), (), (), (), (), (), (), (), (), (), (), (), (), (), (), (), (), (), (), (), (), (), (), (), (), (), (), (), (), Diesen Text auch löschen (), Dann sortieren (), In den Spalten C, D, E, Daten eingeben (), Die Künstler löschen (), (), () | K84: =IF(A84<$K$1,Fixtermine!$H$105,IF(A84>$K$1,Fixtermine!$H$1,IF(B84<$L$1,Fixtermine!$H$105,Fixtermine!$H$1))) -> 2018
G85: 2018 | I85: (), (), (), (), (), (), (), (), (), (), (), (), (), (), (), (), (), (), (), (), (), (), (), (), (), (), (), (), (), (), (), (), (), (), (), (), (), (), (), (), (), (), (), (), (), Diesen Text auch löschen (), Dann sortieren (), In den Spalten C, D, E, Daten eingeben (), Die Künstler löschen (), (), () | K85: =IF(A85<$K$1,Fixtermine!$H$105,IF(A85>$K$1,Fixtermine!$H$1,IF(B85<$L$1,Fixtermine!$H$105,Fixtermine!$H$1))) -> 2018
G86: 2018 | I86: (), (), (), (), (), (), (), (), (), (), (), (), (), (), (), (), (), (), (), (), (), (), (), (), (), (), (), (), (), (), (), (), (), (), (), (), (), (), (), (), (), (), (), (), (), (), Diesen Text auch löschen (), Dann sortieren (), In den Spalten C, D, E, Daten eingeben (), Die Künstler löschen (), (), () | K86: =IF(A86<$K$1,Fixtermine!$H$105,IF(A86>$K$1,Fixtermine!$H$1,IF(B86<$L$1,Fixtermine!$H$105,Fixtermine!$H$1))) -> 2018
G87: 2018 | I87: (), (), (), (), (), (), (), (), (), (), (), (), (), (), (), (), (), (), (), (), (), (), (), (), (), (), (), (), (), (), (), (), (), (), (), (), (), (), (), (), (), (), (), (), (), (), (), Diesen Text auch löschen (), Dann sortieren (), In den Spalten C, D, E, Daten eingeben (), Die Künstler löschen (), (), () | K87: =IF(A87<$K$1,Fixtermine!$H$105,IF(A87>$K$1,Fixtermine!$H$1,IF(B87<$L$1,Fixtermine!$H$105,Fixtermine!$H$1))) -> 2018
G88: 2018 | I88: (), (), (), (), (), (), (), (), (), (), (), (), (), (), (), (), (), (), (), (), (), (), (), (), (), (), (), (), (), (), (), (), (), (), (), (), (), (), (), (), (), (), (), (), (), (), (), (), Diesen Text auch löschen (), Dann sortieren (), In den Spalten C, D, E, Daten eingeben (), Die Künstler löschen (), (), () | K88: =IF(A88<$K$1,Fixtermine!$H$105,IF(A88>$K$1,Fixtermine!$H$1,IF(B88<$L$1,Fixtermine!$H$105,Fixtermine!$H$1))) -> 2018
G89: 2018 | I89: (), (), (), (), (), (), (), (), (), (), (), (), (), (), (), (), (), (), (), (), (), (), (), (), (), (), (), (), (), (), (), (), (), (), (), (), (), (), (), (), (), (), (), (), (), (), (), (), (), Diesen Text auch löschen (), Dann sortieren (), In den Spalten C, D, E, Daten eingeben (), Die Künstler löschen (), (), () | K89: =IF(A89<$K$1,Fixtermine!$H$105,IF(A89>$K$1,Fixtermine!$H$1,IF(B89<$L$1,Fixtermine!$H$105,Fixtermine!$H$1))) -> 2018
G90: 2018 | I90: (), (), (), (), (), (), (), (), (), (), (), (), (), (), (), (), (), (), (), (), (), (), (), (), (), (), (), (), (), (), (), (), (), (), (), (), (), (), (), (), (), (), (), (), (), (), (), (), (), (), Diesen Text auch löschen (), Dann sortieren (), In den Spalten C, D, E, Daten eingeben (), Die Künstler löschen (), (), () | K90: =IF(A90<$K$1,Fixtermine!$H$105,IF(A90>$K$1,Fixtermine!$H$1,IF(B90<$L$1,Fixtermine!$H$105,Fixtermine!$H$1))) -> 2018
G91: 2018 | I91: (), (), (), (), (), (), (), (), (), (), (), (), (), (), (), (), (), (), (), (), (), (), (), (), (), (), (), (), (), (), (), (), (), (), (), (), (), (), (), (), (), (), (), (), (), (), (), (), (), (), (), Diesen Text auch löschen (), Dann sortieren (), In den Spalten C, D, E, Daten eingeben (), Die Künstler löschen (), (), () | K91: =IF(A91<$K$1,Fixtermine!$H$105,IF(A91>$K$1,Fixtermine!$H$1,IF(B91<$L$1,Fixtermine!$H$105,Fixtermine!$H$1))) -> 2018
G92: 2018 | I92: (), (), (), (), (), (), (), (), (), (), (), (), (), (), (), (), (), (), (), (), (), (), (), (), (), (), (), (), (), (), (), (), (), (), (), (), (), (), (), (), (), (), (), (), (), (), (), (), (), (), (), (), Diesen Text auch löschen (), Dann sortieren (), In den Spalten C, D, E, Daten eingeben (), Die Künstler löschen (), (), () | K92: =IF(A92<$K$1,Fixtermine!$H$105,IF(A92>$K$1,Fixtermine!$H$1,IF(B92<$L$1,Fixtermine!$H$105,Fixtermine!$H$1))) -> 2018
G93: 2018 | I93: (), (), (), (), (), (), (), (), (), (), (), (), (), (), (), (), (), (), (), (), (), (), (), (), (), (), (), (), (), (), (), (), (), (), (), (), (), (), (), (), (), (), (), (), (), (), (), (), (), (), (), (), (), Diesen Text auch löschen (), Dann sortieren (), In den Spalten C, D, E, Daten eingeben (), Die Künstler löschen (), (), () | K93: =IF(A93<$K$1,Fixtermine!$H$105,IF(A93>$K$1,Fixtermine!$H$1,IF(B93<$L$1,Fixtermine!$H$105,Fixtermine!$H$1))) -> 2018
G94: 2018 | I94: (), (), (), (), (), (), (), (), (), (), (), (), (), (), (), (), (), (), (), (), (), (), (), (), (), (), (), (), (), (), (), (), (), (), (), (), (), (), (), (), (), (), (), (), (), (), (), (), (), (), (), (), (), (), Diesen Text auch löschen (), Dann sortieren (), In den Spalten C, D, E, Daten eingeben (), Die Künstler löschen (), (), () | K94: =IF(A94<$K$1,Fixtermine!$H$105,IF(A94>$K$1,Fixtermine!$H$1,IF(B94<$L$1,Fixtermine!$H$105,Fixtermine!$H$1))) -> 2018
G95: 2018 | I95: (), (), (), (), (), (), (), (), (), (), (), (), (), (), (), (), (), (), (), (), (), (), (), (), (), (), (), (), (), (), (), (), (), (), (), (), (), (), (), (), (), (), (), (), (), (), (), (), (), (), (), (), (), (), (), Diesen Text auch löschen (), Dann sortieren (), In den Spalten C, D, E, Daten eingeben (), Die Künstler löschen (), (), () | K95: =IF(A95<$K$1,Fixtermine!$H$105,IF(A95>$K$1,Fixtermine!$H$1,IF(B95<$L$1,Fixtermine!$H$105,Fixtermine!$H$1))) -> 2018
G96: 2018 | I96: (), (), (), (), (), (), (), (), (), (), (), (), (), (), (), (), (), (), (), (), (), (), (), (), (), (), (), (), (), (), (), (), (), (), (), (), (), (), (), (), (), (), (), (), (), (), (), (), (), (), (), (), (), (), (), (), Diesen Text auch löschen (), Dann sortieren (), In den Spalten C, D, E, Daten eingeben (), Die Künstler löschen (), (), () | K96: =IF(A96<$K$1,Fixtermine!$H$105,IF(A96>$K$1,Fixtermine!$H$1,IF(B96<$L$1,Fixtermine!$H$105,Fixtermine!$H$1))) -> 2018
G97: 2018 | I97: (), (), (), (), (), (), (), (), (), (), (), (), (), (), (), (), (), (), (), (), (), (), (), (), (), (), (), (), (), (), (), (), (), (), (), (), (), (), (), (), (), (), (), (), (), (), (), (), (), (), (), (), (), (), (), (), (), Diesen Text auch löschen (), Dann sortieren (), In den Spalten C, D, E, Daten eingeben (), Die Künstler löschen (), (), () | K97: =IF(A97<$K$1,Fixtermine!$H$105,IF(A97>$K$1,Fixtermine!$H$1,IF(B97<$L$1,Fixtermine!$H$105,Fixtermine!$H$1))) -> 2018
G98: 2018 | I98: (), (), (), (), (), (), (), (), (), (), (), (), (), (), (), (), (), (), (), (), (), (), (), (), (), (), (), (), (), (), (), (), (), (), (), (), (), (), (), (), (), (), (), (), (), (), (), (), (), (), (), (), (), (), (), (), (), (), Diesen Text auch löschen (), Dann sortieren (), In den Spalten C, D, E, Daten eingeben (), Die Künstler löschen (), (), () | K98: =IF(A98<$K$1,Fixtermine!$H$105,IF(A98>$K$1,Fixtermine!$H$1,IF(B98<$L$1,Fixtermine!$H$105,Fixtermine!$H$1))) -> 2018
G99: 2018 | I99: (), (), (), (), (), (), (), (), (), (), (), (), (), (), (), (), (), (), (), (), (), (), (), (), (), (), (), (), (), (), (), (), (), (), (), (), (), (), (), (), (), (), (), (), (), (), (), (), (), (), (), (), (), (), (), (), (), (), (), Diesen Text auch löschen (), Dann sortieren (), In den Spalten C, D, E, Daten eingeben (), Die Künstler löschen (), (), () | K99: =IF(A99<$K$1,Fixtermine!$H$105,IF(A99>$K$1,Fixtermine!$H$1,IF(B99<$L$1,Fixtermine!$H$105,Fixtermine!$H$1))) -> 2018
G100: 2018 | I100: (), (), (), (), (), (), (), (), (), (), (), (), (), (), (), (), (), (), (), (), (), (), (), (), (), (), (), (), (), (), (), (), (), (), (), (), (), (), (), (), (), (), (), (), (), (), (), (), (), (), (), (), (), (), (), (), (), (), (), (), Diesen Text auch löschen (), Dann sortieren (), In den Spalten C, D, E, Daten eingeben (), Die Künstler löschen (), (), () | K100: =IF(A100<$K$1,Fixtermine!$H$105,IF(A100>$K$1,Fixtermine!$H$1,IF(B100<$L$1,Fixtermine!$H$105,Fixtermine!$H$1))) -> 2018
G101: 2018 | I101: (), (), (), (), (), (), (), (), (), (), (), (), (), (), (), (), (), (), (), (), (), (), (), (), (), (), (), (), (), (), (), (), (), (), (), (), (), (), (), (), (), (), (), (), (), (), (), (), (), (), (), (), (), (), (), (), (), (), (), (), (), Diesen Text auch löschen (), Dann sortieren (), In den Spalten C, D, E, Daten eingeben (), Die Künstler löschen (), (), () | K101: =IF(A101<$K$1,Fixtermine!$H$105,IF(A101>$K$1,Fixtermine!$H$1,IF(B101<$L$1,Fixtermine!$H$105,Fixtermine!$H$1))) -> 2018
G102: 2018 | I102: (), (), (), (), (), (), (), (), (), (), (), (), (), (), (), (), (), (), (), (), (), (), (), (), (), (), (), (), (), (), (), (), (), (), (), (), (), (), (), (), (), (), (), (), (), (), (), (), (), (), (), (), (), (), (), (), (), (), (), (), (), (), Diesen Text auch löschen (), Dann sortieren (), In den Spalten C, D, E, Daten eingeben (), Die Künstler löschen (), (), () | K102: =IF(A102<$K$1,Fixtermine!$H$105,IF(A102>$K$1,Fixtermine!$H$1,IF(B102<$L$1,Fixtermine!$H$105,Fixtermine!$H$1))) -> 2018
G103: 2018 | I103: (), (), (), (), (), (), (), (), (), (), (), (), (), (), (), (), (), (), (), (), (), (), (), (), (), (), (), (), (), (), (), (), (), (), (), (), (), (), (), (), (), (), (), (), (), (), (), (), (), (), (), (), (), (), (), (), (), (), (), (), (), (), (), Diesen Text auch löschen (), Dann sortieren (), In den Spalten C, D, E, Daten eingeben (), Die Künstler löschen (), (), () | K103: =IF(A103<$K$1,Fixtermine!$H$105,IF(A103>$K$1,Fixtermine!$H$1,IF(B103<$L$1,Fixtermine!$H$105,Fixtermine!$H$1))) -> 2018
G104: 2018 | I104: (), (), (), (), (), (), (), (), (), (), (), (), (), (), (), (), (), (), (), (), (), (), (), (), (), (), (), (), (), (), (), (), (), (), (), (), (), (), (), (), (), (), (), (), (), (), (), (), (), (), (), (), (), (), (), (), (), (), (), (), (), (), (), (), Diesen Text auch löschen (), Dann sortieren (), In den Spalten C, D, E, Daten eingeben (), Die Künstler löschen (), (), () | K104: =IF(A104<$K$1,Fixtermine!$H$105,IF(A104>$K$1,Fixtermine!$H$1,IF(B104<$L$1,Fixtermine!$H$105,Fixtermine!$H$1))) -> 2018
G105: 2018 | I105: (), (), (), (), (), (), (), (), (), (), (), (), (), (), (), (), (), (), (), (), (), (), (), (), (), (), (), (), (), (), (), (), (), (), (), (), (), (), (), (), (), (), (), (), (), (), (), (), (), (), (), (), (), (), (), (), (), (), (), (), (), (), (), (), (), Diesen Text auch löschen (), Dann sortieren (), In den Spalten C, D, E, Daten eingeben (), Die Künstler löschen (), (), () | K105: =IF(A105<$K$1,Fixtermine!$H$105,IF(A105>$K$1,Fixtermine!$H$1,IF(B105<$L$1,Fixtermine!$H$105,Fixtermine!$H$1))) -> 2018
G106: 2018 | I106: (), (), (), (), (), (), (), (), (), (), (), (), (), (), (), (), (), (), (), (), (), (), (), (), (), (), (), (), (), (), (), (), (), (), (), (), (), (), (), (), (), (), (), (), (), (), (), (), (), (), (), (), (), (), (), (), (), (), (), (), (), (), (), (), (), (), Diesen Text auch löschen (), Dann sortieren (), In den Spalten C, D, E, Daten eingeben (), Die Künstler löschen (), (), () | K106: =IF(A106<$K$1,Fixtermine!$H$105,IF(A106>$K$1,Fixtermine!$H$1,IF(B106<$L$1,Fixtermine!$H$105,Fixtermine!$H$1))) -> 2018
G107: 2018 | I107: (), (), (), (), (), (), (), (), (), (), (), (), (), (), (), (), (), (), (), (), (), (), (), (), (), (), (), (), (), (), (), (), (), (), (), (), (), (), (), (), (), (), (), (), (), (), (), (), (), (), (), (), (), (), (), (), (), (), (), (), (), (), (), (), (), (), (), Diesen Text auch löschen (), Dann sortieren (), In den Spalten C, D, E, Daten eingeben (), Die Künstler löschen (), (), () | K107: =IF(A107<$K$1,Fixtermine!$H$105,IF(A107>$K$1,Fixtermine!$H$1,IF(B107<$L$1,Fixtermine!$H$105,Fixtermine!$H$1))) -> 2018
G108: 2018 | I108: (), (), (), (), (), (), (), (), (), (), (), (), (), (), (), (), (), (), (), (), (), (), (), (), (), (), (), (), (), (), (), (), (), (), (), (), (), (), (), (), (), (), (), (), (), (), (), (), (), (), (), (), (), (), (), (), (), (), (), (), (), (), (), (), (), (), (), (), Diesen Text auch löschen (), Dann sortieren (), In den Spalten C, D, E, Daten eingeben (), Die Künstler löschen (), (), () | K108: =IF(A108<$K$1,Fixtermine!$H$105,IF(A108>$K$1,Fixtermine!$H$1,IF(B108<$L$1,Fixtermine!$H$105,Fixtermine!$H$1))) -> 2018
G109: 2018 | I109: (), (), (), (), (), (), (), (), (), (), (), (), (), (), (), (), (), (), (), (), (), (), (), (), (), (), (), (), (), (), (), (), (), (), (), (), (), (), (), (), (), (), (), (), (), (), (), (), (), (), (), (), (), (), (), (), (), (), (), (), (), (), (), (), (), (), (), (), (), Diesen Text auch löschen (), Dann sortieren (), In den Spalten C, D, E, Daten eingeben (), Die Künstler löschen (), (), () | K109: =IF(A109<$K$1,Fixtermine!$H$105,IF(A109>$K$1,Fixtermine!$H$1,IF(B109<$L$1,Fixtermine!$H$105,Fixtermine!$H$1))) -> 2018
G110: 2018 | I110: (), (), (), (), (), (), (), (), (), (), (), (), (), (), (), (), (), (), (), (), (), (), (), (), (), (), (), (), (), (), (), (), (), (), (), (), (), (), (), (), (), (), (), (), (), (), (), (), (), (), (), (), (), (), (), (), (), (), (), (), (), (), (), (), (), (), (), (), (), (), Diesen Text auch löschen (), Dann sortieren (), In den Spalten C, D, E, Daten eingeben (), Die Künstler löschen (), (), () | K110: =IF(A110<$K$1,Fixtermine!$H$105,IF(A110>$K$1,Fixtermine!$H$1,IF(B110<$L$1,Fixtermine!$H$105,Fixtermine!$H$1))) -> 2018
G111: 2018 | I111: (), (), (), (), (), (), (), (), (), (), (), (), (), (), (), (), (), (), (), (), (), (), (), (), (), (), (), (), (), (), (), (), (), (), (), (), (), (), (), (), (), (), (), (), (), (), (), (), (), (), (), (), (), (), (), (), (), (), (), (), (), (), (), (), (), (), (), (), (), (), (), Diesen Text auch löschen (), Dann sortieren (), In den Spalten C, D, E, Daten eingeben (), Die Künstler löschen (), (), () | K111: =IF(A111<$K$1,Fixtermine!$H$105,IF(A111>$K$1,Fixtermine!$H$1,IF(B111<$L$1,Fixtermine!$H$105,Fixtermine!$H$1))) -> 2018
G112: 2018 | I112: (), (), (), (), (), (), (), (), (), (), (), (), (), (), (), (), (), (), (), (), (), (), (), (), (), (), (), (), (), (), (), (), (), (), (), (), (), (), (), (), (), (), (), (), (), (), (), (), (), (), (), (), (), (), (), (), (), (), (), (), (), (), (), (), (), (), (), (), (), (), (), (), Diesen Text auch löschen (), Dann sortieren (), In den Spalten C, D, E, Daten eingeben (), Die Künstler löschen (), (), () | K112: =IF(A112<$K$1,Fixtermine!$H$105,IF(A112>$K$1,Fixtermine!$H$1,IF(B112<$L$1,Fixtermine!$H$105,Fixtermine!$H$1))) -> 2018
G113: 2018 | I113: (), (), (), (), (), (), (), (), (), (), (), (), (), (), (), (), (), (), (), (), (), (), (), (), (), (), (), (), (), (), (), (), (), (), (), (), (), (), (), (), (), (), (), (), (), (), (), (), (), (), (), (), (), (), (), (), (), (), (), (), (), (), (), (), (), (), (), (), (), (), (), (), (), Diesen Text auch löschen (), Dann sortieren (), In den Spalten C, D, E, Daten eingeben (), Die Künstler löschen (), (), () | K113: =IF(A113<$K$1,Fixtermine!$H$105,IF(A113>$K$1,Fixtermine!$H$1,IF(B113<$L$1,Fixtermine!$H$105,Fixtermine!$H$1))) -> 2018
G114: 2018 | I114: (), (), (), (), (), (), (), (), (), (), (), (), (), (), (), (), (), (), (), (), (), (), (), (), (), (), (), (), (), (), (), (), (), (), (), (), (), (), (), (), (), (), (), (), (), (), (), (), (), (), (), (), (), (), (), (), (), (), (), (), (), (), (), (), (), (), (), (), (), (), (), (), (), (), Diesen Text auch löschen (), Dann sortieren (), In den Spalten C, D, E, Daten eingeben (), Die Künstler löschen (), (), () | K114: =IF(A114<$K$1,Fixtermine!$H$105,IF(A114>$K$1,Fixtermine!$H$1,IF(B114<$L$1,Fixtermine!$H$105,Fixtermine!$H$1))) -> 2018
G115: 2018 | I115: (), (), (), (), (), (), (), (), (), (), (), (), (), (), (), (), (), (), (), (), (), (), (), (), (), (), (), (), (), (), (), (), (), (), (), (), (), (), (), (), (), (), (), (), (), (), (), (), (), (), (), (), (), (), (), (), (), (), (), (), (), (), (), (), (), (), (), (), (), (), (), (), (), (), (), Diesen Text auch löschen (), Dann sortieren (), In den Spalten C, D, E, Daten eingeben (), Die Künstler löschen (), (), () | K115: =IF(A115<$K$1,Fixtermine!$H$105,IF(A115>$K$1,Fixtermine!$H$1,IF(B115<$L$1,Fixtermine!$H$105,Fixtermine!$H$1))) -> 2018
G116: 2018 | I116: (), (), (), (), (), (), (), (), (), (), (), (), (), (), (), (), (), (), (), (), (), (), (), (), (), (), (), (), (), (), (), (), (), (), (), (), (), (), (), (), (), (), (), (), (), (), (), (), (), (), (), (), (), (), (), (), (), (), (), (), (), (), (), (), (), (), (), (), (), (), (), (), (), (), (), (), Diesen Text auch löschen (), Dann sortieren (), In den Spalten C, D, E, Daten eingeben (), Die Künstler löschen (), (), () | K116: =IF(A116<$K$1,Fixtermine!$H$105,IF(A116>$K$1,Fixtermine!$H$1,IF(B116<$L$1,Fixtermine!$H$105,Fixtermine!$H$1))) -> 2018
G117: 2018 | I117: (), (), (), (), (), (), (), (), (), (), (), (), (), (), (), (), (), (), (), (), (), (), (), (), (), (), (), (), (), (), (), (), (), (), (), (), (), (), (), (), (), (), (), (), (), (), (), (), (), (), (), (), (), (), (), (), (), (), (), (), (), (), (), (), (), (), (), (), (), (), (), (), (), (), (), (), (), Diesen Text auch löschen (), Dann sortieren (), In den Spalten C, D, E, Daten eingeben (), Die Künstler löschen (), (), () | K117: =IF(A117<$K$1,Fixtermine!$H$105,IF(A117>$K$1,Fixtermine!$H$1,IF(B117<$L$1,Fixtermine!$H$105,Fixtermine!$H$1))) -> 2018
G118: 2018 | I118: (), (), (), (), (), (), (), (), (), (), (), (), (), (), (), (), (), (), (), (), (), (), (), (), (), (), (), (), (), (), (), (), (), (), (), (), (), (), (), (), (), (), (), (), (), (), (), (), (), (), (), (), (), (), (), (), (), (), (), (), (), (), (), (), (), (), (), (), (), (), (), (), (), (), (), (), (), (), Diesen Text auch löschen (), Dann sortieren (), In den Spalten C, D, E, Daten eingeben (), Die Künstler löschen (), (), () | K118: =IF(A118<$K$1,Fixtermine!$H$105,IF(A118>$K$1,Fixtermine!$H$1,IF(B118<$L$1,Fixtermine!$H$105,Fixtermine!$H$1))) -> 2018
G119: 2018 | I119: (), (), (), (), (), (), (), (), (), (), (), (), (), (), (), (), (), (), (), (), (), (), (), (), (), (), (), (), (), (), (), (), (), (), (), (), (), (), (), (), (), (), (), (), (), (), (), (), (), (), (), (), (), (), (), (), (), (), (), (), (), (), (), (), (), (), (), (), (), (), (), (), (), (), (), (), (), (), (), Diesen Text auch löschen (), Dann sortieren (), In den Spalten C, D, E, Daten eingeben (), Die Künstler löschen (), (), () | K119: =IF(A119<$K$1,Fixtermine!$H$105,IF(A119>$K$1,Fixtermine!$H$1,IF(B119<$L$1,Fixtermine!$H$105,Fixtermine!$H$1))) -> 2018
G120: 2018 | I120: (), (), (), (), (), (), (), (), (), (), (), (), (), (), (), (), (), (), (), (), (), (), (), (), (), (), (), (), (), (), (), (), (), (), (), (), (), (), (), (), (), (), (), (), (), (), (), (), (), (), (), (), (), (), (), (), (), (), (), (), (), (), (), (), (), (), (), (), (), (), (), (), (), (), (), (), (), (), (), (), Diesen Text auch löschen (), Dann sortieren (), In den Spalten C, D, E, Daten eingeben (), Die Künstler löschen (), (), () | K120: =IF(A120<$K$1,Fixtermine!$H$105,IF(A120>$K$1,Fixtermine!$H$1,IF(B120<$L$1,Fixtermine!$H$105,Fixtermine!$H$1))) -> 2018
G121: 2018 | I121: (), (), (), (), (), (), (), (), (), (), (), (), (), (), (), (), (), (), (), (), (), (), (), (), (), (), (), (), (), (), (), (), (), (), (), (), (), (), (), (), (), (), (), (), (), (), (), (), (), (), (), (), (), (), (), (), (), (), (), (), (), (), (), (), (), (), (), (), (), (), (), (), (), (), (), (), (), (), (), (), (), Diesen Text auch löschen (), Dann sortieren (), In den Spalten C, D, E, Daten eingeben (), Die Künstler löschen (), (), () | K121: =IF(A121<$K$1,Fixtermine!$H$105,IF(A121>$K$1,Fixtermine!$H$1,IF(B121<$L$1,Fixtermine!$H$105,Fixtermine!$H$1))) -> 2018
G122: 2018 | I122: (), (), (), (), (), (), (), (), (), (), (), (), (), (), (), (), (), (), (), (), (), (), (), (), (), (), (), (), (), (), (), (), (), (), (), (), (), (), (), (), (), (), (), (), (), (), (), (), (), (), (), (), (), (), (), (), (), (), (), (), (), (), (), (), (), (), (), (), (), (), (), (), (), (), (), (), (), (), (), (), (), (), Diesen Text auch löschen (), Dann sortieren (), In den Spalten C, D, E, Daten eingeben (), Die Künstler löschen (), (), () | K122: =IF(A122<$K$1,Fixtermine!$H$105,IF(A122>$K$1,Fixtermine!$H$1,IF(B122<$L$1,Fixtermine!$H$105,Fixtermine!$H$1))) -> 2018
G123: 2018 | I123: (), (), (), (), (), (), (), (), (), (), (), (), (), (), (), (), (), (), (), (), (), (), (), (), (), (), (), (), (), (), (), (), (), (), (), (), (), (), (), (), (), (), (), (), (), (), (), (), (), (), (), (), (), (), (), (), (), (), (), (), (), (), (), (), (), (), (), (), (), (), (), (), (), (), (), (), (), (), (), (), (), (), (), Diesen Text auch löschen (), Dann sortieren (), In den Spalten C, D, E, Daten eingeben (), Die Künstler löschen (), (), () | K123: =IF(A123<$K$1,Fixtermine!$H$105,IF(A123>$K$1,Fixtermine!$H$1,IF(B123<$L$1,Fixtermine!$H$105,Fixtermine!$H$1))) -> 2018
G124: 2018 | I124: (), (), (), (), (), (), (), (), (), (), (), (), (), (), (), (), (), (), (), (), (), (), (), (), (), (), (), (), (), (), (), (), (), (), (), (), (), (), (), (), (), (), (), (), (), (), (), (), (), (), (), (), (), (), (), (), (), (), (), (), (), (), (), (), (), (), (), (), (), (), (), (), (), (), (), (), (), (), (), (), (), (), (), (), Diesen Text auch löschen (), Dann sortieren (), In den Spalten C, D, E, Daten eingeben (), Die Künstler löschen (), (), () | K124: =IF(A124<$K$1,Fixtermine!$H$105,IF(A124>$K$1,Fixtermine!$H$1,IF(B124<$L$1,Fixtermine!$H$105,Fixtermine!$H$1))) -> 2018
G125: 2018 | I125: (), (), (), (), (), (), (), (), (), (), (), (), (), (), (), (), (), (), (), (), (), (), (), (), (), (), (), (), (), (), (), (), (), (), (), (), (), (), (), (), (), (), (), (), (), (), (), (), (), (), (), (), (), (), (), (), (), (), (), (), (), (), (), (), (), (), (), (), (), (), (), (), (), (), (), (), (), (), (), (), (), (), (), (), (), Diesen Text auch löschen (), Dann sortieren (), In den Spalten C, D, E, Daten eingeben (), Die Künstler löschen (), (), () | K125: =IF(A125<$K$1,Fixtermine!$H$105,IF(A125>$K$1,Fixtermine!$H$1,IF(B125<$L$1,Fixtermine!$H$105,Fixtermine!$H$1))) -> 2018
G126: 2018 | I126: (), (), (), (), (), (), (), (), (), (), (), (), (), (), (), (), (), (), (), (), (), (), (), (), (), (), (), (), (), (), (), (), (), (), (), (), (), (), (), (), (), (), (), (), (), (), (), (), (), (), (), (), (), (), (), (), (), (), (), (), (), (), (), (), (), (), (), (), (), (), (), (), (), (), (), (), (), (), (), (), (), (), (), (), (), (), Diesen Text auch löschen (), Dann sortieren (), In den Spalten C, D, E, Daten eingeben (), Die Künstler löschen (), (), () | K126: =IF(A126<$K$1,Fixtermine!$H$105,IF(A126>$K$1,Fixtermine!$H$1,IF(B126<$L$1,Fixtermine!$H$105,Fixtermine!$H$1))) -> 2018
G127: 2018 | I127: (), (), (), (), (), (), (), (), (), (), (), (), (), (), (), (), (), (), (), (), (), (), (), (), (), (), (), (), (), (), (), (), (), (), (), (), (), (), (), (), (), (), (), (), (), (), (), (), (), (), (), (), (), (), (), (), (), (), (), (), (), (), (), (), (), (), (), (), (), (), (), (), (), (), (), (), (), (), (), (), (), (), (), (), (), (), (), Diesen Text auch löschen (), Dann sortieren (), In den Spalten C, D, E, Daten eingeben (), Die Künstler löschen (), (), () | K127: =IF(A127<$K$1,Fixtermine!$H$105,IF(A127>$K$1,Fixtermine!$H$1,IF(B127<$L$1,Fixtermine!$H$105,Fixtermine!$H$1))) -> 2018
G128: 2018 | I128: (), (), (), (), (), (), (), (), (), (), (), (), (), (), (), (), (), (), (), (), (), (), (), (), (), (), (), (), (), (), (), (), (), (), (), (), (), (), (), (), (), (), (), (), (), (), (), (), (), (), (), (), (), (), (), (), (), (), (), (), (), (), (), (), (), (), (), (), (), (), (), (), (), (), (), (), (), (), (), (), (), (), (), (), (), (), (), (), Diesen Text auch löschen (), Dann sortieren (), In den Spalten C, D, E, Daten eingeben (), Die Künstler löschen (), (), () | K128: =IF(A128<$K$1,Fixtermine!$H$105,IF(A128>$K$1,Fixtermine!$H$1,IF(B128<$L$1,Fixtermine!$H$105,Fixtermine!$H$1))) -> 2018
G129: 2018 | H129: =IF(J129=J130," ",IF(E129="","",DATEVALUE(G129))) ->  | I129: (), (), (), (), (), (), (), (), (), (), (), (), (), (), (), (), (), (), (), (), (), (), (), (), (), (), (), (), (), (), (), (), (), (), (), (), (), (), (), (), (), (), (), (), (), (), (), (), (), (), (), (), (), (), (), (), (), (), (), (), (), (), (), (), (), (), (), (), (), (), (), (), (), (), (), (), (), (), (), (), (), (), (), (), (), (), (), (), (), Diesen Text auch löschen (), Dann sortieren (), In den Spalten C, D, E, Daten eingeben (), Die Künstler löschen (), (), () | K129: =IF(A129<$K$1,Fixtermine!$H$105,IF(A129>$K$1,Fixtermine!$H$1,IF(B129<$L$1,Fixtermine!$H$105,Fixtermine!$H$1))) -> 2018
A130: =IF(E130="","",MONTH(E130)) ->  | B130: =IF(E130="","",IF(A130=2,IF(DAY(E130)=29,DAY(E130)-$G$1,DAY(E130)),DAY(E130))) ->  | F130: =IF(E130="","",INT((G130-E130)/365)) ->  | G130: 2018 | H130: =IF(J130=J131," ",IF(E130="","",DATEVALUE(G130))) ->  | I130: =IF(J130=J129,CONCATENATE(C130," ",D130," (",F130,"), ",I129),CONCATENATE(C130," ",D130," (",F130,")")) -> (), (), (), (), (), (), (), (), (), (), (), (), (), (), (), (), (), (), (), (), (), (), (), (), (), (), (), (), (), (), (), (), (), (), (), (), (), (), (), (), (), (), (), (), (), (), (), (), (), (), (), (), (), (), (), (), (), (), (), (), (), (), (), (), (), (), (), (), (), (), (), (), (), (), (), (), (), (), (), (), (), (), (), (), (), (), (), (), (), (), Diesen Text auch löschen (), Dann sortieren (), In den Spalten C, D, E, Daten eingeben (), Die Künstler löschen (), (), () | J130: =IF(E130="","",CONCATENATE(B130,".",A130,".")) ->  | K130: =IF(A130<$K$1,Fixtermine!$H$105,IF(A130>$K$1,Fixtermine!$H$1,IF(B130<$L$1,Fixtermine!$H$105,Fixtermine!$H$1))) -> 2018
G131: =IF(J131="29.2.",CONCATENATE("28.2.",K131),CONCATENATE(J131,K131)) -> 2018 | I131: (), (), (), (), (), (), (), (), (), (), (), (), (), (), (), (), (), (), (), (), (), (), (), (), (), (), (), (), (), (), (), (), (), (), (), (), (), (), (), (), (), (), (), (), (), (), (), (), (), (), (), (), (), (), (), (), (), (), (), (), (), (), (), (), (), (), (), (), (), (), (), (), (), (), (), (), (), (), (), (), (), (), (), (), (), (), (), (), (), (), (), Diesen Text auch löschen (), Dann sortieren (), In den Spalten C, D, E, Daten eingeben (), Die Künstler löschen (), (), () | K131: =IF(A131<$K$1,Fixtermine!$H$105,IF(A131>$K$1,Fixtermine!$H$1,IF(B131<$L$1,Fixtermine!$H$105,Fixtermine!$H$1))) -> 2018
G132: 2018 | I132: (), (), (), (), (), (), (), (), (), (), (), (), (), (), (), (), (), (), (), (), (), (), (), (), (), (), (), (), (), (), (), (), (), (), (), (), (), (), (), (), (), (), (), (), (), (), (), (), (), (), (), (), (), (), (), (), (), (), (), (), (), (), (), (), (), (), (), (), (), (), (), (), (), (), (), (), (), (), (), (), (), (), (), (), (), (), (), (), (), (), (), (), Diesen Text auch löschen (), Dann sortieren (), In den Spalten C, D, E, Daten eingeben (), Die Künstler löschen (), (), () | K132: =IF(A132<$K$1,Fixtermine!$H$105,IF(A132>$K$1,Fixtermine!$H$1,IF(B132<$L$1,Fixtermine!$H$105,Fixtermine!$H$1))) -> 2018
G133: 2018 | I133: (), (), (), (), (), (), (), (), (), (), (), (), (), (), (), (), (), (), (), (), (), (), (), (), (), (), (), (), (), (), (), (), (), (), (), (), (), (), (), (), (), (), (), (), (), (), (), (), (), (), (), (), (), (), (), (), (), (), (), (), (), (), (), (), (), (), (), (), (), (), (), (), (), (), (), (), (), (), (), (), (), (), (), (), (), (), (), (), (), (), (), (), (), Diesen Text auch löschen (), Dann sortieren (), In den Spalten C, D, E, Daten eingeben (), Die Künstler löschen (), (), () | K133: =IF(A133<$K$1,Fixtermine!$H$105,IF(A133>$K$1,Fixtermine!$H$1,IF(B133<$L$1,Fixtermine!$H$105,Fixtermine!$H$1))) -> 2018
G134: 2018 | I134: (), (), (), (), (), (), (), (), (), (), (), (), (), (), (), (), (), (), (), (), (), (), (), (), (), (), (), (), (), (), (), (), (), (), (), (), (), (), (), (), (), (), (), (), (), (), (), (), (), (), (), (), (), (), (), (), (), (), (), (), (), (), (), (), (), (), (), (), (), (), (), (), (), (), (), (), (), (), (), (), (), (), (), (), (), (), (), (), (), (), (), (), (), (), Diesen Text auch löschen (), Dann sortieren (), In den Spalten C, D, E, Daten eingeben (), Die Künstler löschen (), (), () | K134: =IF(A134<$K$1,Fixtermine!$H$105,IF(A134>$K$1,Fixtermine!$H$1,IF(B134<$L$1,Fixtermine!$H$105,Fixtermine!$H$1))) -> 2018
G135: 2018 | I135: (), (), (), (), (), (), (), (), (), (), (), (), (), (), (), (), (), (), (), (), (), (), (), (), (), (), (), (), (), (), (), (), (), (), (), (), (), (), (), (), (), (), (), (), (), (), (), (), (), (), (), (), (), (), (), (), (), (), (), (), (), (), (), (), (), (), (), (), (), (), (), (), (), (), (), (), (), (), (), (), (), (), (), (), (), (), (), (), (), (), (), (), (), (), (), Diesen Text auch löschen (), Dann sortieren (), In den Spalten C, D, E, Daten eingeben (), Die Künstler löschen (), (), () | K135: =IF(A135<$K$1,Fixtermine!$H$105,IF(A135>$K$1,Fixtermine!$H$1,IF(B135<$L$1,Fixtermine!$H$105,Fixtermine!$H$1))) -> 2018
G136: 2018 | I136: (), (), (), (), (), (), (), (), (), (), (), (), (), (), (), (), (), (), (), (), (), (), (), (), (), (), (), (), (), (), (), (), (), (), (), (), (), (), (), (), (), (), (), (), (), (), (), (), (), (), (), (), (), (), (), (), (), (), (), (), (), (), (), (), (), (), (), (), (), (), (), (), (), (), (), (), (), (), (), (), (), (), (), (), (), (), (), (), (), (), (), (), (), (), (), (), Diesen Text auch löschen (), Dann sortieren (), In den Spalten C, D, E, Daten eingeben (), Die Künstler löschen (), (), () | K136: =IF(A136<$K$1,Fixtermine!$H$105,IF(A136>$K$1,Fixtermine!$H$1,IF(B136<$L$1,Fixtermine!$H$105,Fixtermine!$H$1))) -> 2018
G137: 2018 | I137: (), (), (), (), (), (), (), (), (), (), (), (), (), (), (), (), (), (), (), (), (), (), (), (), (), (), (), (), (), (), (), (), (), (), (), (), (), (), (), (), (), (), (), (), (), (), (), (), (), (), (), (), (), (), (), (), (), (), (), (), (), (), (), (), (), (), (), (), (), (), (), (), (), (), (), (), (), (), (), (), (), (), (), (), (), (), (), (), (), (), (), (), (), (), (), (), (), Diesen Text auch löschen (), Dann sortieren (), In den Spalten C, D, E, Daten eingeben (), Die Künstler löschen (), (), () | K137: =IF(A137<$K$1,Fixtermine!$H$105,IF(A137>$K$1,Fixtermine!$H$1,IF(B137<$L$1,Fixtermine!$H$105,Fixtermine!$H$1))) -> 2018
G138: 2018 | I138: (), (), (), (), (), (), (), (), (), (), (), (), (), (), (), (), (), (), (), (), (), (), (), (), (), (), (), (), (), (), (), (), (), (), (), (), (), (), (), (), (), (), (), (), (), (), (), (), (), (), (), (), (), (), (), (), (), (), (), (), (), (), (), (), (), (), (), (), (), (), (), (), (), (), (), (), (), (), (), (), (), (), (), (), (), (), (), (), (), (), (), (), (), (), (), (), (), (), Diesen Text auch löschen (), Dann sortieren (), In den Spalten C, D, E, Daten eingeben (), Die Künstler löschen (), (), () | K138: =IF(A138<$K$1,Fixtermine!$H$105,IF(A138>$K$1,Fixtermine!$H$1,IF(B138<$L$1,Fixtermine!$H$105,Fixtermine!$H$1))) -> 2018
G139: 2018 | I139: (), (), (), (), (), (), (), (), (), (), (), (), (), (), (), (), (), (), (), (), (), (), (), (), (), (), (), (), (), (), (), (), (), (), (), (), (), (), (), (), (), (), (), (), (), (), (), (), (), (), (), (), (), (), (), (), (), (), (), (), (), (), (), (), (), (), (), (), (), (), (), (), (), (), (), (), (), (), (), (), (), (), (), (), (), (), (), (), (), (), (), (), (), (), (), (), (), (), (), Diesen Text auch löschen (), Dann sortieren (), In den Spalten C, D, E, Daten eingeben (), Die Künstler löschen (), (), () | K139: =IF(A139<$K$1,Fixtermine!$H$105,IF(A139>$K$1,Fixtermine!$H$1,IF(B139<$L$1,Fixtermine!$H$105,Fixtermine!$H$1))) -> 2018
G140: 2018 | I140: (), (), (), (), (), (), (), (), (), (), (), (), (), (), (), (), (), (), (), (), (), (), (), (), (), (), (), (), (), (), (), (), (), (), (), (), (), (), (), (), (), (), (), (), (), (), (), (), (), (), (), (), (), (), (), (), (), (), (), (), (), (), (), (), (), (), (), (), (), (), (), (), (), (), (), (), (), (), (), (), (), (), (), (), (), (), (), (), (), (), (), (), (), (), (), (), (), (), (), (), Diesen Text auch löschen (), Dann sortieren (), In den Spalten C, D, E, Daten eingeben (), Die Künstler löschen (), (), () | K140: =IF(A140<$K$1,Fixtermine!$H$105,IF(A140>$K$1,Fixtermine!$H$1,IF(B140<$L$1,Fixtermine!$H$105,Fixtermine!$H$1))) -> 2018
G141: 2018 | I141: (), (), (), (), (), (), (), (), (), (), (), (), (), (), (), (), (), (), (), (), (), (), (), (), (), (), (), (), (), (), (), (), (), (), (), (), (), (), (), (), (), (), (), (), (), (), (), (), (), (), (), (), (), (), (), (), (), (), (), (), (), (), (), (), (), (), (), (), (), (), (), (), (), (), (), (), (), (), (), (), (), (), (), (), (), (), (), (), (), (), (), (), (), (), (), (), (), (), (), (), (), Diesen Text auch löschen (), Dann sortieren (), In den Spalten C, D, E, Daten eingeben (), Die Künstler löschen (), (), () | K141: =IF(A141<$K$1,Fixtermine!$H$105,IF(A141>$K$1,Fixtermine!$H$1,IF(B141<$L$1,Fixtermine!$H$105,Fixtermine!$H$1))) -> 2018
G142: 2018 | I142: (), (), (), (), (), (), (), (), (), (), (), (), (), (), (), (), (), (), (), (), (), (), (), (), (), (), (), (), (), (), (), (), (), (), (), (), (), (), (), (), (), (), (), (), (), (), (), (), (), (), (), (), (), (), (), (), (), (), (), (), (), (), (), (), (), (), (), (), (), (), (), (), (), (), (), (), (), (), (), (), (), (), (), (), (), (), (), (), (), (), (), (), (), (), (), (), (), (), (), (), (), (), Diesen Text auch löschen (), Dann sortieren (), In den Spalten C, D, E, Daten eingeben (), Die Künstler löschen (), (), () | K142: =IF(A142<$K$1,Fixtermine!$H$105,IF(A142>$K$1,Fixtermine!$H$1,IF(B142<$L$1,Fixtermine!$H$105,Fixtermine!$H$1))) -> 2018
G143: 2018 | I143: (), (), (), (), (), (), (), (), (), (), (), (), (), (), (), (), (), (), (), (), (), (), (), (), (), (), (), (), (), (), (), (), (), (), (), (), (), (), (), (), (), (), (), (), (), (), (), (), (), (), (), (), (), (), (), (), (), (), (), (), (), (), (), (), (), (), (), (), (), (), (), (), (), (), (), (), (), (), (), (), (), (), (), (), (), (), (), (), (), (), (), (), (), (), (), (), (), (), (), (), (), (), (), Diesen Text auch löschen (), Dann sortieren (), In den Spalten C, D, E, Daten eingeben (), Die Künstler löschen (), (), () | K143: =IF(A143<$K$1,Fixtermine!$H$105,IF(A143>$K$1,Fixtermine!$H$1,IF(B143<$L$1,Fixtermine!$H$105,Fixtermine!$H$1))) -> 2018
G144: 2018 | I144: (), (), (), (), (), (), (), (), (), (), (), (), (), (), (), (), (), (), (), (), (), (), (), (), (), (), (), (), (), (), (), (), (), (), (), (), (), (), (), (), (), (), (), (), (), (), (), (), (), (), (), (), (), (), (), (), (), (), (), (), (), (), (), (), (), (), (), (), (), (), (), (), (), (), (), (), (), (), (), (), (), (), (), (), (), (), (), (), (), (), (), (), (), (), (), (), (), (), (), (), (), (), (), (), Diesen Text auch löschen (), Dann sortieren (), In den Spalten C, D, E, Daten eingeben (), Die Künstler löschen (), (), () | K144: =IF(A144<$K$1,Fixtermine!$H$105,IF(A144>$K$1,Fixtermine!$H$1,IF(B144<$L$1,Fixtermine!$H$105,Fixtermine!$H$1))) -> 2018
G145: 2018 | I145: (), (), (), (), (), (), (), (), (), (), (), (), (), (), (), (), (), (), (), (), (), (), (), (), (), (), (), (), (), (), (), (), (), (), (), (), (), (), (), (), (), (), (), (), (), (), (), (), (), (), (), (), (), (), (), (), (), (), (), (), (), (), (), (), (), (), (), (), (), (), (), (), (), (), (), (), (), (), (), (), (), (), (), (), (), (), (), (), (), (), (), (), (), (), (), (), (), (), (), (), (), (), (), (), (), Diesen Text auch löschen (), Dann sortieren (), In den Spalten C, D, E, Daten eingeben (), Die Künstler löschen (), (), () | K145: =IF(A145<$K$1,Fixtermine!$H$105,IF(A145>$K$1,Fixtermine!$H$1,IF(B145<$L$1,Fixtermine!$H$105,Fixtermine!$H$1))) -> 2018
G146: 2018 | I146: (), (), (), (), (), (), (), (), (), (), (), (), (), (), (), (), (), (), (), (), (), (), (), (), (), (), (), (), (), (), (), (), (), (), (), (), (), (), (), (), (), (), (), (), (), (), (), (), (), (), (), (), (), (), (), (), (), (), (), (), (), (), (), (), (), (), (), (), (), (), (), (), (), (), (), (), (), (), (), (), (), (), (), (), (), (), (), (), (), (), (), (), (), (), (), (), (), (), (), (), (), (), (), (), (), (), Diesen Text auch löschen (), Dann sortieren (), In den Spalten C, D, E, Daten eingeben (), Die Künstler löschen (), (), () | K146: =IF(A146<$K$1,Fixtermine!$H$105,IF(A146>$K$1,Fixtermine!$H$1,IF(B146<$L$1,Fixtermine!$H$105,Fixtermine!$H$1))) -> 2018
G147: 2018 | I147: (), (), (), (), (), (), (), (), (), (), (), (), (), (), (), (), (), (), (), (), (), (), (), (), (), (), (), (), (), (), (), (), (), (), (), (), (), (), (), (), (), (), (), (), (), (), (), (), (), (), (), (), (), (), (), (), (), (), (), (), (), (), (), (), (), (), (), (), (), (), (), (), (), (), (), (), (), (), (), (), (), (), (), (), (), (), (), (), (), (), (), (), (), (), (), (), (), (), (), (), (), (), (), (), (), (), (), Diesen Text auch löschen (), Dann sortieren (), In den Spalten C, D, E, Daten eingeben (), Die Künstler löschen (), (), () | K147: =IF(A147<$K$1,Fixtermine!$H$105,IF(A147>$K$1,Fixtermine!$H$1,IF(B147<$L$1,Fixtermine!$H$105,Fixtermine!$H$1))) -> 2018
G148: 2018 | I148: (), (), (), (), (), (), (), (), (), (), (), (), (), (), (), (), (), (), (), (), (), (), (), (), (), (), (), (), (), (), (), (), (), (), (), (), (), (), (), (), (), (), (), (), (), (), (), (), (), (), (), (), (), (), (), (), (), (), (), (), (), (), (), (), (), (), (), (), (), (), (), (), (), (), (), (), (), (), (), (), (), (), (), (), (), (), (), (), (), (), (), (), (), (), (), (), (), (), (), (), (), (), (), (), (), (), (), (), Diesen Text auch löschen (), Dann sortieren (), In den Spalten C, D, E, Daten eingeben (), Die Künstler löschen (), (), () | K148: =IF(A148<$K$1,Fixtermine!$H$105,IF(A148>$K$1,Fixtermine!$H$1,IF(B148<$L$1,Fixtermine!$H$105,Fixtermine!$H$1))) -> 2018
G149: 2018 | I149: (), (), (), (), (), (), (), (), (), (), (), (), (), (), (), (), (), (), (), (), (), (), (), (), (), (), (), (), (), (), (), (), (), (), (), (), (), (), (), (), (), (), (), (), (), (), (), (), (), (), (), (), (), (), (), (), (), (), (), (), (), (), (), (), (), (), (), (), (), (), (), (), (), (), (), (), (), (), (), (), (), (), (), (), (), (), (), (), (), (), (), (), (), (), (), (), (), (), (), (), (), (), (), (), (), (), (), (), (), Diesen Text auch löschen (), Dann sortieren (), In den Spalten C, D, E, Daten eingeben (), Die Künstler löschen (), (), () | K149: =IF(A149<$K$1,Fixtermine!$H$105,IF(A149>$K$1,Fixtermine!$H$1,IF(B149<$L$1,Fixtermine!$H$105,Fixtermine!$H$1))) -> 2018
G150: 2018 | I150: (), (), (), (), (), (), (), (), (), (), (), (), (), (), (), (), (), (), (), (), (), (), (), (), (), (), (), (), (), (), (), (), (), (), (), (), (), (), (), (), (), (), (), (), (), (), (), (), (), (), (), (), (), (), (), (), (), (), (), (), (), (), (), (), (), (), (), (), (), (), (), (), (), (), (), (), (), (), (), (), (), (), (), (), (), (), (), (), (), (), (), (), (), (), (), (), (), (), (), (), (), (), (), (), (), (), (), (), (), (), Diesen Text auch löschen (), Dann sortieren (), In den Spalten C, D, E, Daten eingeben (), Die Künstler löschen (), (), () | K150: =IF(A150<$K$1,Fixtermine!$H$105,IF(A150>$K$1,Fixtermine!$H$1,IF(B150<$L$1,Fixtermine!$H$105,Fixtermine!$H$1))) -> 2018
G151: 2018 | I151: (), (), (), (), (), (), (), (), (), (), (), (), (), (), (), (), (), (), (), (), (), (), (), (), (), (), (), (), (), (), (), (), (), (), (), (), (), (), (), (), (), (), (), (), (), (), (), (), (), (), (), (), (), (), (), (), (), (), (), (), (), (), (), (), (), (), (), (), (), (), (), (), (), (), (), (), (), (), (), (), (), (), (), (), (), (), (), (), (), (), (), (), (), (), (), (), (), (), (), (), (), (), (), (), (), (), (), (), (), (), (), Diesen Text auch löschen (), Dann sortieren (), In den Spalten C, D, E, Daten eingeben (), Die Künstler löschen (), (), () | K151: =IF(A151<$K$1,Fixtermine!$H$105,IF(A151>$K$1,Fixtermine!$H$1,IF(B151<$L$1,Fixtermine!$H$105,Fixtermine!$H$1))) -> 2018
G152: 2018 | I152: (), (), (), (), (), (), (), (), (), (), (), (), (), (), (), (), (), (), (), (), (), (), (), (), (), (), (), (), (), (), (), (), (), (), (), (), (), (), (), (), (), (), (), (), (), (), (), (), (), (), (), (), (), (), (), (), (), (), (), (), (), (), (), (), (), (), (), (), (), (), (), (), (), (), (), (), (), (), (), (), (), (), (), (), (), (), (), (), (), (), (), (), (), (), (), (), (), (), (), (), (), (), (), (), (), (), (), (), (), (), (), (), Diesen Text auch löschen (), Dann sortieren (), In den Spalten C, D, E, Daten eingeben (), Die Künstler löschen (), (), () | K152: =IF(A152<$K$1,Fixtermine!$H$105,IF(A152>$K$1,Fixtermine!$H$1,IF(B152<$L$1,Fixtermine!$H$105,Fixtermine!$H$1))) -> 2018
G153: 2018 | I153: (), (), (), (), (), (), (), (), (), (), (), (), (), (), (), (), (), (), (), (), (), (), (), (), (), (), (), (), (), (), (), (), (), (), (), (), (), (), (), (), (), (), (), (), (), (), (), (), (), (), (), (), (), (), (), (), (), (), (), (), (), (), (), (), (), (), (), (), (), (), (), (), (), (), (), (), (), (), (), (), (), (), (), (), (), (), (), (), (), (), (), (), (), (), (), (), (), (), (), (), (), (), (), (), (), (), (), (), (), (), (), (), (), Diesen Text auch löschen (), Dann sortieren (), In den Spalten C, D, E, Daten eingeben (), Die Künstler löschen (), (), () | K153: =IF(A153<$K$1,Fixtermine!$H$105,IF(A153>$K$1,Fixtermine!$H$1,IF(B153<$L$1,Fixtermine!$H$105,Fixtermine!$H$1))) -> 2018
G154: 2018 | I154: (), (), (), (), (), (), (), (), (), (), (), (), (), (), (), (), (), (), (), (), (), (), (), (), (), (), (), (), (), (), (), (), (), (), (), (), (), (), (), (), (), (), (), (), (), (), (), (), (), (), (), (), (), (), (), (), (), (), (), (), (), (), (), (), (), (), (), (), (), (), (), (), (), (), (), (), (), (), (), (), (), (), (), (), (), (), (), (), (), (), (), (), (), (), (), (), (), (), (), (), (), (), (), (), (), (), (), (), (), (), (), (), (), (), Diesen Text auch löschen (), Dann sortieren (), In den Spalten C, D, E, Daten eingeben (), Die Künstler löschen (), (), () | K154: =IF(A154<$K$1,Fixtermine!$H$105,IF(A154>$K$1,Fixtermine!$H$1,IF(B154<$L$1,Fixtermine!$H$105,Fixtermine!$H$1))) -> 2018
G155: 2018 | I155: (), (), (), (), (), (), (), (), (), (), (), (), (), (), (), (), (), (), (), (), (), (), (), (), (), (), (), (), (), (), (), (), (), (), (), (), (), (), (), (), (), (), (), (), (), (), (), (), (), (), (), (), (), (), (), (), (), (), (), (), (), (), (), (), (), (), (), (), (), (), (), (), (), (), (), (), (), (), (), (), (), (), (), (), (), (), (), (), (), (), (), (), (), (), (), (), (), (), (), (), (), (), (), (), (), (), (), (), (), (), (), (), (), (), (), Diesen Text auch löschen (), Dann sortieren (), In den Spalten C, D, E, Daten eingeben (), Die Künstler löschen (), (), () | K155: =IF(A155<$K$1,Fixtermine!$H$105,IF(A155>$K$1,Fixtermine!$H$1,IF(B155<$L$1,Fixtermine!$H$105,Fixtermine!$H$1))) -> 2018
G156: 2018 | I156: (), (), (), (), (), (), (), (), (), (), (), (), (), (), (), (), (), (), (), (), (), (), (), (), (), (), (), (), (), (), (), (), (), (), (), (), (), (), (), (), (), (), (), (), (), (), (), (), (), (), (), (), (), (), (), (), (), (), (), (), (), (), (), (), (), (), (), (), (), (), (), (), (), (), (), (), (), (), (), (), (), (), (), (), (), (), (), (), (), (), (), (), (), (), (), (), (), (), (), (), (), (), (), (), (), (), (), (), (), (), (), (), (), (), (), (), Diesen Text auch löschen (), Dann sortieren (), In den Spalten C, D, E, Daten eingeben (), Die Künstler löschen (), (), () | K156: =IF(A156<$K$1,Fixtermine!$H$105,IF(A156>$K$1,Fixtermine!$H$1,IF(B156<$L$1,Fixtermine!$H$105,Fixtermine!$H$1))) -> 2018
G157: 2018 | I157: (), (), (), (), (), (), (), (), (), (), (), (), (), (), (), (), (), (), (), (), (), (), (), (), (), (), (), (), (), (), (), (), (), (), (), (), (), (), (), (), (), (), (), (), (), (), (), (), (), (), (), (), (), (), (), (), (), (), (), (), (), (), (), (), (), (), (), (), (), (), (), (), (), (), (), (), (), (), (), (), (), (), (), (), (), (), (), (), (), (), (), (), (), (), (), (), (), (), (), (), (), (), (), (), (), (), (), (), (), (), (), (), (), (), (), (), (), Diesen Text auch löschen (), Dann sortieren (), In den Spalten C, D, E, Daten eingeben (), Die Künstler löschen (), (), () | K157: =IF(A157<$K$1,Fixtermine!$H$105,IF(A157>$K$1,Fixtermine!$H$1,IF(B157<$L$1,Fixtermine!$H$105,Fixtermine!$H$1))) -> 2018
G158: 2018 | I158: (), (), (), (), (), (), (), (), (), (), (), (), (), (), (), (), (), (), (), (), (), (), (), (), (), (), (), (), (), (), (), (), (), (), (), (), (), (), (), (), (), (), (), (), (), (), (), (), (), (), (), (), (), (), (), (), (), (), (), (), (), (), (), (), (), (), (), (), (), (), (), (), (), (), (), (), (), (), (), (), (), (), (), (), (), (), (), (), (), (), (), (), (), (), (), (), (), (), (), (), (), (), (), (), (), (), (), (), (), (), (), (), (), (), (), (), (), (), Diesen Text auch löschen (), Dann sortieren (), In den Spalten C, D, E, Daten eingeben (), Die Künstler löschen (), (), () | K158: =IF(A158<$K$1,Fixtermine!$H$105,IF(A158>$K$1,Fixtermine!$H$1,IF(B158<$L$1,Fixtermine!$H$105,Fixtermine!$H$1))) -> 2018
G159: 2018 | I159: (), (), (), (), (), (), (), (), (), (), (), (), (), (), (), (), (), (), (), (), (), (), (), (), (), (), (), (), (), (), (), (), (), (), (), (), (), (), (), (), (), (), (), (), (), (), (), (), (), (), (), (), (), (), (), (), (), (), (), (), (), (), (), (), (), (), (), (), (), (), (), (), (), (), (), (), (), (), (), (), (), (), (), (), (), (), (), (), (), (), (), (), (), (), (), (), (), (), (), (), (), (), (), (), (), (), (), (), (), (), (), (), (), (), (), (), (), (), (), Diesen Text auch löschen (), Dann sortieren (), In den Spalten C, D, E, Daten eingeben (), Die Künstler löschen (), (), () | K159: =IF(A159<$K$1,Fixtermine!$H$105,IF(A159>$K$1,Fixtermine!$H$1,IF(B159<$L$1,Fixtermine!$H$105,Fixtermine!$H$1))) -> 2018
G160: 2018 | I160: (), (), (), (), (), (), (), (), (), (), (), (), (), (), (), (), (), (), (), (), (), (), (), (), (), (), (), (), (), (), (), (), (), (), (), (), (), (), (), (), (), (), (), (), (), (), (), (), (), (), (), (), (), (), (), (), (), (), (), (), (), (), (), (), (), (), (), (), (), (), (), (), (), (), (), (), (), (), (), (), (), (), (), (), (), (), (), (), (), (), (), (), (), (), (), (), (), (), (), (), (), (), (), (), (), (), (), (), (), (), (), (), (), (), (), (), (), (), (), (), Diesen Text auch löschen (), Dann sortieren (), In den Spalten C, D, E, Daten eingeben (), Die Künstler löschen (), (), () | K160: =IF(A160<$K$1,Fixtermine!$H$105,IF(A160>$K$1,Fixtermine!$H$1,IF(B160<$L$1,Fixtermine!$H$105,Fixtermine!$H$1))) -> 2018
G161: 2018 | I161: (), (), (), (), (), (), (), (), (), (), (), (), (), (), (), (), (), (), (), (), (), (), (), (), (), (), (), (), (), (), (), (), (), (), (), (), (), (), (), (), (), (), (), (), (), (), (), (), (), (), (), (), (), (), (), (), (), (), (), (), (), (), (), (), (), (), (), (), (), (), (), (), (), (), (), (), (), (), (), (), (), (), (), (), (), (), (), (), (), (), (), (), (), (), (), (), (), (), (), (), (), (), (), (), (), (), (), (), (), (), (), (), (), (), (), (), (), (), (), (), (), Diesen Text auch löschen (), Dann sortieren (), In den Spalten C, D, E, Daten eingeben (), Die Künstler löschen (), (), () | K161: =IF(A161<$K$1,Fixtermine!$H$105,IF(A161>$K$1,Fixtermine!$H$1,IF(B161<$L$1,Fixtermine!$H$105,Fixtermine!$H$1))) -> 2018
G162: 2018 | I162: (), (), (), (), (), (), (), (), (), (), (), (), (), (), (), (), (), (), (), (), (), (), (), (), (), (), (), (), (), (), (), (), (), (), (), (), (), (), (), (), (), (), (), (), (), (), (), (), (), (), (), (), (), (), (), (), (), (), (), (), (), (), (), (), (), (), (), (), (), (), (), (), (), (), (), (), (), (), (), (), (), (), (), (), (), (), (), (), (), (), (), (), (), (), (), (), (), (), (), (), (), (), (), (), (), (), (), (), (), (), (), (), (), (), (), (), (), (), (), (), (), (), Diesen Text auch löschen (), Dann sortieren (), In den Spalten C, D, E, Daten eingeben (), Die Künstler löschen (), (), () | K162: =IF(A162<$K$1,Fixtermine!$H$105,IF(A162>$K$1,Fixtermine!$H$1,IF(B162<$L$1,Fixtermine!$H$105,Fixtermine!$H$1))) -> 2018
G163: 2018 | I163: (), (), (), (), (), (), (), (), (), (), (), (), (), (), (), (), (), (), (), (), (), (), (), (), (), (), (), (), (), (), (), (), (), (), (), (), (), (), (), (), (), (), (), (), (), (), (), (), (), (), (), (), (), (), (), (), (), (), (), (), (), (), (), (), (), (), (), (), (), (), (), (), (), (), (), (), (), (), (), (), (), (), (), (), (), (), (), (), (), (), (), (), (), (), (), (), (), (), (), (), (), (), (), (), (), (), (), (), (), (), (), (), (), (), (), (), (), (), (), (), (), (), (), Diesen Text auch löschen (), Dann sortieren (), In den Spalten C, D, E, Daten eingeben (), Die Künstler löschen (), (), () | K163: =IF(A163<$K$1,Fixtermine!$H$105,IF(A163>$K$1,Fixtermine!$H$1,IF(B163<$L$1,Fixtermine!$H$105,Fixtermine!$H$1))) -> 2018
G164: 2018 | I164: (), (), (), (), (), (), (), (), (), (), (), (), (), (), (), (), (), (), (), (), (), (), (), (), (), (), (), (), (), (), (), (), (), (), (), (), (), (), (), (), (), (), (), (), (), (), (), (), (), (), (), (), (), (), (), (), (), (), (), (), (), (), (), (), (), (), (), (), (), (), (), (), (), (), (), (), (), (), (), (), (), (), (), (), (), (), (), (), (), (), (), (), (), (), (), (), (), (), (), (), (), (), (), (), (), (), (), (), (), (), (), (), (), (), (), (), (), (), (), (), (), (), (), (), Diesen Text auch löschen (), Dann sortieren (), In den Spalten C, D, E, Daten eingeben (), Die Künstler löschen (), (), () | K164: =IF(A164<$K$1,Fixtermine!$H$105,IF(A164>$K$1,Fixtermine!$H$1,IF(B164<$L$1,Fixtermine!$H$105,Fixtermine!$H$1))) -> 2018
G165: 2018 | I165: (), (), (), (), (), (), (), (), (), (), (), (), (), (), (), (), (), (), (), (), (), (), (), (), (), (), (), (), (), (), (), (), (), (), (), (), (), (), (), (), (), (), (), (), (), (), (), (), (), (), (), (), (), (), (), (), (), (), (), (), (), (), (), (), (), (), (), (), (), (), (), (), (), (), (), (), (), (), (), (), (), (), (), (), (), (), (), (), (), (), (), (), (), (), (), (), (), (), (), (), (), (), (), (), (), (), (), (), (), (), (), (), (), (), (), (), (), (), (), (), (), (), (), (), (), Diesen Text auch löschen (), Dann sortieren (), In den Spalten C, D, E, Daten eingeben (), Die Künstler löschen (), (), () | K165: =IF(A165<$K$1,Fixtermine!$H$105,IF(A165>$K$1,Fixtermine!$H$1,IF(B165<$L$1,Fixtermine!$H$105,Fixtermine!$H$1))) -> 2018
G166: 2018 | I166: (), (), (), (), (), (), (), (), (), (), (), (), (), (), (), (), (), (), (), (), (), (), (), (), (), (), (), (), (), (), (), (), (), (), (), (), (), (), (), (), (), (), (), (), (), (), (), (), (), (), (), (), (), (), (), (), (), (), (), (), (), (), (), (), (), (), (), (), (), (), (), (), (), (), (), (), (), (), (), (), (), (), (), (), (), (), (), (), (), (), (), (), (), (), (), (), (), (), (), (), (), (), (), (), (), (), (), (), (), (), (), (), (), (), (), (), (), (), (), (), (), (), (), (), (), (), Diesen Text auch löschen (), Dann sortieren (), In den Spalten C, D, E, Daten eingeben (), Die Künstler löschen (), (), () | K166: =IF(A166<$K$1,Fixtermine!$H$105,IF(A166>$K$1,Fixtermine!$H$1,IF(B166<$L$1,Fixtermine!$H$105,Fixtermine!$H$1))) -> 2018
G167: 2018 | I167: (), (), (), (), (), (), (), (), (), (), (), (), (), (), (), (), (), (), (), (), (), (), (), (), (), (), (), (), (), (), (), (), (), (), (), (), (), (), (), (), (), (), (), (), (), (), (), (), (), (), (), (), (), (), (), (), (), (), (), (), (), (), (), (), (), (), (), (), (), (), (), (), (), (), (), (), (), (), (), (), (), (), (), (), (), (), (), (), (), (), (), (), (), (), (), (), (), (), (), (), (), (), (), (), (), (), (), (), (), (), (), (), (), (), (), (), (), (), (), (), (), (), (), (), (), (), (), Diesen Text auch löschen (), Dann sortieren (), In den Spalten C, D, E, Daten eingeben (), Die Künstler löschen (), (), () | K167: =IF(A167<$K$1,Fixtermine!$H$105,IF(A167>$K$1,Fixtermine!$H$1,IF(B167<$L$1,Fixtermine!$H$105,Fixtermine!$H$1))) -> 2018
G168: 2018 | I168: (), (), (), (), (), (), (), (), (), (), (), (), (), (), (), (), (), (), (), (), (), (), (), (), (), (), (), (), (), (), (), (), (), (), (), (), (), (), (), (), (), (), (), (), (), (), (), (), (), (), (), (), (), (), (), (), (), (), (), (), (), (), (), (), (), (), (), (), (), (), (), (), (), (), (), (), (), (), (), (), (), (), (), (), (), (), (), (), (), (), (), (), (), (), (), (), (), (), (), (), (), (), (), (), (), (), (), (), (), (), (), (), (), (), (), (), (), (), (), (), (), (), (), (), (), (), (), (), Diesen Text auch löschen (), Dann sortieren (), In den Spalten C, D, E, Daten eingeben (), Die Künstler löschen (), (), () | K168: =IF(A168<$K$1,Fixtermine!$H$105,IF(A168>$K$1,Fixtermine!$H$1,IF(B168<$L$1,Fixtermine!$H$105,Fixtermine!$H$1))) -> 2018
G169: 2018 | I169: (), (), (), (), (), (), (), (), (), (), (), (), (), (), (), (), (), (), (), (), (), (), (), (), (), (), (), (), (), (), (), (), (), (), (), (), (), (), (), (), (), (), (), (), (), (), (), (), (), (), (), (), (), (), (), (), (), (), (), (), (), (), (), (), (), (), (), (), (), (), (), (), (), (), (), (), (), (), (), (), (), (), (), (), (), (), (), (), (), (), (), (), (), (), (), (), (), (), (), (), (), (), (), (), (), (), (), (), (), (), (), (), (), (), (), (), (), (), (), (), (), (), (), (), (), (), (), (), (), Diesen Text auch löschen (), Dann sortieren (), In den Spalten C, D, E, Daten eingeben (), Die Künstler löschen (), (), () | K169: =IF(A169<$K$1,Fixtermine!$H$105,IF(A169>$K$1,Fixtermine!$H$1,IF(B169<$L$1,Fixtermine!$H$105,Fixtermine!$H$1))) -> 2018
G170: 2018 | I170: (), (), (), (), (), (), (), (), (), (), (), (), (), (), (), (), (), (), (), (), (), (), (), (), (), (), (), (), (), (), (), (), (), (), (), (), (), (), (), (), (), (), (), (), (), (), (), (), (), (), (), (), (), (), (), (), (), (), (), (), (), (), (), (), (), (), (), (), (), (), (), (), (), (), (), (), (), (), (), (), (), (), (), (), (), (), (), (), (), (), (), (), (), (), (), (), (), (), (), (), (), (), (), (), (), (), (), (), (), (), (), (), (), (), (), (), (), (), (), (), (), (), (), (), (), (), (), (), (), (), Diesen Text auch löschen (), Dann sortieren (), In den Spalten C, D, E, Daten eingeben (), Die Künstler löschen (), (), () | K170: =IF(A170<$K$1,Fixtermine!$H$105,IF(A170>$K$1,Fixtermine!$H$1,IF(B170<$L$1,Fixtermine!$H$105,Fixtermine!$H$1))) -> 2018
G171: 2018 | I171: (), (), (), (), (), (), (), (), (), (), (), (), (), (), (), (), (), (), (), (), (), (), (), (), (), (), (), (), (), (), (), (), (), (), (), (), (), (), (), (), (), (), (), (), (), (), (), (), (), (), (), (), (), (), (), (), (), (), (), (), (), (), (), (), (), (), (), (), (), (), (), (), (), (), (), (), (), (), (), (), (), (), (), (), (), (), (), (), (), (), (), (), (), (), (), (), (), (), (), (), (), (), (), (), (), (), (), (), (), (), (), (), (), (), (), (), (), (), (), (), (), (), (), (), (), (), (), (), (), (), (), Diesen Text auch löschen (), Dann sortieren (), In den Spalten C, D, E, Daten eingeben (), Die Künstler löschen (), (), () | K171: =IF(A171<$K$1,Fixtermine!$H$105,IF(A171>$K$1,Fixtermine!$H$1,IF(B171<$L$1,Fixtermine!$H$105,Fixtermine!$H$1))) -> 2018
G172: 2018 | I172: (), (), (), (), (), (), (), (), (), (), (), (), (), (), (), (), (), (), (), (), (), (), (), (), (), (), (), (), (), (), (), (), (), (), (), (), (), (), (), (), (), (), (), (), (), (), (), (), (), (), (), (), (), (), (), (), (), (), (), (), (), (), (), (), (), (), (), (), (), (), (), (), (), (), (), (), (), (), (), (), (), (), (), (), (), (), (), (), (), (), (), (), (), (), (), (), (), (), (), (), (), (), (), (), (), (), (), (), (), (), (), (), (), (), (), (), (), (), (), (), (), (), (), (), (), (), (), (), (), (), (), (), Diesen Text auch löschen (), Dann sortieren (), In den Spalten C, D, E, Daten eingeben (), Die Künstler löschen (), (), () | K172: =IF(A172<$K$1,Fixtermine!$H$105,IF(A172>$K$1,Fixtermine!$H$1,IF(B172<$L$1,Fixtermine!$H$105,Fixtermine!$H$1))) -> 2018
G173: 2018 | I173: (), (), (), (), (), (), (), (), (), (), (), (), (), (), (), (), (), (), (), (), (), (), (), (), (), (), (), (), (), (), (), (), (), (), (), (), (), (), (), (), (), (), (), (), (), (), (), (), (), (), (), (), (), (), (), (), (), (), (), (), (), (), (), (), (), (), (), (), (), (), (), (), (), (), (), (), (), (), (), (), (), (), (), (), (), (), (), (), (), (), (), (), (), (), (), (), (), (), (), (), (), (), (), (), (), (), (), (), (), (), (), (), (), (), (), (), (), (), (), (), (), (), (), (), (), (), (), (), (), (), (), (), (), Diesen Text auch löschen (), Dann sortieren (), In den Spalten C, D, E, Daten eingeben (), Die Künstler löschen (), (), () | K173: =IF(A173<$K$1,Fixtermine!$H$105,IF(A173>$K$1,Fixtermine!$H$1,IF(B173<$L$1,Fixtermine!$H$105,Fixtermine!$H$1))) -> 2018
G174: 2018 | I174: (), (), (), (), (), (), (), (), (), (), (), (), (), (), (), (), (), (), (), (), (), (), (), (), (), (), (), (), (), (), (), (), (), (), (), (), (), (), (), (), (), (), (), (), (), (), (), (), (), (), (), (), (), (), (), (), (), (), (), (), (), (), (), (), (), (), (), (), (), (), (), (), (), (), (), (), (), (), (), (), (), (), (), (), (), (), (), (), (), (), (), (), (), (), (), (), (), (), (), (), (), (), (), (), (), (), (), (), (), (), (), (), (), (), (), (), (), (), (), (), (), (), (), (), (), (), (), (), (), (), (), (), (), (), Diesen Text auch löschen (), Dann sortieren (), In den Spalten C, D, E, Daten eingeben (), Die Künstler löschen (), (), () | K174: =IF(A174<$K$1,Fixtermine!$H$105,IF(A174>$K$1,Fixtermine!$H$1,IF(B174<$L$1,Fixtermine!$H$105,Fixtermine!$H$1))) -> 2018
G175: 2018 | I175: (), (), (), (), (), (), (), (), (), (), (), (), (), (), (), (), (), (), (), (), (), (), (), (), (), (), (), (), (), (), (), (), (), (), (), (), (), (), (), (), (), (), (), (), (), (), (), (), (), (), (), (), (), (), (), (), (), (), (), (), (), (), (), (), (), (), (), (), (), (), (), (), (), (), (), (), (), (), (), (), (), (), (), (), (), (), (), (), (), (), (), (), (), (), (), (), (), (), (), (), (), (), (), (), (), (), (), (), (), (), (), (), (), (), (), (), (), (), (), (), (), (), (), (), (), (), (), (), (), (), (), (), (), (), (), Diesen Text auch löschen (), Dann sortieren (), In den Spalten C, D, E, Daten eingeben (), Die Künstler löschen (), (), () | K175: =IF(A175<$K$1,Fixtermine!$H$105,IF(A175>$K$1,Fixtermine!$H$1,IF(B175<$L$1,Fixtermine!$H$105,Fixtermine!$H$1))) -> 2018
G176: 2018 | I176: (), (), (), (), (), (), (), (), (), (), (), (), (), (), (), (), (), (), (), (), (), (), (), (), (), (), (), (), (), (), (), (), (), (), (), (), (), (), (), (), (), (), (), (), (), (), (), (), (), (), (), (), (), (), (), (), (), (), (), (), (), (), (), (), (), (), (), (), (), (), (), (), (), (), (), (), (), (), (), (), (), (), (), (), (), (), (), (), (), (), (), (), (), (), (), (), (), (), (), (), (), (), (), (), (), (), (), (), (), (), (), (), (), (), (), (), (), (), (), (), (), (), (), (), (), (), (), (), (), (), (), (), (), (), (), (), Diesen Text auch löschen (), Dann sortieren (), In den Spalten C, D, E, Daten eingeben (), Die Künstler löschen (), (), () | K176: =IF(A176<$K$1,Fixtermine!$H$105,IF(A176>$K$1,Fixtermine!$H$1,IF(B176<$L$1,Fixtermine!$H$105,Fixtermine!$H$1))) -> 2018
G177: 2018 | I177: (), (), (), (), (), (), (), (), (), (), (), (), (), (), (), (), (), (), (), (), (), (), (), (), (), (), (), (), (), (), (), (), (), (), (), (), (), (), (), (), (), (), (), (), (), (), (), (), (), (), (), (), (), (), (), (), (), (), (), (), (), (), (), (), (), (), (), (), (), (), (), (), (), (), (), (), (), (), (), (), (), (), (), (), (), (), (), (), (), (), (), (), (), (), (), (), (), (), (), (), (), (), (), (), (), (), (), (), (), (), (), (), (), (), (), (), (), (), (), (), (), (), (), (), (), (), (), (), (), (), (), (), (), (), (), (), (), Diesen Text auch löschen (), Dann sortieren (), In den Spalten C, D, E, Daten eingeben (), Die Künstler löschen (), (), () | K177: =IF(A177<$K$1,Fixtermine!$H$105,IF(A177>$K$1,Fixtermine!$H$1,IF(B177<$L$1,Fixtermine!$H$105,Fixtermine!$H$1))) -> 2018
G178: 2018 | I178: (), (), (), (), (), (), (), (), (), (), (), (), (), (), (), (), (), (), (), (), (), (), (), (), (), (), (), (), (), (), (), (), (), (), (), (), (), (), (), (), (), (), (), (), (), (), (), (), (), (), (), (), (), (), (), (), (), (), (), (), (), (), (), (), (), (), (), (), (), (), (), (), (), (), (), (), (), (), (), (), (), (), (), (), (), (), (), (), (), (), (), (), (), (), (), (), (), (), (), (), (), (), (), (), (), (), (), (), (), (), (), (), (), (), (), (), (), (), (), (), (), (), (), (), (), (), (), (), (), (), (), (), (), (), (), (), (), (), Diesen Text auch löschen (), Dann sortieren (), In den Spalten C, D, E, Daten eingeben (), Die Künstler löschen (), (), () | K178: =IF(A178<$K$1,Fixtermine!$H$105,IF(A178>$K$1,Fixtermine!$H$1,IF(B178<$L$1,Fixtermine!$H$105,Fixtermine!$H$1))) -> 2018
G179: 2018 | I179: (), (), (), (), (), (), (), (), (), (), (), (), (), (), (), (), (), (), (), (), (), (), (), (), (), (), (), (), (), (), (), (), (), (), (), (), (), (), (), (), (), (), (), (), (), (), (), (), (), (), (), (), (), (), (), (), (), (), (), (), (), (), (), (), (), (), (), (), (), (), (), (), (), (), (), (), (), (), (), (), (), (), (), (), (), (), (), (), (), (), (), (), (), (), (), (), (), (), (), (), (), (), (), (), (), (), (), (), (), (), (), (), (), (), (), (), (), (), (), (), (), (), (), (), (), (), (), (), (), (), (), (), (), (), (), (), (), (), (), Diesen Text auch löschen (), Dann sortieren (), In den Spalten C, D, E, Daten eingeben (), Die Künstler löschen (), (), () | K179: =IF(A179<$K$1,Fixtermine!$H$105,IF(A179>$K$1,Fixtermine!$H$1,IF(B179<$L$1,Fixtermine!$H$105,Fixtermine!$H$1))) -> 2018
G180: 2018 | I180: (), (), (), (), (), (), (), (), (), (), (), (), (), (), (), (), (), (), (), (), (), (), (), (), (), (), (), (), (), (), (), (), (), (), (), (), (), (), (), (), (), (), (), (), (), (), (), (), (), (), (), (), (), (), (), (), (), (), (), (), (), (), (), (), (), (), (), (), (), (), (), (), (), (), (), (), (), (), (), (), (), (), (), (), (), (), (), (), (), (), (), (), (), (), (), (), (), (), (), (), (), (), (), (), (), (), (), (), (), (), (), (), (), (), (), (), (), (), (), (), (), (), (), (), (), (), (), (), (), (), (), (), (), (), (), (), (), (), (), (), Diesen Text auch löschen (), Dann sortieren (), In den Spalten C, D, E, Daten eingeben (), Die Künstler löschen (), (), () | K180: =IF(A180<$K$1,Fixtermine!$H$105,IF(A180>$K$1,Fixtermine!$H$1,IF(B180<$L$1,Fixtermine!$H$105,Fixtermine!$H$1))) -> 2018
G181: 2018 | I181: (), (), (), (), (), (), (), (), (), (), (), (), (), (), (), (), (), (), (), (), (), (), (), (), (), (), (), (), (), (), (), (), (), (), (), (), (), (), (), (), (), (), (), (), (), (), (), (), (), (), (), (), (), (), (), (), (), (), (), (), (), (), (), (), (), (), (), (), (), (), (), (), (), (), (), (), (), (), (), (), (), (), (), (), (), (), (), (), (), (), (), (), (), (), (), (), (), (), (), (), (), (), (), (), (), (), (), (), (), (), (), (), (), (), (), (), (), (), (), (), (), (), (), (), (), (), (), (), (), (), (), (), (), (), (), (), (), (), (), (), (), Diesen Text auch löschen (), Dann sortieren (), In den Spalten C, D, E, Daten eingeben (), Die Künstler löschen (), (), () | K181: =IF(A181<$K$1,Fixtermine!$H$105,IF(A181>$K$1,Fixtermine!$H$1,IF(B181<$L$1,Fixtermine!$H$105,Fixtermine!$H$1))) -> 2018
G182: 2018 | I182: (), (), (), (), (), (), (), (), (), (), (), (), (), (), (), (), (), (), (), (), (), (), (), (), (), (), (), (), (), (), (), (), (), (), (), (), (), (), (), (), (), (), (), (), (), (), (), (), (), (), (), (), (), (), (), (), (), (), (), (), (), (), (), (), (), (), (), (), (), (), (), (), (), (), (), (), (), (), (), (), (), (), (), (), (), (), (), (), (), (), (), (), (), (), (), (), (), (), (), (), (), (), (), (), (), (), (), (), (), (), (), (), (), (), (), (), (), (), (), (), (), (), (), (), (), (), (), (), (), (), (), (), (), (), (), (), (), (), (), (), (), (), Diesen Text auch löschen (), Dann sortieren (), In den Spalten C, D, E, Daten eingeben (), Die Künstler löschen (), (), () | K182: =IF(A182<$K$1,Fixtermine!$H$105,IF(A182>$K$1,Fixtermine!$H$1,IF(B182<$L$1,Fixtermine!$H$105,Fixtermine!$H$1))) -> 2018
G183: 2018 | I183: (), (), (), (), (), (), (), (), (), (), (), (), (), (), (), (), (), (), (), (), (), (), (), (), (), (), (), (), (), (), (), (), (), (), (), (), (), (), (), (), (), (), (), (), (), (), (), (), (), (), (), (), (), (), (), (), (), (), (), (), (), (), (), (), (), (), (), (), (), (), (), (), (), (), (), (), (), (), (), (), (), (), (), (), (), (), (), (), (), (), (), (), (), (), (), (), (), (), (), (), (), (), (), (), (), (), (), (), (), (), (), (), (), (), (), (), (), (), (), (), (), (), (), (), (), (), (), (), (), (), (), (), (), (), (), (), (), (), (), (), (), (), (), Diesen Text auch löschen (), Dann sortieren (), In den Spalten C, D, E, Daten eingeben (), Die Künstler löschen (), (), () | K183: =IF(A183<$K$1,Fixtermine!$H$105,IF(A183>$K$1,Fixtermine!$H$1,IF(B183<$L$1,Fixtermine!$H$105,Fixtermine!$H$1))) -> 2018
G184: 2018 | I184: (), (), (), (), (), (), (), (), (), (), (), (), (), (), (), (), (), (), (), (), (), (), (), (), (), (), (), (), (), (), (), (), (), (), (), (), (), (), (), (), (), (), (), (), (), (), (), (), (), (), (), (), (), (), (), (), (), (), (), (), (), (), (), (), (), (), (), (), (), (), (), (), (), (), (), (), (), (), (), (), (), (), (), (), (), (), (), (), (), (), (), (), (), (), (), (), (), (), (), (), (), (), (), (), (), (), (), (), (), (), (), (), (), (), (), (), (), (), (), (), (), (), (), (), (), (), (), (), (), (), (), (), (), (), (), (), (), (), (), (), (), (), (), (), Diesen Text auch löschen (), Dann sortieren (), In den Spalten C, D, E, Daten eingeben (), Die Künstler löschen (), (), () | K184: =IF(A184<$K$1,Fixtermine!$H$105,IF(A184>$K$1,Fixtermine!$H$1,IF(B184<$L$1,Fixtermine!$H$105,Fixtermine!$H$1))) -> 2018
G185: 2018 | I185: (), (), (), (), (), (), (), (), (), (), (), (), (), (), (), (), (), (), (), (), (), (), (), (), (), (), (), (), (), (), (), (), (), (), (), (), (), (), (), (), (), (), (), (), (), (), (), (), (), (), (), (), (), (), (), (), (), (), (), (), (), (), (), (), (), (), (), (), (), (), (), (), (), (), (), (), (), (), (), (), (), (), (), (), (), (), (), (), (), (), (), (), (), (), (), (), (), (), (), (), (), (), (), (), (), (), (), (), (), (), (), (), (), (), (), (), (), (), (), (), (), (), (), (), (), (), (), (), (), (), (), (), (), (), (), (), (), (), (), (), (), (), (), (), (), Diesen Text auch löschen (), Dann sortieren (), In den Spalten C, D, E, Daten eingeben (), Die Künstler löschen (), (), () | K185: =IF(A185<$K$1,Fixtermine!$H$105,IF(A185>$K$1,Fixtermine!$H$1,IF(B185<$L$1,Fixtermine!$H$105,Fixtermine!$H$1))) -> 2018
G186: 2018 | I186: (), (), (), (), (), (), (), (), (), (), (), (), (), (), (), (), (), (), (), (), (), (), (), (), (), (), (), (), (), (), (), (), (), (), (), (), (), (), (), (), (), (), (), (), (), (), (), (), (), (), (), (), (), (), (), (), (), (), (), (), (), (), (), (), (), (), (), (), (), (), (), (), (), (), (), (), (), (), (), (), (), (), (), (), (), (), (), (), (), (), (), (), (), (), (), (), (), (), (), (), (), (), (), (), (), (), (), (), (), (), (), (), (), (), (), (), (), (), (), (), (), (), (), (), (), (), (), (), (), (), (), (), (), (), (), (), (), (), (), (), (), (), (), (), (), (), Diesen Text auch löschen (), Dann sortieren (), In den Spalten C, D, E, Daten eingeben (), Die Künstler löschen (), (), () | K186: =IF(A186<$K$1,Fixtermine!$H$105,IF(A186>$K$1,Fixtermine!$H$1,IF(B186<$L$1,Fixtermine!$H$105,Fixtermine!$H$1))) -> 2018
G187: 2018 | I187: (), (), (), (), (), (), (), (), (), (), (), (), (), (), (), (), (), (), (), (), (), (), (), (), (), (), (), (), (), (), (), (), (), (), (), (), (), (), (), (), (), (), (), (), (), (), (), (), (), (), (), (), (), (), (), (), (), (), (), (), (), (), (), (), (), (), (), (), (), (), (), (), (), (), (), (), (), (), (), (), (), (), (), (), (), (), (), (), (), (), (), (), (), (), (), (), (), (), (), (), (), (), (), (), (), (), (), (), (), (), (), (), (), (), (), (), (), (), (), (), (), (), (), (), (), (), (), (), (), (), (), (), (), (), (), (), (), (), (), (), (), (), (), (), (), (), (), Diesen Text auch löschen (), Dann sortieren (), In den Spalten C, D, E, Daten eingeben (), Die Künstler löschen (), (), () | K187: =IF(A187<$K$1,Fixtermine!$H$105,IF(A187>$K$1,Fixtermine!$H$1,IF(B187<$L$1,Fixtermine!$H$105,Fixtermine!$H$1))) -> 2018
G188: 2018 | I188: (), (), (), (), (), (), (), (), (), (), (), (), (), (), (), (), (), (), (), (), (), (), (), (), (), (), (), (), (), (), (), (), (), (), (), (), (), (), (), (), (), (), (), (), (), (), (), (), (), (), (), (), (), (), (), (), (), (), (), (), (), (), (), (), (), (), (), (), (), (), (), (), (), (), (), (), (), (), (), (), (), (), (), (), (), (), (), (), (), (), (), (), (), (), (), (), (), (), (), (), (), (), (), (), (), (), (), (), (), (), (), (), (), (), (), (), (), (), (), (), (), (), (), (), (), (), (), (), (), (), (), (), (), (), (), (), (), (), (), (), (), (), (), (), (), (), (), (), Diesen Text auch löschen (), Dann sortieren (), In den Spalten C, D, E, Daten eingeben (), Die Künstler löschen (), (), () | K188: =IF(A188<$K$1,Fixtermine!$H$105,IF(A188>$K$1,Fixtermine!$H$1,IF(B188<$L$1,Fixtermine!$H$105,Fixtermine!$H$1))) -> 2018
G189: 2018 | I189: (), (), (), (), (), (), (), (), (), (), (), (), (), (), (), (), (), (), (), (), (), (), (), (), (), (), (), (), (), (), (), (), (), (), (), (), (), (), (), (), (), (), (), (), (), (), (), (), (), (), (), (), (), (), (), (), (), (), (), (), (), (), (), (), (), (), (), (), (), (), (), (), (), (), (), (), (), (), (), (), (), (), (), (), (), (), (), (), (), (), (), (), (), (), (), (), (), (), (), (), (), (), (), (), (), (), (), (), (), (), (), (), (), (), (), (), (), (), (), (), (), (), (), (), (), (), (), (), (), (), (), (), (), (), (), (), (), (), (), (), (), (), (), (), (), (), (), (), (), Diesen Text auch löschen (), Dann sortieren (), In den Spalten C, D, E, Daten eingeben (), Die Künstler löschen (), (), () | K189: =IF(A189<$K$1,Fixtermine!$H$105,IF(A189>$K$1,Fixtermine!$H$1,IF(B189<$L$1,Fixtermine!$H$105,Fixtermine!$H$1))) -> 2018
G190: 2018 | I190: (), (), (), (), (), (), (), (), (), (), (), (), (), (), (), (), (), (), (), (), (), (), (), (), (), (), (), (), (), (), (), (), (), (), (), (), (), (), (), (), (), (), (), (), (), (), (), (), (), (), (), (), (), (), (), (), (), (), (), (), (), (), (), (), (), (), (), (), (), (), (), (), (), (), (), (), (), (), (), (), (), (), (), (), (), (), (), (), (), (), (), (), (), (), (), (), (), (), (), (), (), (), (), (), (), (), (), (), (), (), (), (), (), (), (), (), (), (), (), (), (), (), (), (), (), (), (), (), (), (), (), (), (), (), (), (), (), (), (), (), (), (), (), (), (), (), (), (), (), (), Diesen Text auch löschen (), Dann sortieren (), In den Spalten C, D, E, Daten eingeben (), Die Künstler löschen (), (), () | K190: =IF(A190<$K$1,Fixtermine!$H$105,IF(A190>$K$1,Fixtermine!$H$1,IF(B190<$L$1,Fixtermine!$H$105,Fixtermine!$H$1))) -> 2018
G191: 2018 | I191: (), (), (), (), (), (), (), (), (), (), (), (), (), (), (), (), (), (), (), (), (), (), (), (), (), (), (), (), (), (), (), (), (), (), (), (), (), (), (), (), (), (), (), (), (), (), (), (), (), (), (), (), (), (), (), (), (), (), (), (), (), (), (), (), (), (), (), (), (), (), (), (), (), (), (), (), (), (), (), (), (), (), (), (), (), (), (), (), (), (), (), (), (), (), (), (), (), (), (), (), (), (), (), (), (), (), (), (), (), (), (), (), (), (), (), (), (), (), (), (), (), (), (), (), (), (), (), (), (), (), (), (), (), (), (), (), (), (), (), (), (), (), (), (), (), (), (), (), (), (), (), Diesen Text auch löschen (), Dann sortieren (), In den Spalten C, D, E, Daten eingeben (), Die Künstler löschen (), (), () | K191: =IF(A191<$K$1,Fixtermine!$H$105,IF(A191>$K$1,Fixtermine!$H$1,IF(B191<$L$1,Fixtermine!$H$105,Fixtermine!$H$1))) -> 2018
G192: 2018 | I192: (), (), (), (), (), (), (), (), (), (), (), (), (), (), (), (), (), (), (), (), (), (), (), (), (), (), (), (), (), (), (), (), (), (), (), (), (), (), (), (), (), (), (), (), (), (), (), (), (), (), (), (), (), (), (), (), (), (), (), (), (), (), (), (), (), (), (), (), (), (), (), (), (), (), (), (), (), (), (), (), (), (), (), (), (), (), (), (), (), (), (), (), (), (), (), (), (), (), (), (), (), (), (), (), (), (), (), (), (), (), (), (), (), (), (), (), (), (), (), (), (), (), (), (), (), (), (), (), (), (), (), (), (), (), (), (), (), (), (), (), (), (), (), (), (), (), (), (), (), (), (), (), Diesen Text auch löschen (), Dann sortieren (), In den Spalten C, D, E, Daten eingeben (), Die Künstler löschen (), (), () | K192: =IF(A192<$K$1,Fixtermine!$H$105,IF(A192>$K$1,Fixtermine!$H$1,IF(B192<$L$1,Fixtermine!$H$105,Fixtermine!$H$1))) -> 2018
G193: 2018 | I193: (), (), (), (), (), (), (), (), (), (), (), (), (), (), (), (), (), (), (), (), (), (), (), (), (), (), (), (), (), (), (), (), (), (), (), (), (), (), (), (), (), (), (), (), (), (), (), (), (), (), (), (), (), (), (), (), (), (), (), (), (), (), (), (), (), (), (), (), (), (), (), (), (), (), (), (), (), (), (), (), (), (), (), (), (), (), (), (), (), (), (), (), (), (), (), (), (), (), (), (), (), (), (), (), (), (), (), (), (), (), (), (), (), (), (), (), (), (), (), (), (), (), (), (), (), (), (), (), (), (), (), (), (), (), (), (), (), (), (), (), (), (), (), (), (), (), (), (), (), (), (), (), (), Diesen Text auch löschen (), Dann sortieren (), In den Spalten C, D, E, Daten eingeben (), Die Künstler löschen (), (), () | K193: =IF(A193<$K$1,Fixtermine!$H$105,IF(A193>$K$1,Fixtermine!$H$1,IF(B193<$L$1,Fixtermine!$H$105,Fixtermine!$H$1))) -> 2018
A194: =IF(E194="","",MONTH(E194)) ->  | B194: =IF(E194="","",IF(A194=2,IF(DAY(E194)=29,DAY(E194)-$G$1,DAY(E194)),DAY(E194))) ->  | F194: =IF(E194="","",INT((G194-E194)/365)) ->  | G194: 2018 | H194: =IF(J194=J195," ",IF(E194="","",DATEVALUE(G194))) ->  | I194: =IF(J194=J193,CONCATENATE(C194," ",D194," (",F194,"), ",I193),CONCATENATE(C194," ",D194," (",F194,")")) -> (), (), (), (), (), (), (), (), (), (), (), (), (), (), (), (), (), (), (), (), (), (), (), (), (), (), (), (), (), (), (), (), (), (), (), (), (), (), (), (), (), (), (), (), (), (), (), (), (), (), (), (), (), (), (), (), (), (), (), (), (), (), (), (), (), (), (), (), (), (), (), (), (), (), (), (), (), (), (), (), (), (), (), (), (), (), (), (), (), (), (), (), (), (), (), (), (), (), (), (), (), (), (), (), (), (), (), (), (), (), (), (), (), (), (), (), (), (), (), (), (), (), (), (), (), (), (), (), (), (), (), (), (), (), (), (), (), (), (), (), (), (), (), (), (), (), (), (), (), (), (), (), (), (), Diesen Text auch löschen (), Dann sortieren (), In den Spalten C, D, E, Daten eingeben (), Die Künstler löschen (), (), () | J194: =IF(E194="","",CONCATENATE(B194,".",A194,".")) ->  | K194: =IF(A194<$K$1,Fixtermine!$H$105,IF(A194>$K$1,Fixtermine!$H$1,IF(B194<$L$1,Fixtermine!$H$105,Fixtermine!$H$1))) -> 2018
G195: =IF(J195="29.2.",CONCATENATE("28.2.",K195),CONCATENATE(J195,K195)) -> 2018 | I195: (), (), (), (), (), (), (), (), (), (), (), (), (), (), (), (), (), (), (), (), (), (), (), (), (), (), (), (), (), (), (), (), (), (), (), (), (), (), (), (), (), (), (), (), (), (), (), (), (), (), (), (), (), (), (), (), (), (), (), (), (), (), (), (), (), (), (), (), (), (), (), (), (), (), (), (), (), (), (), (), (), (), (), (), (), (), (), (), (), (), (), (), (), (), (), (), (), (), (), (), (), (), (), (), (), (), (), (), (), (), (), (), (), (), (), (), (), (), (), (), (), (), (), (), (), (), (), (), (), (), (), (), (), (), (), (), (), (), (), (), (), (), (), (), (), (), (), (), (), (), (), (), (), (), (), Diesen Text auch löschen (), Dann sortieren (), In den Spalten C, D, E, Daten eingeben (), Die Künstler löschen (), (), () | K195: =IF(A195<$K$1,Fixtermine!$H$105,IF(A195>$K$1,Fixtermine!$H$1,IF(B195<$L$1,Fixtermine!$H$105,Fixtermine!$H$1))) -> 2018
G196: 2018 | I196: (), (), (), (), (), (), (), (), (), (), (), (), (), (), (), (), (), (), (), (), (), (), (), (), (), (), (), (), (), (), (), (), (), (), (), (), (), (), (), (), (), (), (), (), (), (), (), (), (), (), (), (), (), (), (), (), (), (), (), (), (), (), (), (), (), (), (), (), (), (), (), (), (), (), (), (), (), (), (), (), (), (), (), (), (), (), (), (), (), (), (), (), (), (), (), (), (), (), (), (), (), (), (), (), (), (), (), (), (), (), (), (), (), (), (), (), (), (), (), (), (), (), (), (), (), (), (), (), (), (), (), (), (), (), (), (), (), (), (), (), (), (), (), (), (), (), (), (), (), (), (), (), (), (), (), (), Diesen Text auch löschen (), Dann sortieren (), In den Spalten C, D, E, Daten eingeben (), Die Künstler löschen (), (), () | K196: =IF(A196<$K$1,Fixtermine!$H$105,IF(A196>$K$1,Fixtermine!$H$1,IF(B196<$L$1,Fixtermine!$H$105,Fixtermine!$H$1))) -> 2018
G197: 2018 | I197: (), (), (), (), (), (), (), (), (), (), (), (), (), (), (), (), (), (), (), (), (), (), (), (), (), (), (), (), (), (), (), (), (), (), (), (), (), (), (), (), (), (), (), (), (), (), (), (), (), (), (), (), (), (), (), (), (), (), (), (), (), (), (), (), (), (), (), (), (), (), (), (), (), (), (), (), (), (), (), (), (), (), (), (), (), (), (), (), (), (), (), (), (), (), (), (), (), (), (), (), (), (), (), (), (), (), (), (), (), (), (), (), (), (), (), (), (), (), (), (), (), (), (), (), (), (), (), (), (), (), (), (), (), (), (), (), (), (), (), (), (), (), (), (), (), (), (), (), (), (), (), (), (), (), (), (), (), Diesen Text auch löschen (), Dann sortieren (), In den Spalten C, D, E, Daten eingeben (), Die Künstler löschen (), (), () | K197: =IF(A197<$K$1,Fixtermine!$H$105,IF(A197>$K$1,Fixtermine!$H$1,IF(B197<$L$1,Fixtermine!$H$105,Fixtermine!$H$1))) -> 2018
G198: 2018 | I198: (), (), (), (), (), (), (), (), (), (), (), (), (), (), (), (), (), (), (), (), (), (), (), (), (), (), (), (), (), (), (), (), (), (), (), (), (), (), (), (), (), (), (), (), (), (), (), (), (), (), (), (), (), (), (), (), (), (), (), (), (), (), (), (), (), (), (), (), (), (), (), (), (), (), (), (), (), (), (), (), (), (), (), (), (), (), (), (), (), (), (), (), (), (), (), (), (), (), (), (), (), (), (), (), (), (), (), (), (), (), (), (), (), (), (), (), (), (), (), (), (), (), (), (), (), (), (), (), (), (), (), (), (), (), (), (), (), (), (), (), (), (), (), (), (), (), (), (), (), (), (), (), (), (), (), (), (), (), Diesen Text auch löschen (), Dann sortieren (), In den Spalten C, D, E, Daten eingeben (), Die Künstler löschen (), (), () | K198: =IF(A198<$K$1,Fixtermine!$H$105,IF(A198>$K$1,Fixtermine!$H$1,IF(B198<$L$1,Fixtermine!$H$105,Fixtermine!$H$1))) -> 2018
G199: 2018 | I199: (), (), (), (), (), (), (), (), (), (), (), (), (), (), (), (), (), (), (), (), (), (), (), (), (), (), (), (), (), (), (), (), (), (), (), (), (), (), (), (), (), (), (), (), (), (), (), (), (), (), (), (), (), (), (), (), (), (), (), (), (), (), (), (), (), (), (), (), (), (), (), (), (), (), (), (), (), (), (), (), (), (), (), (), (), (), (), (), (), (), (), (), (), (), (), (), (), (), (), (), (), (), (), (), (), (), (), (), (), (), (), (), (), (), (), (), (), (), (), (), (), (), (), (), (), (), (), (), (), (), (), (), (), (), (), (), (), (), (), (), (), (), (), (), (), (), (), (), (), (), (), (), (), (), (), (), (), (), (), Diesen Text auch löschen (), Dann sortieren (), In den Spalten C, D, E, Daten eingeben (), Die Künstler löschen (), (), () | K199: =IF(A199<$K$1,Fixtermine!$H$105,IF(A199>$K$1,Fixtermine!$H$1,IF(B199<$L$1,Fixtermine!$H$105,Fixtermine!$H$1))) -> 2018
G200: 2018 | I200: (), (), (), (), (), (), (), (), (), (), (), (), (), (), (), (), (), (), (), (), (), (), (), (), (), (), (), (), (), (), (), (), (), (), (), (), (), (), (), (), (), (), (), (), (), (), (), (), (), (), (), (), (), (), (), (), (), (), (), (), (), (), (), (), (), (), (), (), (), (), (), (), (), (), (), (), (), (), (), (), (), (), (), (), (), (), (), (), (), (), (), (), (), (), (), (), (), (), (), (), (), (), (), (), (), (), (), (), (), (), (), (), (), (), (), (), (), (), (), (), (), (), (), (), (), (), (), (), (), (), (), (), (), (), (), (), (), (), (), (), (), (), (), (), (), (), (), (), (), (), (), (), (), (), (), (), (), (), (), (), Diesen Text auch löschen (), Dann sortieren (), In den Spalten C, D, E, Daten eingeben (), Die Künstler löschen (), (), () | K200: =IF(A200<$K$1,Fixtermine!$H$105,IF(A200>$K$1,Fixtermine!$H$1,IF(B200<$L$1,Fixtermine!$H$105,Fixtermine!$H$1))) -> 2018
... 1408 more rows
